Workbook

Sheet Instructions
B2: =CONCATENATE(dms_Sector," ",dms_Segment," ", "Network Service Provider") -> Electricity Transmission Network Service Provider
B3: =IF(dms_Model="Reset","Regulatory Proposal RIN Template","Annual Reporting RIN") -> Regulatory Proposal RIN Template
B4: =CONCATENATE("This template is to be used by ",dms_TradingNameFull," to fulfil its reporting obligations to the AER.") -> This template is to be used by Queensland Electricity Transmission Corporation Limited trading as Powerlink Queensland to fulfil its reporting obligations to the AER.
B5: INSTRUCTIONS
B6: GENERAL | C6: Complete the Business & other details worksheet before entering data or values in any other worksheets. The Business & other details worksheet is linked to other worksheets within the workbook and automatically generates certain column headings and conditional formatting.
B8: CONFIDENTIAL INFORMATION | C8: Please use the appropriate style to identify confidential and protected information in the confidential workbook.
C9: Do this by selecting the cell that contains the correct cell colour and format, then copy it and 'paste format' to the confidential cells. Alternatively you can change the fill of the cell to the same colour and pattern manually. This will format the cells a specific colour that is identified by the AER's process which in turn identifies that information as confidential or protected in the AER database.
B11: RESPONSES | C11: Please return two (2) files to the AER: 1. A confidential version which must contain a complete set of all responses with confidential information marked using the Mark selection CONFIDENTIAL macro and which has been completed using the locked template file provided by the AER. 2. A public version with confidential information either removed completely or aggregated in some form together with writtten consent to disclose the public version of the response. Use the drop down box on the Business and other details worksheet to identify the file as either confidential ('consolidated') or public.
B13: AMENDMENTS | C13: If an NSP wishes to correct data previously submitted to the AER it should resubmit that data using the original completed submission as the starting point. Please make any necessary changes to the data. Data that is not being amended should be left unchanged. NSPs must identify the reason for the amendments in the Amendment Reason box on the Business and other details worksheet. NSPs may provide further details regarding any amendments in the Amendments worksheet. .
C14: NSP may recolour cells using the Amended style on the Home ribbon to identify cells that contain amended data. NB: if data is also CONFIDENTIAL, apply the Amended Confidential style
C15: Please resubmit two (2) files - a confidential version and a public version of the amended submission to the AER
B17: UNITS OF MEASURE | C17: All amounts are to be unrounded and reported on a one for one basis: that is 1000 is to be entered as '1000'. Applicable units of measure may be identified in the table column headings or row descriptors.
B19: INPUT / NON-INPUT CELLS
D20: Yellow = Input cell (mandatory)
D21: Darker yellow = input cell (mandatory)
D22: Orange = input cell (if data available)
D23: Grey = Not applicable/No inputs required
D24: PLEASE DO NOT ENTER TEXT into cells that are to contain numbers (including 'numbers stored as text')
B27: NAVIGATION | C27: Some tables in the worksheets have been "grouped" to allow for easy navigation. To ungroup or group data use the outline symbols in the left margin (for Row groupings) or above the columns (for column groupings).

Sheet CONTENTS
C1: =INDEX(dms_Worksheet_List,MATCH(dms_Model,dms_Model_List)) -> REGULATORY REPORTING STATEMENT
B2: =INDEX(dms_TradingNameFull_List,MATCH(dms_TradingName,dms_TradingName_List)) -> Queensland Electricity Transmission Corporation Limited trading as Powerlink Queensland
C3: =CONCATENATE("REGULATORY PERIOD FROM ", FRCP_y1," TO ",dms_MultiYear_FinalYear_Result) -> REGULATORY PERIOD FROM 2027-28 TO 2031-32
C6: CONTENTS
C8: TEMPLATE | D8: RESET RIN - OCTOBER 2025
C10: SUBMISSION | D10: Business & other details
C12: EXPENDITURE | D12: 2.1 Expenditure summary
D13: 2.2 Repex
D14: 2.3 Augex (b)
D15: 2.5 Connections
D16: 2.6 Non-network
D17: 2.10 Overheads
D18: 2.14 Forecast price changes
D19: 2.16 Opex Summary
D20: 2.17 Step Changes
C22: ECONOMIC BENCHMARKING | D22: 3.1 Revenue
D23: 3.2 Operating expenditure
D24: 3.3 Assets (RAB)
D25: 3.4 Operational data
D26: 3.5 Physical assets
D27: 3.7 Operating environment
C29: NETWORK | D29: 5.4 MD & Utilisation - Spatial
C31: OTHER | D31: 7.1 Policies and Procedures
D32: 7.2 Contingent projects
D33: 7.3 Obligations
D34: 7.4 Shared Assets
D35: 7.5 Large Projects
D36: 7.9 STPIS
C38: FINANCIAL | D38: 8.2 Capex
D39: 8.8 Revenue

Sheet Business & other details
V1: =INDEX(dms_Worksheet_List,MATCH(dms_Model,dms_Model_List)) -> REGULATORY REPORTING STATEMENT
V2: =INDEX(dms_TradingNameFull_List,MATCH(dms_TradingName,dms_TradingName_List)) -> Queensland Electricity Transmission Corporation Limited trading as Powerlink Queensland
V3: =CONCATENATE("REGULATORY PERIOD FROM ", FRCP_y1," TO ",dms_MultiYear_FinalYear_Result) -> REGULATORY PERIOD FROM 2027-28 TO 2031-32
V4: BUSINESS & OTHER DETAILS
V6: INSTRUCTIONS
V7: Complete the following business details regulatory template before entering data or values in any other regulatory template. This regulatory template is linked to other cells within the spreadsheet and automatically generates column headings and conditional formatting to distinguish business specific input and non-input cells.
Q9: SUBMISSION PARTICULARS INPUT SHEET
V12: ENTITY DETAILS
V14: Business Name
V16: Short name | AL16: Powerlink
V17: ACN/ABN | AL17: =INDEX(dms_ABN_List,MATCH(dms_TradingName,dms_TradingName_List)) -> 82078849233
V21: Business Address | BQ21: Postal Address
V23: Address 1 | BI23: Address 1
V24: Address 2 | BI24: Address 2
V25: Suburb | BI25: Suburb
V26: State | AL26: =INDEX(dms_JurisdictionList,MATCH(dms_TradingName,dms_TradingName_List)) -> Qld | AV26: Post code | BI26: State | BQ26: =INDEX(dms_PState_List,MATCH(dms_TradingName,dms_TradingName_List)) -> QLD | CA26: Post code
BA28: `
V30: Contact Names
V32: Name | BI32: Name
V33: Phone | BI33: Phone
V34: Email | BI34: Email
Q39: REGULATORY CONTROL PERIODS
Z42: Forthcoming period | AL42: 2027-28 | AU42: =FRCP_y2 -> 2028-29 | BD42: =FRCP_y3 -> 2029-30 | BM42: =FRCP_y4 -> 2030-31 | BV42: =FRCP_y5 -> 2031-32
AL43: =FRCP_y6 -> 2032-33 | AU43: =FRCP_y7 -> 2033-34 | BD43: =FRCP_y8 -> 2034-35 | BM43: =FRCP_y9 -> 2035-36 | BV43: =FRCP_y10 -> 2036-37
AL44: =FRCP_y11 -> 2037-38 | AU44: =FRCP_y12 -> 2038-39 | BD44: =FRCP_y13 -> 2039-40 | BM44: =FRCP_y14 -> 2040-41 | BV44: =FRCP_y15 -> 2041-42
X46: RESETS | Z46: Current period | AL46: =CRCP_y1 -> 2022-23 | AU46: =CRCP_y2 -> 2023-24 | BD46: =CRCP_y3 -> 2024-25 | BM46: =CRCP_y4 -> 2025-26 | BV46: =CRCP_y5 -> 2026-27
AL47: =CRCP_y6 -> 2027-28 | AU47: =CRCP_y7 -> 2028-29 | BD47: =CRCP_y8 -> 2029-30 | BM47: =CRCP_y9 -> 2030-31 | BV47: =CRCP_y10 -> 2031-32
AL48: =CRCP_y11 -> 2032-33 | AU48: =CRCP_y12 -> 2033-34 | BD48: =CRCP_y13 -> 2034-35 | BM48: =CRCP_y14 -> 2035-36 | BV48: =CRCP_y15 -> 2036-37
Z50: Previous period | AL50: =PRCP_y1 -> 2017-18 | AU50: =PRCP_y2 -> 2018-19 | BD50: =PRCP_y3 -> 2019-20 | BM50: =PRCP_y4 -> 2020-21 | BV50: =PRCP_y5 -> 2021-22
AL51: =PRCP_y6 -> 2022-23 | AU51: =PRCP_y7 -> 2023-24 | BD51: =PRCP_y8 -> 2024-25 | BM51: =PRCP_y9 -> 2025-26 | BV51: =PRCP_y10 -> 2026-27
AL52: =PRCP_y11 -> 2027-28 | AU52: =PRCP_y12 -> 2028-29 | BD52: =PRCP_y13 -> 2029-30 | BM52: =PRCP_y14 -> 2030-31 | BV52: =PRCP_y15 -> 2031-32
Z54: Commencing year | AL54: 2022-23
X55: ANNUAL RINS
Z56: Final year | AL56: 2026-27
Q60: SUBMISSION DETAILS
Z62: RIN type | AL62: =INDIRECT(dms_Model) -> Regulatory Reporting (Reset)
Z64: Source | AL64: Regulatory proposal
X66: THIS FILE | Z66: Data Quality | AL66: Consolidated
Z68: Confidentiality Status | AL68: Public
Z70: Amended RIN Amendment Reason | AL70: .
Z74: Submission Date | AL74: dd/mm/yy | BD74: Please enter date this file submitted to AER

Sheet 2.1 Expenditure summary
B1: =(LOOKUP(dms_Model,dms_Model_List,dms_Worksheet_List)) -> REGULATORY REPORTING STATEMENT
B2: =dms_TradingName -> Powerlink
B3: =CONCATENATE("REGULATORY PERIOD FROM ", FRCP_y1," TO ",dms_MultiYear_FinalYear_Result) -> REGULATORY PERIOD FROM 2027-28 TO 2031-32
B4: 2.1 - EXPENDITURE SUMMARY AND RECONCILIATION
B6: 2.1.1 - PRESCRIBED TRANSMISSION SERVICES CAPEX (as incurred)
C7: EXPENDITURE
C8: =CONCATENATE("Forecast ($0's, real ",dms_DollarReal,")") -> Forecast ($0's, real June 2027)
C9: =dms_y4 -> 2025-26 | D9: =dms_y5 -> 2026-27 | E9: =dms_y6 -> 2027-28 | F9: =dms_y7 -> 2028-29 | G9: =dms_y8 -> 2029-30 | H9: =dms_y9 -> 2030-31 | I9: =dms_y10 -> 2031-32
B10: Replacement expenditure | C10: 259137824.6 | D10: 275991307.8 | E10: 360483098.1 | F10: 313686342.1 | G10: 271135739.1 | H10: 371239485.5 | I10: 351283685.1
B11: Connections | C11: 0 | D11: 0 | E11: 0 | F11: 0 | G11: 0 | H11: 0 | I11: 0
B12: Augmentation Expenditure | C12: 26671578.03 | D12: 21501673.75 | E12: 27800543.25 | F12: 35184348.76 | G12: 48439898.73 | H12: 72067777.31 | I12: 75289630.1
B13: ICT | C13: 14511339.46 | D13: 13767973.17 | E13: 4218699.2 | F13: 5069988.648 | G13: 5542391.834 | H13: 4523876.852 | I13: 4175100.556
B14: Property | C14: 6369952.049 | D14: 14127252.14 | E14: 46215203.05 | F14: 72258146 | G14: 35442266.32 | H14: 5373615.884 | I14: 6257384.683
B15: Fleet | C15: 7852784.495 | D15: 3773231.571 | E15: 4298556.232 | F15: 5259953.144 | G15: 6473062.305 | H15: 5942281.71 | I15: 5303252.187
B16: Other Non-network | C16: 6514570.508 | D16: 3831836.123 | E16: 2024708.864 | F16: 2869087.251 | G16: 2814240.773 | H16: 2463466.539 | I16: 2594712.462
B17: Capitalised network overheads
B18: Capitalised corporate overheads | C18: 52265263.81 | D18: 54208207.49 | E18: 72448503.75 | F18: 70704536.31 | G18: 60207748.68 | H18: 75145895.97 | I18: 72426194.31
B19: Total gross capex | C19: =SUM(C10:C18) -> 373323312.9 | D19: 387201482.1 | E19: 517489312.5 | F19: 505032402.2 | G19: 430055347.7 | H19: 536756399.8 | I19: 517329959.4
B21: 2.1.2 - PRESCRIBED TRANSMISSION SERVICES OPEX
C22: EXPENDITURE
C23: =CONCATENATE("Forecast ($0's, real ",dms_DollarReal,")") -> Forecast ($0's, real June 2027)
C24: =dms_y4 -> 2025-26 | D24: =dms_y5 -> 2026-27 | E24: =dms_y6 -> 2027-28 | F24: =dms_y7 -> 2028-29 | G24: =dms_y8 -> 2029-30 | H24: =dms_y9 -> 2030-31 | I24: =dms_y10 -> 2031-32
B25: Vegetation management | C25: 18570115.2 | D25: 19801607.86
B26: Maintenance | C26: 114897959 | D26: 126778242.9
B27: Non-network | C27: 36088349.06 | D27: 38481577.99
B28: Network overheads | C28: 107799024.6 | D28: 110966036.5
B29: Corporate overheads | C29: 78005126.33 | D29: 82899141.44
B30: Other | C30: -36088349 | D30: -38481578
B31: Total | C31: =SUM(C25:C30) -> 319272225.2 | D31: =SUM(D25:D30) -> 340445028.7 | E31: ='2.16 Opex Summary'!H22 -> 356933938.4 | F31: ='2.16 Opex Summary'!I22 -> 365754923.1 | G31: ='2.16 Opex Summary'!J22 -> 363905790.6 | H31: ='2.16 Opex Summary'!K22 -> 368869536.6 | I31: ='2.16 Opex Summary'!L22 -> 376727398.1
B34: 2.1.8 - PRESCRIBED TRANSMISSION SERVICES CAPITALISED OVERHEADS
C35: EXPENDITURE
C36: =CONCATENATE("Forecast ($0's, real ",dms_DollarReal,")") -> Forecast ($0's, real June 2027)
C37: =dms_y4 -> 2025-26 | D37: =dms_y5 -> 2026-27 | E37: =dms_y6 -> 2027-28 | F37: =dms_y7 -> 2028-29 | G37: =dms_y8 -> 2029-30 | H37: =dms_y9 -> 2030-31 | I37: =dms_y10 -> 2031-32
B38: Replacement expenditure | C38: 42185227.25 | D38: 44928817.55 | E38: 58683295.05 | F38: 51065218.48 | G38: 44138376.13 | H38: 60434334.85 | I38: 57185716.17
B39: Connections | C39: 0 | D39: 0 | E39: 0 | F39: 0 | G39: 0 | H39: 0 | I39: 0
B40: Augmentation Expenditure | C40: 4341884.796 | D40: 3500272.471 | E40: 4525669.832 | F40: 5727684.682 | G40: 7885564.909 | H40: 11731963.75 | I40: 12256451.41
B41: Non-network | C41: 5738151.758 | D41: 5779117.465 | E41: 9239538.87 | F41: 13911633.15 | G41: 8183807.643 | H41: 2979597.37 | I41: 2984026.726
B42: Total | C42: =SUM(C38:C41) -> 52265263.81 | D42: 54208207.49 | E42: 72448503.75 | F42: 70704536.31 | G42: 60207748.68 | H42: 75145895.97 | I42: 72426194.31

Sheet 2.2 Repex
B1: =(LOOKUP(dms_Model,dms_Model_List,dms_Worksheet_List)) -> REGULATORY REPORTING STATEMENT
B2: =dms_TradingName -> Powerlink
B3: =CONCATENATE("REGULATORY PERIOD FROM ", FRCP_y1," TO ",dms_MultiYear_FinalYear_Result) -> REGULATORY PERIOD FROM 2027-28 TO 2031-32
B4: 2.2 REPEX
B6: 2.2.1 - REPLACEMENT EXPENDITURE, VOLUMES AND ASSET FAILURES BY ASSET CATEGORY
B7: EXPENDITURE AS COMMISSIONED
D8: EXPENDITURE
D9: =CONCATENATE("Forecast ($0's, real ",dms_DollarReal,")") -> Forecast ($0's, real June 2027)
B10: ASSET GROUP | D10: =dms_y4 -> 2025-26 | E10: =dms_y5 -> 2026-27 | F10: =dms_y6 -> 2027-28 | G10: =dms_y7 -> 2028-29 | H10: =dms_y8 -> 2029-30 | I10: =dms_y9 -> 2030-31 | J10: =dms_y10 -> 2031-32
B11: TRANSMISSION TOWERS | C11: Total | D11: 79695181.38 | E11: 15254417.77 | F11: 0 | G11: 0 | H11: 0 | I11: 9585261.057 | J11: 186980366.7
B12: TRANSMISSION TOWER SUPPORT STRUCTURES | C12: Total | D12: 0 | E12: 0 | F12: 0 | G12: 0 | H12: 0 | I12: 0 | J12: 0
B13: CONDUCTORS | C13: Total | D13: 0 | E13: 0 | F13: 0 | G13: 0 | H13: 0 | I13: 0 | J13: 0
B14: TRANSMISSION CABLES | C14: Total | D14: 0 | E14: 14130095.51 | F14: 0 | G14: 0 | H14: 0 | I14: 133916812.1 | J14: 0
B15: SUBSTATION SWITCHBAYS | C15: Total | D15: 1319098.924 | E15: 57163326.63 | F15: 119685275.2 | G15: 13400782.2 | H15: 13657880.21 | I15: 145428045.5 | J15: 50060403.81
B16: SUBSTATION POWER TRANSFORMERS | C16: Total | D16: 190420.1994 | E16: 25322078.6 | F16: 29885653.35 | G16: 30280743.06 | H16: 8129864.86 | I16: 28898589.2 | J16: 0
B17: SUBSTATION REACTIVE PLANT | C17: Total | D17: 0 | E17: 970670.8196 | F17: 0 | G17: 0 | H17: 0 | I17: 0 | J17: 0
B18: SCADA, NETWORK CONTROL AND PROTECTION SYSTEMS | C18: Total | D18: 11212210.06 | E18: 37731711.91 | F18: 104065277 | G18: 169751844.1 | H18: 91726673.76 | I18: 86768272.01 | J18: 68471888.38
B19: OTHER | C19: Total | D19: 134369075.7 | E19: 136737514.1 | F19: 154747962.1 | G19: 27465021.72 | H19: 112152033.7 | I19: 32193401 | J19: 232169654.4
B22: ASSET REPLACEMENTS
D23: VOLUMES
D24: (0's)
B25: ASSET GROUP | D25: =dms_y4 -> 2025-26 | E25: =dms_y5 -> 2026-27 | F25: =dms_y6 -> 2027-28 | G25: =dms_y7 -> 2028-29 | H25: =dms_y8 -> 2029-30 | I25: =dms_y9 -> 2030-31 | J25: =dms_y10 -> 2031-32
B26: TRANSMISSION TOWERS | C26: Total | D26: 114 | E26: 92 | F26: 0 | G26: 0 | H26: 0 | I26: 97 | J26: 331
B27: TRANSMISSION TOWER SUPPORT STRUCTURES | C27: Total | D27: 0 | E27: 0 | F27: 0 | G27: 0 | H27: 0 | I27: 0 | J27: 0
B28: CONDUCTORS | C28: Total | D28: 0 | E28: 0 | F28: 0 | G28: 0 | H28: 0 | I28: 0 | J28: 0
B29: TRANSMISSION CABLES | C29: Total | D29: 0 | E29: 0.5 | F29: 0 | G29: 0 | H29: 0 | I29: 20.6 | J29: 0
B30: SUBSTATION SWITCHBAYS | C30: Total | D30: 2 | E30: 19 | F30: 26 | G30: 9 | H30: 2 | I30: 22 | J30: 16
B31: SUBSTATION POWER TRANSFORMERS | C31: Total | D31: 1 | E31: 2 | F31: 8 | G31: 3 | H31: 1 | I31: 5 | J31: 0
B32: SUBSTATION REACTIVE PLANT | C32: Total | D32: 0 | E32: 1 | F32: 0 | G32: 0 | H32: 0 | I32: 0 | J32: 0
B33: SCADA, NETWORK CONTROL AND PROTECTION SYSTEMS | C33: Total | D33: 32 | E33: 20 | F33: 75 | G33: 38 | H33: 26 | I33: 105 | J33: 13
B34: OTHER | C34: Total
B37: ASSET FAILURES
D38: VOLUMES
D39: (0's)
B40: ASSET GROUP | D40: =dms_y4 -> 2025-26 | E40: =dms_y5 -> 2026-27 | F40: =dms_y6 -> 2027-28 | G40: =dms_y7 -> 2028-29 | H40: =dms_y8 -> 2029-30 | I40: =dms_y9 -> 2030-31 | J40: =dms_y10 -> 2031-32
B41: TRANSMISSION TOWERS | C41: Total
B42: TRANSMISSION TOWER SUPPORT STRUCTURES | C42: Total
B43: CONDUCTORS | C43: Total
B44: TRANSMISSION CABLES | C44: Total
B45: SUBSTATION SWITCHBAYS | C45: Total
B46: SUBSTATION POWER TRANSFORMERS | C46: Total
B47: SUBSTATION REACTIVE PLANT | C47: Total
B48: SCADA, NETWORK CONTROL AND PROTECTION SYSTEMS | C48: Total
B49: OTHER | C49: Total
B52: EXPENDITURE AS INCURRED
D53: EXPENDITURE
D54: =CONCATENATE("Forecast ($0's, real ",dms_DollarReal,")") -> Forecast ($0's, real June 2027)
B55: ASSET GROUP | D55: =dms_y4 -> 2025-26 | E55: =dms_y5 -> 2026-27 | F55: =dms_y6 -> 2027-28 | G55: =dms_y7 -> 2028-29 | H55: =dms_y8 -> 2029-30 | I55: =dms_y9 -> 2030-31 | J55: =dms_y10 -> 2031-32
B56: TRANSMISSION TOWERS | C56: Total | D56: 18123071.87 | E56: 4463385.939 | F56: 22751973.78 | G56: 25621766.68 | H56: 45502747.86 | I56: 88333227.19 | J56: 63991421.56
B57: TRANSMISSION TOWER SUPPORT STRUCTURES | C57: Total | D57: 0 | E57: 0 | F57: 0 | G57: 0 | H57: 0 | I57: 0 | J57: 0
B58: CONDUCTORS | C58: Total | D58: 0 | E58: 0 | F58: 0 | G58: 0 | H58: 0 | I58: 0 | J58: 0
B59: TRANSMISSION CABLES | C59: Total | D59: 9651883.849 | E59: 16766188.18 | F59: 53124189.75 | G59: 30055869.52 | H59: 12500741.73 | I59: 15241574.94 | J59: 3482164.584
B60: SUBSTATION SWITCHBAYS | C60: Total | D60: 38521674.2 | E60: 45911737.93 | F60: 54175940.36 | G60: 57982901.78 | H60: 55989450.71 | I60: 66405973.57 | J60: 66704291.69
B61: SUBSTATION POWER TRANSFORMERS | C61: Total | D61: 14970667.48 | E61: 38488913.61 | F61: 15927854.25 | G61: 11849058.46 | H61: 9616961.907 | I61: 12736901.48 | J61: 7061368.939
B62: SUBSTATION REACTIVE PLANT | C62: Total | D62: 306695.3747 | E62: 655238.7351 | F62: 0 | G62: 0 | H62: 0 | I62: 0 | J62: 0
B63: SCADA, NETWORK CONTROL AND PROTECTION SYSTEMS | C63: Total | D63: 35111541.19 | E63: 61032952.88 | F63: 140020700.1 | G63: 112005751.5 | H63: 72943237.76 | I63: 103031750.2 | J63: 121010109.1
B64: OTHER | C64: Total | D64: 142452290.6 | E64: 108672890.5 | F64: 74482439.9 | G64: 76170994.11 | H64: 74582599.14 | I64: 85490058.1 | J64: 89034329.21

Sheet 2.3 Augex (b)
B1: =(LOOKUP(dms_Model,dms_Model_List,dms_Worksheet_List)) -> REGULATORY REPORTING STATEMENT
B2: =dms_TradingName -> Powerlink
B3: =CONCATENATE("REGULATORY PERIOD FROM ", FRCP_y1," TO ",dms_MultiYear_FinalYear_Result) -> REGULATORY PERIOD FROM 2027-28 TO 2031-32
B4: 2.3 AUGEX PROJECTS
B6: 2.3.4 - AUGEX - TOTAL EXPENDITURE
C7: EXPENDITURE
C8: =CONCATENATE("Forecast ($0's, real ",dms_DollarReal,")") -> Forecast ($0's, real June 2027)
B9: As incurred | C9: =dms_y4 -> 2025-26 | D9: =dms_y5 -> 2026-27 | E9: =dms_y6 -> 2027-28 | F9: =dms_y7 -> 2028-29 | G9: =dms_y8 -> 2029-30 | H9: =dms_y9 -> 2030-31 | I9: =dms_y10 -> 2031-32
B10: Substations | C10: 0 | D10: 0 | E10: 0 | F10: 0 | G10: 0 | H10: 0 | I10: 0
B11: Lines | C11: 12884397.17 | D11: 8987521.828 | E11: 4980430.466 | F11: 0 | G11: 0 | H11: 0 | I11: 0
B12: Other assets | C12: 13787180.86 | D12: 12514151.92 | E12: 22820112.79 | F12: 35184348.76 | G12: 48439898.73 | H12: 72067777.31 | I12: 75289630.1
B13: Total | C13: =SUM(C10:C12) -> 26671578.03 | D13: 21501673.75 | E13: 27800543.25 | F13: 35184348.76 | G13: 48439898.73 | H13: 72067777.31 | I13: 75289630.1

Sheet 2.5 Connections
B1: =(LOOKUP(dms_Model,dms_Model_List,dms_Worksheet_List)) -> REGULATORY REPORTING STATEMENT
B2: =dms_TradingName -> Powerlink
B3: =CONCATENATE("REGULATORY PERIOD FROM ", FRCP_y1," TO ",dms_MultiYear_FinalYear_Result) -> REGULATORY PERIOD FROM 2027-28 TO 2031-32
B4: 2.5 CONNECTIONS EXPENDITURE
B6: 2.5.1 - EXPENDITURE ON CONNECTION PROJECTS
C7: EXPENDITURE
C8: =CONCATENATE("Forecast ($0's, real ",dms_DollarReal,")") -> Forecast ($0's, real June 2027)
C9: =dms_y4 -> 2025-26 | D9: =dms_y5 -> 2026-27 | E9: =dms_y6 -> 2027-28 | F9: =dms_y7 -> 2028-29 | G9: =dms_y8 -> 2029-30 | H9: =dms_y9 -> 2030-31 | I9: =dms_y10 -> 2031-32
B10: DIRECT EXPENDITURE
B41: DIRECT LABOUR EXPENDITURE
B42: =IF(ISBLANK(B11),"",B11) -> 
B71: =IF(ISBLANK(B40),"",B40) -> 
B75: 2.5.2 - DESCRIPTION OF CONNECTION PROJECTS
C76: CONNECTION RATING (MVA) | D76: CONNECTION VOLTAGE (KV) | E76: UNDERGROUND / OVERHEAD (drop down) | F76: YEAR CONNECTION PROJECT COMPLETED
B77: =IF(ISBLANK(B11),"",B11) -> 
B101: =IF(ISBLANK(B35),"",B35) -> 
B106: =IF(ISBLANK(B40),"",B40) -> 

Sheet 2.6 Non-network
B1: =(LOOKUP(dms_Model,dms_Model_List,dms_Worksheet_List)) -> REGULATORY REPORTING STATEMENT
B2: =dms_TradingName -> Powerlink
B3: =CONCATENATE("REGULATORY PERIOD FROM ", FRCP_y1," TO ",dms_MultiYear_FinalYear_Result) -> REGULATORY PERIOD FROM 2027-28 TO 2031-32
B4: 2.6 NON NETWORK EXPENDITURE
B6: 2.6.1 - NON-NETWORK EXPENDITURE
D7: EXPENDITURE
D8: =CONCATENATE("Forecast ($0's, real ",dms_DollarReal,")") -> Forecast ($0's, real June 2027)
D9: =dms_y4 -> 2025-26 | E9: =dms_y5 -> 2026-27 | F9: =dms_y6 -> 2027-28 | G9: =dms_y7 -> 2028-29 | H9: =dms_y8 -> 2029-30 | I9: =dms_y9 -> 2030-31 | J9: =dms_y10 -> 2031-32
B10: OPEX
B11: INFORMATION & COMMUNICATIONS TECHNOLOGY
B12: Device expenditure | D12: 0 | E12: 0 | F12: 0 | G12: 0 | H12: 0 | I12: 0 | J12: 0
B13: Recurrent | D13: 22061490.44 | E13: 23524516.55 | F13: 24663888.77 | G13: 25273412.72 | H13: 25145638.94 | I13: 25488630.36 | J13: 26031603.17
B14: Non-recurrent | D14: 0 | E14: 0 | F14: 0 | G14: 0 | H14: 0 | I14: 0 | J14: 0
C15: Total IT and communications | D15: =SUM(D12:D14) -> 22061490.44 | E15: =SUM(E12:E14) -> 23524516.55 | F15: 24663888.77 | G15: 25273412.72 | H15: 25145638.94 | I15: 25488630.36 | J15: 26031603.17
B16: MOTOR VEHICLES
B17: Car | D17: 530123.3748 | E17: 565278.948 | F17: 592657.3268 | G17: 607303.794 | H17: 604233.4725 | I17: 612475.335 | J17: 625522.6211
B18: Light commercial vehicle | D18: 3774712.471 | E18: 4025035.672 | F18: 4219981.817 | G18: 4324271.129 | H18: 4302409.085 | I18: 4361094.784 | J18: 4453997.222
B19: Elevated work platform (LCV) | D19: 0 | E19: 0 | F19: 0 | G19: 0 | H19: 0 | I19: 0 | J19: 0
B20: Elevated work platform (HCV) | D20: 0 | E20: 0 | F20: 0 | G20: 0 | H20: 0 | I20: 0 | J20: 0
B21: Heavy commercial vehicle | D21: 379531.6032 | E21: 404700.5576 | F21: 424301.5797 | G21: 434787.4354 | H21: 432589.2979 | I21: 438489.9004 | J21: 447830.8532
B23: BUILDINGS AND PROPERTY
B24: Total buildings and property expenditure | D24: 8855706.308 | E24: 9442979.848 | F24: 9900335.425 | G24: 10145004.53 | H24: 10093714.84 | I24: 10231395.08 | J24: 10449349.88
B26: OTHER
B27: Other expenditure | D27: 486784.8662 | E27: 519066.4101 | F27: 544206.5588 | G27: 557655.6518 | H27: 554836.3344 | I27: 562404.4103 | J27: 574385.0581
B28: Other - TNSP nominated
B40: CAPEX
B41: IT & COMMUNICATIONS
B42: Recurrent
B43: Non Network - IT and Communications - Recurrent | D43: 1587517.5 | E43: 1573556.298 | F43: 1645252.3 | G43: 2531658.854 | H43: 2296099.106 | I43: 1261556.601 | J43: 2007390.014
B53: Non-recurrent
B54: Non Network - IT and Communications - Non-Recurrent | D54: 11034697.52 | E54: 10369091.56 | F54: 1875194.787 | G54: 2040840 | H54: 2225194.927 | I54: 2015808.178 | J54: 1522970.888
B55: Non Network - IT and Communications - Device expenditure | D55: 1889124.438 | E55: 1825325.305 | F55: 698252.113 | G55: 497489.7942 | H55: 1021097.801 | I55: 1246512.073 | J55: 644739.6543
C64: Total IT and communications | D64: =SUM(D42:D63) -> 14511339.46 | E64: =SUM(E42:E63) -> 13767973.17 | F64: 4218699.2 | G64: 5069988.648 | H64: 5542391.834 | I64: 4523876.852 | J64: 4175100.556
B65: MOTOR VEHICLES
B66: Car | D66: 302185.1412 | E66: 432772.0798 | F66: 703005.1886 | G66: 571753.5805 | H66: 636480.401 | I66: 242725.5766 | J66: 577147.4822
B67: Light commercial vehicle | D67: 7105373.489 | E67: 3340459.491 | F67: 3235957.596 | G67: 4688199.564 | H67: 5836581.904 | I67: 5169155.799 | J67: 4289529.987
B68: Elevated work platform (LCV) | D68: 0 | E68: 0 | F68: 0 | G68: 0 | H68: 0 | I68: 0 | J68: 0
B69: Elevated work platform (HCV) | D69: 0 | E69: 0 | F69: 0 | G69: 0 | H69: 0 | I69: 0 | J69: 0
B70: Heavy commercial vehicle | D70: 445225.8647 | E70: 0 | F70: 359593.4469 | G70: 0 | H70: 0 | I70: 530400.3341 | J70: 436574.7175
B72: BUILDINGS AND PROPERTY
B73: Total buildings and property expenditure | D73: 6369952.049 | E73: 14127252.14 | F73: 46215203.05 | G73: 72258146 | H73: 35442266.32 | I73: 5373615.884 | J73: 6257384.683
B75: OTHER
B76: Other expenditure | D76: 3723642.666 | E76: 3606433.998 | F76: 1931214.568 | G76: 1988083.306 | H76: 2068084.371 | I76: 2436497.03 | J76: 2217139.343
B77: Other - TNSP nominated
B78: Vehicles - Material Handling | D78: 1943907.401 | E78: 198353.8699 | F78: 0 | G78: 845044.6002 | H78: 692217.3852 | I78: 0 | J78: 323634.1022
B79: Vehicles - Trailer | D79: 734264.7908 | E79: 27048.25499 | F79: 93494.29619 | G79: 35959.34469 | H79: 53939.01703 | I79: 26969.50852 | J79: 53939.01703
B80: Vehicles - Plant | D80: 81184.06778 | E80: 0 | F80: 0 | G80: 0 | H80: 0 | I80: 0 | J80: 0
B81: Vehicles - ATV | D81: 31571.58192 | E81: 0 | F81: 0 | G81: 0 | H81: 0 | I81: 0 | J81: 0
B92: 2.6.3 - ANNUAL DESCRIPTOR METRICS
B93: IT & COMMUNICATIONS
D94: VOLUMES
D95: (0's)
D96: =dms_y4 -> 2025-26 | E96: =dms_y5 -> 2026-27 | F96: =dms_y6 -> 2027-28 | G96: =dms_y7 -> 2028-29 | H96: =dms_y8 -> 2029-30 | I96: =dms_y9 -> 2030-31 | J96: =dms_y10 -> 2031-32
B97: Number of devices | D97: 458 | E97: 497 | F97: 355 | G97: 288 | H97: 589 | I97: 715 | J97: 352
B99: MOTOR VEHICLES
D100: VOLUMES
D101: (0's or %)
C102: Units | D102: =dms_y4 -> 2025-26 | E102: =dms_y5 -> 2026-27 | F102: =dms_y6 -> 2027-28 | G102: =dms_y7 -> 2028-29 | H102: =dms_y8 -> 2029-30 | I102: =dms_y9 -> 2030-31 | J102: =dms_y10 -> 2031-32
B103: CAR
B104: Number purchased | C104: 0's | D104: 5 | E104: 7 | F104: 10 | G104: 9 | H104: 9 | I104: 5 | J104: 8
B105: Number leased | C105: 0's | D105: 0 | E105: 0 | F105: 0 | G105: 0 | H105: 0 | I105: 0 | J105: 0
B106: Number in fleet | C106: 0's | D106: 65 | E106: 65 | F106: 65 | G106: 65 | H106: 65 | I106: 65 | J106: 65
B107: Proportion of total fleet expenditure allocated as regulatory expenditure | C107: % | D107: 0.4662756598 | E107: 0.4485190409 | F107: 0.4061302682 | G107: 0.4061302682 | H107: 0.3873325213 | I107: 0.379022646 | J107: 0.3710618436
B108: LIGHT COMMERCIAL VEHICLE
B109: Number purchased | C109: 0's | D109: 108 | E109: 38 | F109: 37 | G109: 50 | H109: 70 | I109: 52 | J109: 51
B110: Number leased | C110: 0's | D110: 0 | E110: 0 | F110: 0 | G110: 0 | H110: 0 | I110: 0 | J110: 0
B111: Number in fleet | C111: 0's | D111: 337 | E111: 337 | F111: 337 | G111: 337 | H111: 337 | I111: 337 | J111: 337
B112: Proportion of total fleet expenditure allocated as regulatory expenditure | C112: % | D112: 0.4662756598 | E112: 0.4485190409 | F112: 0.4061302682 | G112: 0.4061302682 | H112: 0.3873325213 | I112: 0.379022646 | J112: 0.3710618436
B113: ELEVATED WORK PLATFORM (LCV)
B114: Number purchased | C114: 0's | D114: 0 | E114: 0 | F114: 0 | G114: 0 | H114: 0 | I114: 0 | J114: 0
B115: Number leased | C115: 0's | D115: 0 | E115: 0 | F115: 0 | G115: 0 | H115: 0 | I115: 0 | J115: 0
B116: Number in fleet | C116: 0's | D116: 0 | E116: 0 | F116: 0 | G116: 0 | H116: 0 | I116: 0 | J116: 0
B117: Proportion of total fleet expenditure allocated as regulatory expenditure | C117: % | D117: 0 | E117: 0 | F117: 0 | G117: 0 | H117: 0 | I117: 0 | J117: 0
B118: ELEVATED WORK PLATFORM (HCV)
B119: Number purchased | C119: 0's | D119: 0 | E119: 0 | F119: 0 | G119: 0 | H119: 0 | I119: 0 | J119: 0
B120: Number leased | C120: 0's | D120: 0 | E120: 0 | F120: 0 | G120: 0 | H120: 0 | I120: 0 | J120: 0
B121: Number in fleet | C121: 0's | D121: 0 | E121: 0 | F121: 0 | G121: 0 | H121: 0 | I121: 0 | J121: 0
B122: Proportion of total fleet expenditure allocated as regulatory expenditure | C122: % | D122: 0 | E122: 0 | F122: 0 | G122: 0 | H122: 0 | I122: 0 | J122: 0
B123: HEAVY COMMERCIAL VEHICLE
B124: Number purchased | C124: 0's | D124: 2 | E124: 0 | F124: 2 | G124: 0 | H124: 0 | I124: 2 | J124: 2
B125: Number leased | C125: 0's | D125: 0 | E125: 0 | F125: 0 | G125: 0 | H125: 0 | I125: 0 | J125: 0
B126: Number in fleet | C126: 0's | D126: 11 | E126: 11 | F126: 11 | G126: 11 | H126: 11 | I126: 11 | J126: 11
B127: Proportion of total fleet expenditure allocated as regulatory expenditure | C127: % | D127: 0.4662756598 | E127: 0.4485190409 | F127: 0.4061302682 | G127: 0.4061302682 | H127: 0.3873325213 | I127: 0.379022646 | J127: 0.3710618436

Sheet 2.10 Overheads
B1: =(LOOKUP(dms_Model,dms_Model_List,dms_Worksheet_List)) -> REGULATORY REPORTING STATEMENT
B2: =dms_TradingName -> Powerlink
B3: =CONCATENATE("REGULATORY PERIOD FROM ", FRCP_y1," TO ",dms_MultiYear_FinalYear_Result) -> REGULATORY PERIOD FROM 2027-28 TO 2031-32
B4: 2.10 OVERHEADS
B6: 2.10.1 - NETWORK OVERHEADS EXPENDITURE
D7: EXPENDITURE
D8: =CONCATENATE("Forecast ($0's, real ",dms_DollarReal,")") -> Forecast ($0's, real June 2027)
D9: =dms_y4 -> 2025-26 | E9: =dms_y5 -> 2026-27 | F9: =dms_y6 -> 2027-28 | G9: =dms_y7 -> 2028-29 | H9: =dms_y8 -> 2029-30 | I9: =dms_y9 -> 2030-31 | J9: =dms_y10 -> 2031-32
B10: OPEX
B11: Prescribed transmission services | C11: Total | D11: 107799024.6 | E11: 110966036.5 | F11: 113572342.4 | G11: 114532034.4 | H11: 115841632.5 | I11: 117597570.4 | J11: 119753801.9
B12: CAPEX
B13: Prescribed transmission services | C13: Total | D13: 0 | E13: 0 | F13: 0 | G13: 0 | H13: 0 | I13: 0 | J13: 0
B14: OTHER TRANSMISSION SERVICES
B15: Negotiated transmission services | C15: Total
B16: Non-regulated transmission services | C16: Total
B20: 2.10.2 - CORPORATE OVERHEADS EXPENDITURE
D21: EXPENDITURE
D22: =CONCATENATE("Forecast ($0's, real ",dms_DollarReal,")") -> Forecast ($0's, real June 2027)
D23: =dms_y4 -> 2025-26 | E23: =dms_y5 -> 2026-27 | F23: =dms_y6 -> 2027-28 | G23: =dms_y7 -> 2028-29 | H23: =dms_y8 -> 2029-30 | I23: =dms_y9 -> 2030-31 | J23: =dms_y10 -> 2031-32
B24: OPEX
B25: Prescribed transmission services | C25: Total | D25: 78005126.33 | E25: 82899141.44 | F25: 108664191 | G25: 115291282 | H25: 110543302.5 | I25: 111609541.6 | J25: 114607794.3
B26: CAPEX
B27: Prescribed transmission services | C27: Total | D27: 52265263.81 | E27: 54208207.49 | F27: 72448503.75 | G27: 70704536.31 | H27: 60207748.68 | I27: 75145895.97 | J27: 72426194.31
B28: OTHER TRANSMISSION SERVICES
B29: Negotiated transmission services | C29: Total
B30: Non-regulated transmission services | C30: Total
B34: 2.10.3 - CORPORATE OVERHEADS EXPENDITURE - EASEMENT LEVY ONLY
D35: EXPENDITURE
D36: =CONCATENATE("Forecast ($0's, real ",dms_DollarReal,")") -> Forecast ($0's, real June 2027)
D37: =dms_y4 -> 2025-26 | E37: =dms_y5 -> 2026-27 | F37: =dms_y6 -> 2027-28 | G37: =dms_y7 -> 2028-29 | H37: =dms_y8 -> 2029-30 | I37: =dms_y9 -> 2030-31 | J37: =dms_y10 -> 2031-32
B38: OPEX
B39: Prescribed transmission services | C39: Total
B40: CAPEX
B41: Prescribed transmission services | C41: Total
B42: OTHER TRANSMISSION SERVICES
B43: Negotiated transmission services | C43: Total
B44: Non-regulated transmission services | C44: Total

Sheet 2.14 Forecast price changes
B1: =(LOOKUP(dms_Model,dms_Model_List,dms_Worksheet_List)) -> REGULATORY REPORTING STATEMENT
B2: =dms_TradingName -> Powerlink
B3: =CONCATENATE("REGULATORY PERIOD FROM ", FRCP_y1," TO ",dms_MultiYear_FinalYear_Result) -> REGULATORY PERIOD FROM 2027-28 TO 2031-32
B4: 2.14 FORECAST PRICE CHANGES
B6: 2.14.2 - FORECAST CAPEX AND OPEX PRICE CHANGES
C7: Price changes (% YoY real) Current regulatory period | E7: Price changes (%YoY real) Forthcoming regulatory period
C8: FORECAST
C9: =dms_y4 -> 2025-26 | D9: =dms_y5 -> 2026-27 | E9: =dms_y6 -> 2027-28 | F9: =dms_y7 -> 2028-29 | G9: =dms_y8 -> 2029-30 | H9: =dms_y9 -> 2030-31 | I9: =dms_y10 -> 2031-32
B10: OPEX
B11: Internal labour | C11: 0.017 | D11: 0.0115 | E11: 0.01 | F11: 0.01 | G11: 0.0125 | H11: 0.01204923379 | I11: 0.01059909646
B12: Non-labour | C12: 0 | D12: 0 | E12: 0 | F12: 0 | G12: 0 | H12: 0 | I12: 0
B17: CAPEX
B18: Internal labour | C18: 0.017 | D18: 0.0115 | E18: 0.01 | F18: 0.01 | G18: 0.0125 | H18: 0.012 | I18: 0.0106
B19: External labour | C19: 0.004 | D19: 0.007 | E19: 0.009 | F19: 0.011 | G19: 0.013 | H19: 0.011 | I19: 0.01
B20: Materials | C20: 0 | D20: 0 | E20: 0 | F20: 0 | G20: 0 | H20: 0 | I20: 0

Sheet 2.16 Opex Summary
B1: =(LOOKUP(dms_Model,dms_Model_List,dms_Worksheet_List)) -> REGULATORY REPORTING STATEMENT
B2: =dms_TradingName -> Powerlink
B3: =CONCATENATE("REGULATORY PERIOD FROM ", FRCP_y1," TO ",dms_MultiYear_FinalYear_Result) -> REGULATORY PERIOD FROM 2027-28 TO 2031-32
B4: 2.16 OPEX SUMMARY
B6: Instructions | K6: IMPORTANT!
B7: =CONCATENATE("Complete the tables below in accordance with the regulatory information notice. ",dms_TradingName, "'s total forecast opex must reconcile to Table 2.16.1. If ",dms_TradingName," did not forecast its total opex using a Base Year approach, total forecast opex must reconcile to Table 2.16.2") -> Complete the tables below in accordance with the regulatory information notice. Powerlink's total forecast opex must reconcile to Table 2.16.1. If Powerlink did not forecast its total opex using a Base Year approach, total forecast opex must reconcile to Table 2.16.2 | K7: =CONCATENATE("Has ",dms_TradingName," used a base-step-trend model to derive its opex forecast? ") -> Has Powerlink used a base-step-trend model to derive its opex forecast? | M7: Yes
B8: The total step changes and category specific forecasts in Table 2.16.1 must reconcile (in each year) to the total step changes and category specific forecasts for each year in Tables 2.17.1 and 2.17.5 of worksheet 2.17 Step Changes.") | K8: Yes / No
K9: Please nominate the base year. | M9: 2025-26
B11: 2.16.1 - PRESCRIBED TRANSMISSION SERVICES - OPEX BY DRIVER
C12: EXPENDITURE
C13: =CONCATENATE("Forecast ($0's, real ",dms_DollarReal,")") -> Forecast ($0's, real June 2027)
C14: =CRCP_y1 -> 2022-23 | D14: =CRCP_y2 -> 2023-24 | E14: =CRCP_y3 -> 2024-25 | F14: =dms_y4 -> 2025-26 | G14: =dms_y5 -> 2026-27 | H14: =dms_y6 -> 2027-28 | I14: =dms_y7 -> 2028-29 | J14: =dms_y8 -> 2029-30 | K14: =dms_y9 -> 2030-31 | L14: =dms_y10 -> 2031-32
B15: Base year total opex, excluding category specific | F15: 318843432.9 | G15: 318843432.9 | H15: 318843432.9 | I15: 318843432.9 | J15: 318843432.9 | K15: 318843432.9 | L15: 318843432.9
B16: Increment from base year to final year | G16: -25220.48818 | H16: -25220.48818 | I16: -25220.48818 | J16: -25220.48818 | K16: -25220.48818 | L16: -25220.48818
B17: Price growth | H17: 2238829.965 | I17: 4497458.376 | J17: 7349418.49 | K17: 10141049.58 | L17: 12638668.45
B18: Output growth | H18: 1352114.971 | I18: 3270638.748 | J18: 5690977.887 | K18: 9393438.629 | L18: 14716059.47
B19: Productivity growth | H19: -1341040.068 | I19: -2690149.945 | J19: -4049982.868 | K19: -5424793.32 | L19: -6815430.575
B20: Step changes | H20: 16545508.13 | I20: 22009452.51 | J20: 15694172.66 | K20: 15012449.3 | L20: 15846875.38
B21: Category specific | F21: 428792.2556 | G21: 428792.2556 | H21: 19320313 | I21: 19849311 | J21: 20402992 | K21: 20929180 | L21: 21523013
B22: Total opex | C22: =SUM(C15:C21) -> 0 | D22: 0 | E22: 0 | F22: 319272225.1 | G22: 319247004.6 | H22: 356933938.4 | I22: 365754923.1 | J22: 363905790.6 | K22: 368869536.6 | L22: 376727398.1
B26: 2.16.2 - PRESCRIBED TRANSMISSION SERVICES - OPEX BY CATEGORY
C27: EXPENDITURE
C28: =CONCATENATE("Forecast ($0's, real ",dms_DollarReal,")") -> Forecast ($0's, real June 2027)
C29: =CRCP_y1 -> 2022-23 | D29: =CRCP_y2 -> 2023-24 | E29: =CRCP_y3 -> 2024-25 | F29: =CRCP_y4 -> 2025-26 | G29: =CRCP_y5 -> 2026-27 | H29: =FRCP_y1 -> 2027-28 | I29: =FRCP_y2 -> 2028-29 | J29: =FRCP_y3 -> 2029-30 | K29: =FRCP_y4 -> 2030-31 | L29: =FRCP_y5 -> 2031-32
B60: Total opex | C60: =SUM(C30:C59) -> 0 | D60: 0 | E60: 0 | F60: 0 | G60: 0 | H60: 0 | I60: 0 | J60: 0 | K60: 0 | L60: 0

Sheet 2.17 Step Changes
B1: =(LOOKUP(dms_Model,dms_Model_List,dms_Worksheet_List)) -> REGULATORY REPORTING STATEMENT
B2: =dms_TradingName -> Powerlink
B3: =CONCATENATE("REGULATORY PERIOD FROM ", FRCP_y1," TO ",dms_MultiYear_FinalYear_Result) -> REGULATORY PERIOD FROM 2027-28 TO 2031-32
B4: 2.17 STEP CHANGES
B6: 2.17.1 - STEP CHANGES FOR PRESCRIBED TRANSMISSION SERVICES - FORECAST OPEX
D7: EXPENDITURE
D8: =CONCATENATE("Forecast ($0's, real ",dms_DollarReal,")") -> Forecast ($0's, real June 2027)
B9: Step change | C9: Description | D9: =dms_y4 -> 2025-26 | E9: =dms_y5 -> 2026-27 | F9: =dms_y6 -> 2027-28 | G9: =dms_y7 -> 2028-29 | H9: =dms_y8 -> 2029-30 | I9: =dms_y9 -> 2030-31 | J9: =dms_y10 -> 2031-32
B10: Overnight Network Monitoring | C10: Network Operations | D10: 0 | E10: 0 | F10: 1759212.711 | G10: 1756110.053 | H10: 1750314.499 | I10: 1744047.423 | J10: 1737499.836
B11: Security Uplift | C11: Routine | D11: 0 | E11: 0 | F11: 3261953.129 | G11: 3268603.937 | H11: 3261216.544 | I11: 3292623.611 | J11: 3281593.256
B12: Cloud Based Services (IT & OT) | C12: IT Support | D12: 0 | E12: 0 | F12: 11524342.29 | G12: 16984738.52 | H12: 10682641.62 | I12: 9975778.262 | J12: 10827782.29
B24: Total | D24: =SUM(D10:D23) -> 0 | E24: =SUM(E10:E23) -> 0 | F24: 16545508.13 | G24: 22009452.51 | H24: 15694172.66 | I24: 15012449.3 | J24: 15846875.38
B25: Check | F25: =IF(ROUND(F$24,0)-ROUND('2.16 Opex Summary'!H20,0)=0,"OK","Error") -> OK | G25: =IF(ROUND(G$24,0)-ROUND('2.16 Opex Summary'!I20,0)=0,"OK","Error") -> OK | H25: =IF(ROUND(H$24,0)-ROUND('2.16 Opex Summary'!J20,0)=0,"OK","Error") -> OK | I25: =IF(ROUND(I$24,0)-ROUND('2.16 Opex Summary'!K20,0)=0,"OK","Error") -> OK | J25: =IF(ROUND(J$24,0)-ROUND('2.16 Opex Summary'!L20,0)=0,"OK","Error") -> OK
B28: 2.17.2 - STEP CHANGES FOR PRESCRIBED TRANSMISSION SERVICES - FORECAST CAPEX
D29: EXPENDITURE
D30: =CONCATENATE("Forecast ($0's, real ",dms_DollarReal,")") -> Forecast ($0's, real June 2027)
B31: Step change | C31: Description | D31: =dms_y4 -> 2025-26 | E31: =dms_y5 -> 2026-27 | F31: =dms_y6 -> 2027-28 | G31: =dms_y7 -> 2028-29 | H31: =dms_y8 -> 2029-30 | I31: =dms_y9 -> 2030-31 | J31: =dms_y10 -> 2031-32
B47: Total | D47: =SUM(D32:D46) -> 0 | E47: 0 | F47: 0 | G47: 0 | H47: 0 | I47: 0 | J47: 0
B50: 2.17.5 - CATEGORY SPECIFIC OPEX FOR PRESCRIBED TRANSMISSION SERVICES
D51: EXPENDITURE
D52: =CONCATENATE("Forecast ($0's, real ",dms_DollarReal,")") -> Forecast ($0's, real June 2027)
B53: Category | C53: Description | D53: =dms_y4 -> 2025-26 | E53: =dms_y5 -> 2026-27 | F53: =dms_y6 -> 2027-28 | G53: =dms_y7 -> 2028-29 | H53: =dms_y8 -> 2029-30 | I53: =dms_y9 -> 2030-31 | J53: =dms_y10 -> 2031-32
B54: Debt Raising | C54: Zero Base | D54: 428792.2556 | E54: 566501.155 | F54: 4299471 | G54: 4348604 | H54: 4406009 | I54: 4418948 | J54: 4481979
B55: AEMO Participant & Cyber Fees | C55: AEMO Participant Fee | D55: 0 | E55: 0 | F55: 15020842 | G55: 15500707 | H55: 15996983 | I55: 16510232 | J55: 17041034
B68: Total | D68: =SUM(D54:D67) -> 428792.2556 | E68: =SUM(E54:E67) -> 566501.155 | F68: 19320313 | G68: 19849311 | H68: 20402992 | I68: 20929180 | J68: 21523013
B69: Check | F69: =IF(ROUND(F$68,0)-ROUND('2.16 Opex Summary'!H21,0)=0,"OK","Error") -> OK | G69: =IF(ROUND(G$68,0)-ROUND('2.16 Opex Summary'!I21,0)=0,"OK","Error") -> OK | H69: =IF(ROUND(H$68,0)-ROUND('2.16 Opex Summary'!J21,0)=0,"OK","Error") -> OK | I69: =IF(ROUND(I$68,0)-ROUND('2.16 Opex Summary'!K21,0)=0,"OK","Error") -> OK | J69: =IF(ROUND(J$68,0)-ROUND('2.16 Opex Summary'!L21,0)=0,"OK","Error") -> OK

Sheet 3.1 Revenue
B1: =(LOOKUP(dms_Model,dms_Model_List,dms_Worksheet_List)) -> REGULATORY REPORTING STATEMENT
B2: =dms_TradingName -> Powerlink
B3: =CONCATENATE("REGULATORY PERIOD FROM ", FRCP_y1," TO ",dms_MultiYear_FinalYear_Result) -> REGULATORY PERIOD FROM 2027-28 TO 2031-32
B4: 3.1 REVENUE
B7: 3.1.1 - REVENUE GROUPING BY CHARGEABLE QUANTITY
C8: REVENUE
C9: =CONCATENATE("Forecast ($0's, real ",dms_DollarReal,")") -> Forecast ($0's, real June 2027)
A10: Disaggregation of this table now collected in 8.8.1 - Revenue from Prescribed Services | B10: REVENUE FROM PRESCRIBED SERVICES | C10: =dms_y4 -> 2025-26 | D10: =dms_y5 -> 2026-27 | E10: =dms_y6 -> 2027-28 | F10: =dms_y7 -> 2028-29 | G10: =dms_y8 -> 2029-30 | H10: =dms_y9 -> 2030-31 | I10: =dms_y10 -> 2031-32
A11: TREV01 | B11: Total | C11: 850623605.3 | D11: 927116683.9 | E11: 975407073.1 | F11: 1004366921 | G11: 1046586896 | H11: 1108070661 | I11: 1189031333
B14: 3.1.2 - REVENUE GROUPING BY TYPE OF CONNECTED EQUIPMENT
C15: REVENUE
C16: =CONCATENATE("Forecast ($0's, real ",dms_DollarReal,")") -> Forecast ($0's, real June 2027)
C17: =dms_y4 -> 2025-26 | D17: =dms_y5 -> 2026-27 | E17: =dms_y6 -> 2027-28 | F17: =dms_y7 -> 2028-29 | G17: =dms_y8 -> 2029-30 | H17: =dms_y9 -> 2030-31 | I17: =dms_y10 -> 2031-32
A18: TREV0201 | B18: From other connected transmission networks | C18: 11881017.06 | D18: 12805975.88 | E18: 13645315.99 | F18: 14531145.69 | G18: 15232629.27 | H18: 16288945.92 | I18: 17532764.18
A19: TREV0202 | B19: From distribution networks | C19: 639857122.4 | D19: 689671164.7 | E19: 734874176.2 | F19: 782580903.5 | G19: 820359593.8 | H19: 877247967.2 | I19: 944234317.8
A20: TREV0203 | B20: From directly connected end–users | C20: 114583862.2 | D20: 123504424.6 | E20: 131599256.2 | F20: 140142446.3 | G20: 146907750.8 | H20: 157095165 | I20: 169090897.3
A21: TREV0204 | B21: From generators | C21: 7018570.36 | D21: 7564978.84 | E21: 8060809.09 | F21: 8584102.51 | G21: 8998495.64 | H21: 9622502.22 | I21: 10357273.15
A22: TREV0205 | B22: Other revenue | C22: 77283033.26 | D22: 93570139.82 | E22: 87227515.69 | F22: 58528322.77 | G22: 55088426.57 | H22: 47816080.13 | I22: 47816080.13
A23: TREV02 | B23: Total | C23: =SUM(C18:C22) -> 850623605.3 | D23: 927116683.9 | E23: 975407073.1 | F23: 1004366921 | G23: 1046586896 | H23: 1108070661 | I23: 1189031333
B26: 3.1.3 - REVENUE (penalties) ALLOWED (deducted) THROUGH INCENTIVE SCHEMES
C27: REVENUE
C28: =CONCATENATE("Forecast ($0's, real ",dms_DollarReal,")") -> Forecast ($0's, real June 2027)
C29: =dms_y4 -> 2025-26 | D29: =dms_y5 -> 2026-27 | E29: =dms_y6 -> 2027-28 | F29: =dms_y7 -> 2028-29 | G29: =dms_y8 -> 2029-30 | H29: =dms_y9 -> 2030-31 | I29: =dms_y10 -> 2031-32
A30: TREV0301 | B30: EBSS | C30: 2723545.764 | D30: 7013715.55 | E30: -79757872.16 | F30: -74166350.5 | G30: -50274785.9 | H30: -20789741.32 | I30: 0
A31: TREV0302 | B31: STPIS | C31: 7294232 | D31: -7430000 | E31: 0 | F31: 0 | G31: 0 | H31: 0 | I31: 0
A32: TREV0312 | B32: CESS | C32: -345467.9293 | D32: -345467.9293 | E32: -27275814.94 | F32: -27275814.94 | G32: -27275814.94 | H32: -27275814.94 | I32: -27275814.94
A33: TREV0303 | B33: Other | E33: -29067.03537 | F33: -29067.03537 | G33: -29067.03537 | H33: -29067.03537 | I33: -29067.03537
A34: TREV03 | B34: Total | C34: =SUM(C30:C33) -> 9672309.835 | D34: -761752.3792 | E34: -107062754.1 | F34: -101471232.5 | G34: -77579667.87 | H34: -48094623.29 | I34: -27304881.98

Sheet 3.2 Operating expenditure
B1: =(LOOKUP(dms_Model,dms_Model_List,dms_Worksheet_List)) -> REGULATORY REPORTING STATEMENT
B2: =dms_TradingName -> Powerlink
B3: =CONCATENATE("REGULATORY PERIOD FROM ", FRCP_y1," TO ",dms_MultiYear_FinalYear_Result) -> REGULATORY PERIOD FROM 2027-28 TO 2031-32
B4: 3.2 OPERATING EXPENDITURE
B7: 3.2.1 - OPEX CATEGORIES
C8: EXPENDITURE
C9: =CONCATENATE("Forecast ($0's, real ",dms_DollarReal,")") -> Forecast ($0's, real June 2027)
C10: =dms_y4 -> 2025-26 | D10: =dms_y5 -> 2026-27 | E10: =dms_y6 -> 2027-28 | F10: =dms_y7 -> 2028-29 | G10: =dms_y8 -> 2029-30 | H10: =dms_y9 -> 2030-31 | I10: =dms_y10 -> 2031-32
B11: OPEX CATEGORIES AND COST ALLOCATIONS - approved CAM
B12: Field Maintenance- Routine | C12: 39565688.43 | D12: 40412266.9 | E12: 39841752.23 | F12: 40192687.61 | G12: 40678190.55 | H12: 41313448.7 | I12: 42111306.27
B13: Field Maintenance - Condition-Based | C13: 45434611.96 | D13: 50660094.44 | E13: 45751625.31 | F13: 46154616.22 | G13: 46712135.59 | H13: 47441623.92 | I13: 48357830.62
B14: Field Maintenance - Corrective | C14: 31071378.69 | D14: 37592992.33 | E14: 31288174.69 | F14: 31563768.17 | G14: 31945039.07 | H14: 32443914.43 | I14: 33070480.92
B15: Operational Refurbishment | C15: 42393419.62 | D15: 45471091.82 | E15: 42689213.5 | F15: 43065229.97 | G15: 43585431.46 | H15: 44266091.06 | I15: 45120970.93
B16: Maintenance Support | C16: 30018332.89 | D16: 31213244.81 | E16: 33489734.54 | F16: 33762638.65 | G16: 34123600.43 | H16: 34636975.38 | I16: 35231276.44
B17: Network Operations | C17: 36619713.07 | D17: 41127445.73 | E17: 38634434.47 | F17: 38956137.3 | G17: 39399695.19 | H17: 39981386.33 | I17: 40713289.57
B18: Asset Management Support | C18: 41160978.64 | D18: 38625345.93 | E18: 41448173.35 | F18: 41813258.45 | G18: 42318336.89 | H18: 42979208.68 | I18: 43809235.9
B19: Corporate Support | C19: 35533643.99 | D19: 36470582.27 | E19: 47305917.08 | F19: 53081485.71 | G19: 47215415.3 | H19: 47079072.47 | I19: 48647626.31
B20: Self Insurance | C20: 1963913.501 | D20: 2258172.919 | E20: 1977616.42 | F20: 1995035.724 | G20: 2019134.528 | H20: 2050666.699 | I20: 2090269.783
B21: Insurance Premiums | C21: 9120056.738 | D21: 9856848.501 | E21: 9183690.599 | F21: 9264582.672 | G21: 9376493.131 | H21: 9522922.794 | I21: 9706832.302
B22: AEMC Levy | C22: 5961695.346 | D22: 6190441.878 | E22: 6003292.203 | F22: 6056170.59 | G22: 6129325.405 | H22: 6225045.099 | I22: 6345265.016
B23: Network Support | C23: 0 | D23: 0 | E23: 0 | F23: 0 | G23: 0 | H23: 0 | I23: 0
B24: Debt Raising Costs | C24: 428792.2556 | D24: 566501.155 | E24: 4299471 | F24: 4348604 | G24: 4406009 | H24: 4418948 | I24: 4481979
B25: AEMO Participant & Cyber Fees | C25: 0 | D25: 0 | E25: 15020842 | F25: 15500707 | G25: 15996983 | H25: 16510232 | I25: 17041034
B47: Total | C47: =SUM(C12:C46) -> 319272225.1 | D47: 340445028.7 | E47: 356933937.4 | F47: 365754922.1 | G47: 363905789.5 | H47: 368869535.5 | I47: 376727397.1
B51: 3.2.3 - OPEX CATEGORIES - Revised CAM
C52: EXPENDITURE
C53: =CONCATENATE("Forecast ($0's, real ",dms_DollarReal,")") -> Forecast ($0's, real June 2027)
C54: =dms_y1 -> 2022-23 | D54: =dms_y2 -> 2023-24 | E54: =dms_y3 -> 2024-25 | F54: =dms_y4 -> 2025-26 | G54: =dms_y5 -> 2026-27 | H54: =dms_y6 -> 2027-28 | I54: =dms_y7 -> 2028-29
B55: OPEX CATEGORIES AND COST ALLOCATIONS - revised CAM
B92: Total | C92: =SUM(C56:C91) -> 0 | D92: 0 | E92: 0 | F92: 0 | G92: 0 | H92: 0 | I92: 0

Sheet 3.3 Assets (RAB)
B1: =(LOOKUP(dms_Model,dms_Model_List,dms_Worksheet_List)) -> REGULATORY REPORTING STATEMENT
B2: =dms_TradingName -> Powerlink
B3: =CONCATENATE("REGULATORY PERIOD FROM ", FRCP_y1," TO ",dms_MultiYear_FinalYear_Result) -> REGULATORY PERIOD FROM 2027-28 TO 2031-32
B4: 3.3 ASSETS
B6: 3.3.1 - Benchmarking ASSET BASE VALUES
C7: VALUES
C8: =CONCATENATE("Forecast ($0's, real ",dms_DollarReal,")") -> Forecast ($0's, real June 2027)
C9: =dms_y4 -> 2025-26 | D9: =dms_y5 -> 2026-27 | E9: =dms_y6 -> 2027-28 | F9: =dms_y7 -> 2028-29 | G9: =dms_y8 -> 2029-30 | H9: =dms_y9 -> 2030-31 | I9: =dms_y10 -> 2031-32
B10: For total asset base:
A11: TRAB0101 | B11: Opening value | C11: =C25+C33+C41+C49+C57+C65 -> 7821152927 | D11: =D25+D33+D41+D49+D57+D65 -> 8046333253 | E11: 8322630683 | F11: 8417738604 | G11: 8528859294 | H11: 8553906092 | I11: 8675917488
A12: TRAB0102 | B12: Inflation addition | C12: =C26+C34+C42+C50+C58+C66 -> 258098046.6 | D12: 257482664.1 | E12: 0 | F12: 0 | G12: 0 | H12: 0 | I12: 0
A13: TRAB0103 | B13: Straight line depreciation | C13: 393664647.1 | D13: 403593248.5 | E13: 427294174.9 | F13: 398505377.4 | G13: 408161669.7 | H13: 420583714.6 | I13: 434739277.5
A14: TRAB0104 | B14: Gross capex | C14: 363255825.9 | D14: 389076043.1 | E14: 523659909.6 | F14: 511161385.2 | G14: 434948071.8 | H14: 544020439.9 | I14: 524741624.9
A15: TRAB0106 | B15: Disposals | C15: 2508900.181 | D15: 3799205.518 | E15: 1257813.858 | F15: 1535318.114 | G15: 1739603.58 | H15: 1425329.198 | I15: 1354497.619
A16: TRAB0108 | B16: Capex timing adjustment | C16: 0 | D16: 37131177.67 | E16: 0 | F16: 0 | G16: 0 | H16: 0 | I16: 0
A17: TRAB0107 | B17: Closing value | C17: 8046333253 | D17: 8322630683 | E17: 8417738604 | F17: 8528859294 | G17: 8553906092 | H17: 8675917488 | I17: 8764565338
B20: 3.3.2 - Benchmarking ASSET VALUE ROLL FORWARD
C21: VALUES
C22: =CONCATENATE("Forecast ($0's, real ",dms_DollarReal,")") -> Forecast ($0's, real June 2027)
C23: =dms_y4 -> 2025-26 | D23: =dms_y5 -> 2026-27 | E23: =dms_y6 -> 2027-28 | F23: =dms_y7 -> 2028-29 | G23: =dms_y8 -> 2029-30 | H23: =dms_y9 -> 2030-31 | I23: =dms_y10 -> 2031-32
B24: For overhead assets:
A25: TRAB0201 | B25: Opening value | C25: 3798695910 | D25: 3807973961 | E25: 3779247516 | F25: 3665948342 | G25: 3546118306 | H25: 3445722464 | I25: 3395044835
A26: TRAB0202 | B26: Inflation addition | C26: 125356965 | D26: 121855166.8 | E26: 0 | F26: 0 | G26: 0 | H26: 0 | I26: 0
A27: TRAB0203 | B27: Straight line depreciation | C27: 150501439 | D27: 155894279.4 | E27: 156856262.7 | F27: 157194716.9 | G27: 157214768.4 | H27: 157214768.4 | I27: 158092385
A28: TRAB0204 | B28: Gross capex | C28: 34422524.7 | D28: 20092206.81 | E28: 43557089.33 | F28: 37364680.8 | G28: 56818926.32 | H28: 106537139.4 | I28: 75931002.35
A29: TRAB0206 | B29: Disposals | C29: 0 | D29: 0 | E29: 0 | F29: 0 | G29: 0 | H29: 0 | I29: 0
A30: TRAB0208 | B30: Capex timing adjustment | C30: 0 | D30: -14779539.6 | E30: 0 | F30: 0 | G30: 0 | H30: 0 | I30: 0
A31: TRAB0207 | B31: Closing value | C31: =(C25+C26+ C28+C30)- C27-C29 -> 3807973961 | D31: =(D25+D26+ D28+D30)- D27-D29 -> 3779247516 | E31: 3665948342 | F31: 3546118306 | G31: 3445722464 | H31: 3395044835 | I31: 3312883453
B32: For underground assets:
A33: TRAB0301 | B33: Opening value | C33: 45254550.19 | D33: 46503880.69 | E33: 60144486.18 | F33: 110371443.5 | G33: 137381979.6 | H33: 146706729.9 | I33: 158821865
A34: TRAB0302 | B34: Inflation addition | C34: 1493400.156 | D34: 1488124.182 | E34: 0 | F34: 0 | G34: 0 | H34: 0 | I34: 0
A35: TRAB0303 | B35: Straight line depreciation | C35: 3249340.284 | D35: 3380909.637 | E35: 3252873.566 | F35: 3252873.566 | G35: 3252873.566 | H35: 3252873.566 | I35: 6253126.38
A36: TRAB0305 | B36: Gross capex | C36: 3005270.626 | D36: 16507358.14 | E36: 53479830.89 | F36: 30263409.67 | G36: 12577623.91 | H36: 15368008.65 | I36: 3513799.24
A37: TRAB0306 | B37: Disposals | C37: 0 | D37: 0 | E37: 0 | F37: 0 | G37: 0 | H37: 0 | I37: 0
A38: TRAB0308 | B38: Capex timing adjustment | C38: 0 | D38: -973967.1961 | E38: 0 | F38: 0 | G38: 0 | H38: 0 | I38: 0
A39: TRAB0307 | B39: Closing value | C39: =(C33+C34+ C36+C38)- C35-C37 -> 46503880.69 | D39: =(D33+D34+ D36+D38)- D35-D37 -> 60144486.18 | E39: 110371443.5 | F39: 137381979.6 | G39: 146706729.9 | H39: 158821865 | I39: 156082537.9
B40: For switchyards, substations & transformers
A41: TRAB0401 | B41: Opening value | C41: 2687169561 | D41: 2743091496 | E41: 2814769393 | F41: 2852560951 | G41: 2930604082 | H41: 2960266365 | I41: 3019526210
A42: TRAB0402 | B42: Inflation addition | C42: 88676595.53 | D42: 87778927.88 | E42: 0 | F42: 0 | G42: 0 | H42: 0 | I42: 0
A43: TRAB0403 | B43: Straight line depreciation | C43: 188201209.5 | D43: 196604363.1 | E43: 195645342.8 | F43: 164111660.6 | G43: 174133653.1 | H43: 182802242.7 | I43: 195049774.1
A44: TRAB0405 | B44: Gross capex | C44: 155446549 | D44: 196429669.3 | E44: 233436901.2 | F44: 242154790.7 | G44: 203795937.1 | H44: 242062087.4 | I44: 268936654
A45: TRAB0406 | B45: Disposals | C45: 0 | D45: 2450000 | E45: 0 | F45: 0 | G45: 0 | H45: 0 | I45: 0
A46: TRAB0408 | B46: Capex timing adjustment | C46: 0 | D46: -13476337.32 | E46: 0 | F46: 0 | G46: 0 | H46: 0 | I46: 0
A47: TRAB0407 | B47: Closing value | C47: =(C41+C42+ C44+C46)- C43-C45 -> 2743091496 | D47: =(D41+D42+ D44+D46)- D43-D45 -> 2814769393 | E47: 2852560951 | F47: 2930604082 | G47: 2960266365 | H47: 3019526210 | I47: 3093413090
B48: For easements:
A49: TRAB0501 | B49: Opening value | C49: 825199728 | D49: 868033774.2 | E49: 920759894.3 | F49: 947611315.5 | G49: 989019850.1 | H49: 1045986126 | I49: 1130919947
A50: TRAB0502 | B50: Inflation addition | C50: 27231591.02 | D50: 27777080.77 | E50: 0 | F50: 0 | G50: 0 | H50: 0 | I50: 0
A51: TRAB0503 | B51: Straight line depreciation | C51: 0 | D51: 0 | E51: 0 | F51: 0 | G51: 0 | H51: 0 | I51: 0
A52: TRAB0505 | B52: Gross capex | C52: 15602455.21 | D52: 14614923.92 | E52: 26851421.18 | F52: 41408534.57 | G52: 56966276.38 | H52: 84933821.03 | I52: 88800333.78
A53: TRAB0506 | B53: Disposals | C53: 0 | D53: 377943.696 | E53: 0 | F53: 0 | G53: 0 | H53: 0 | I53: 0
A54: TRAB0508 | B54: Capex timing adjustment | C54: 0 | D54: 10712059.09 | E54: 0 | F54: 0 | G54: 0 | H54: 0 | I54: 0
A55: TRAB0507 | B55: Closing value | C55: =(C49+C50+ C52+C54)- C51-C53 -> 868033774.2 | D55: =(D49+D50+ D52+D54)- D51-D53 -> 920759894.3 | E55: 947611315.5 | F55: 989019850.1 | G55: 1045986126 | H55: 1130919947 | I55: 1219720281
B56: For “other” assets with long lives:
A57: TRAB0601 | B57: Opening value | C57: 350868677.6 | D57: 463352041.8 | E57: 598043675.9 | F57: 721810481.6 | G57: 826079408.8 | H57: 866685299.7 | I57: 892752518
A58: TRAB0602 | B58: Inflation addition | C58: 11578666.36 | D58: 14827265.34 | E58: 0 | F58: 0 | G58: 0 | H58: 0 | I58: 0
A59: TRAB0603 | B59: Straight line depreciation | C59: 20994704.34 | D59: 23193798.35 | E59: 30149308.54 | F59: 40167077.11 | G59: 46743403.53 | H59: 53814253.01 | I59: 56647034.57
A60: TRAB0605 | B60: Gross capex | C60: 121899402.2 | D60: 116480422.5 | E60: 153916114.2 | F60: 144436004.3 | G60: 87349294.37 | H60: 79881471.31 | I60: 73320262.05
A61: TRAB0606 | B61: Disposals | C61: 0 | D61: 0 | E61: 0 | F61: 0 | G61: 0 | H61: 0 | I61: 0
A62: TRAB0608 | B62: Capex timing adjustment | C62: 0 | D62: 26577744.64 | E62: 0 | F62: 0 | G62: 0 | H62: 0 | I62: 0
A63: TRAB0607 | B63: Closing value | C63: =(C57+C58+ C60+C62)- C59-C61 -> 463352041.8 | D63: =(D57+D58+ D60+D62)- D59-D61 -> 598043675.9 | E63: 721810481.6 | F63: 826079408.8 | G63: 866685299.7 | H63: 892752518 | I63: 909425745.5
B64: For “other” assets with short lives:
A65: TRAB0701 | B65: Opening value | C65: 113964499.6 | D65: 117378098.3 | E65: 149665718.2 | F65: 119436069.7 | G65: 99655667.57 | H65: 88539106.63 | I65: 78852112.68
A66: TRAB0702 | B66: Inflation addition | C66: 3760828.488 | D66: 3756099.144 | E66: 0 | F66: 0 | G66: 0 | H66: 0 | I66: 0
A67: TRAB0703 | B67: Straight line depreciation | C67: 30717953.94 | D67: 24519898.02 | E67: 41390387.35 | F67: 33779049.29 | G67: 26816971.09 | H67: 23499576.97 | I67: 18696957.47
A68: TRAB0705 | B68: Gross capex | C68: 32879624.25 | D68: 24951462.53 | E68: 12418552.8 | F68: 15533965.24 | G68: 17440013.73 | H68: 15237912.22 | I68: 14239573.48
A69: TRAB0706 | B69: Disposals | C69: 2508900.181 | D69: 971261.8216 | E69: 1257813.858 | F69: 1535318.114 | G69: 1739603.58 | H69: 1425329.198 | I69: 1354497.619
A70: TRAB0708 | B70: Capex timing adjustment | C70: 0 | D70: 29071218.05 | E70: 0 | F70: 0 | G70: 0 | H70: 0 | I70: 0
A71: TRAB0707 | B71: Closing value | C71: =(C65+C66+ C68+C70)- C67-C69 -> 117378098.3 | D71: =(D65+D66+ D68+D70)- D67-D69 -> 149665718.2 | E71: 119436069.7 | F71: 99655667.57 | G71: 88539106.63 | H71: 78852112.68 | I71: 73040231.06
B76: 3.3.4 - ASSET LIVES
C77: ASSET LIFE
C78: (Years)
C79: =dms_y4 -> 2025-26 | D79: =dms_y5 -> 2026-27 | E79: =dms_y6 -> 2027-28 | F79: =dms_y7 -> 2028-29 | G79: =dms_y8 -> 2029-30 | H79: =dms_y9 -> 2030-31 | I79: =dms_y10 -> 2031-32
B80: ESTIMATED SERVICE LIFE OF NEW ASSETS
A81: TRAB0901 | B81: Overhead transmission assets (wires and towers/poles etc) | C81: 49.03596607 | D81: 48.54982368 | E81: 48.43660433 | F81: 48.41938669 | G81: 48.39185411 | H81: 48.36063525 | I81: 48.30537378
A82: TRAB0902 | B82: Underground transmission assets (cables, ducts etc) | C82: 45 | D82: 45 | E82: 45 | F82: 45 | G82: 45 | H82: 45 | I82: 45
A83: TRAB0903 | B83: Substations, switchyards, transformers etc with transmission function | C83: 35.06846746 | D83: 35.25156026 | E83: 35.40386479 | F83: 35.24861286 | G83: 34.52123542 | H83: 34.17523296 | I83: 33.85125159
A84: TRAB0904 | B84: Other assets with long lives | C84: 33.73084407 | D84: 23.72902183 | E84: 21.13275164 | F84: 21.0213439 | G84: 20.17799269 | H84: 22.12387123 | I84: 21.77833325
A85: TRAB0905 | B85: Other assets with short lives | C85: 5.781839762 | D85: 5.931061442 | E85: 5.963971998 | F85: 6.085394336 | G85: 6.194241357 | H85: 6.261568325 | I85: 6.305222802
B86: ESTIMATED RESIDUAL SERVICE LIFE
A87: TRAB1001 | B87: Overhead transmission assets (wires and towers/poles etc) | C87: 21.88272464 | D87: 21.10701559 | E87: 20.28648908 | F87: 19.32132042 | G87: 18.34886778 | H87: 17.81835751 | I87: 17.92398067
A88: TRAB1002 | B88: Underground transmission assets (cables, ducts etc) | C88: 11.37226711 | D88: 10.41243589 | E88: 9.4615592 | F88: 8.523006916 | G88: 7.60208235 | H88: 40.13207039 | I88: 39.79168525
A89: TRAB1003 | B89: Substations, switchyards, transformers etc with transmission function | C89: 18.83837705 | D89: 19.15309785 | E89: 19.70640808 | F89: 19.51922145 | G89: 19.83383387 | H89: 20.41679509 | I89: 20.97744149
A90: TRAB1004 | B90: Other assets with long lives | C90: 14.97133316 | D90: 14.97592599 | E90: 17.09051746 | F90: 16.31848489 | G90: 18.79682969 | H90: 18.1856002 | I90: 16.84587929
A91: TRAB1005 | B91: Other assets with short lives | C91: 4.473715665 | D91: 4.195620454 | E91: 3.890845635 | F91: 3.854954951 | G91: 4.113452998 | H91: 4.358759274 | I91: 4.498676697

Sheet 3.4 Operational data
B1: =(LOOKUP(dms_Model,dms_Model_List,dms_Worksheet_List)) -> REGULATORY REPORTING STATEMENT
B2: =dms_TradingName -> Powerlink
B3: =CONCATENATE("REGULATORY PERIOD FROM ", FRCP_y1," TO ",dms_MultiYear_FinalYear_Result) -> REGULATORY PERIOD FROM 2027-28 TO 2031-32
B4: 3.4 OPERATIONAL DATA
B6: 3.4.1 - ENERGY DELIVERY
D7: VOLUMES
D8: Forecast (0's)
C9: Units | D9: =dms_y4 -> 2025-26 | E9: =dms_y5 -> 2026-27 | F9: =dms_y6 -> 2027-28 | G9: =dms_y7 -> 2028-29 | H9: =dms_y8 -> 2029-30 | I9: =dms_y9 -> 2030-31 | J9: =dms_y10 -> 2031-32
B10: Energy grouping by downstream connection type
A11: TOPED0101 | B11: To Other connected transmission networks | C11: GWh | D11: 3895.38968 | E11: 3907.293256 | F11: 3918.430453 | G11: 3947.984363 | H11: 4026.63143 | I11: 4172.575755 | J11: 4382.258325
A12: TOPED0102 | B12: To Distribution networks | C12: GWh | D12: 30083.06686 | E12: 30168.95598 | F12: 30260.08696 | G12: 30489.66929 | H12: 31092.82193 | I12: 32220.34536 | J12: 33843.54627
A13: TOPED0103 | B13: To Directly connected end–users (330 kV) | C13: GWh | D13: 0 | E13: 0 | F13: 0 | G13: 0 | H13: 0 | I13: 0 | J13: 0
A14: TOPED0104 | B14: To Directly connected end–users (275 kV) | C14: GWh | D14: 8819.502958 | E14: 8844.225505 | F14: 8871.251771 | G14: 8938.754906 | H14: 9114.641606 | I14: 9445.165879 | J14: 9920.960081
A15: TOPED0105 | B15: To Directly connected end–users (220 kV) | C15: GWh | D15: 0 | E15: 0 | F15: 0 | G15: 0 | H15: 0 | I15: 0 | J15: 0
A16: TOPED0106 | B16: To Directly connected end–users (132 kV) | C16: GWh | D16: 8503.896674 | E16: 8527.331431 | F16: 8553.456987 | G16: 8617.89762 | H16: 8788.381213 | I16: 9107.578844 | J16: 9566.385354
A17: TOPED0107 | B17: To Directly connected end–users (110 kV) | C17: GWh | D17: 0 | E17: 0 | F17: 0 | G17: 0 | H17: 0 | I17: 0 | J17: 0
A18: TOPED0108 | B18: To Directly connected end–users (44 kV) | C18: GWh | D18: 0 | E18: 0 | F18: 0 | G18: 0 | H18: 0 | I18: 0 | J18: 0
A19: TOPED0109 | B19: To Directly connected end–users (33 kV) | C19: GWh | D19: 0 | E19: 0 | F19: 0 | G19: 0 | H19: 0 | I19: 0 | J19: 0
A20: TOPED0110 | B20: To Directly connected end–users (22 kV) | C20: GWh | D20: 0 | E20: 0 | F20: 0 | G20: 0 | H20: 0 | I20: 0 | J20: 0
A21: TOPED0111 | B21: To Directly connected end–users (11 kV) | C21: GWh | D21: 0 | E21: 0 | F21: 0 | G21: 0 | H21: 0 | I21: 0 | J21: 0
A22: TOPED0112 | B22: To Directly connected end–users (6.6 kV) | C22: GWh | D22: 0 | E22: 0 | F22: 0 | G22: 0 | H22: 0 | I22: 0 | J22: 0
A23: TOPED0113 | B23: Pumping and Power Station Auxillaries | C23: GWh | D23: 1170 | E23: 1201 | F23: 1238 | G23: 1260 | H23: 1279 | I23: 1318 | J23: 1411
A24: TOPED01 | B24: Total energy transported | C24: GWh | D24: =SUM(D11:D23) -> 52471.85618 | E24: 52648.80617 | F24: 52841.22618 | G24: 53254.30617 | H24: 54301.47618 | I24: 56263.66584 | J24: 59124.15003
B27: 3.4.2 - CONNECTION POINTS
D28: VOLUMES
D29: Forecast (0's)
C30: Units | D30: =dms_y4 -> 2025-26 | E30: =dms_y5 -> 2026-27 | F30: =dms_y6 -> 2027-28 | G30: =dms_y7 -> 2028-29 | H30: =dms_y8 -> 2029-30 | I30: =dms_y9 -> 2030-31 | J30: =dms_y10 -> 2031-32
B31: Average number of entry points by voltage
A32: TOPCP0101 | B32: 500kV | C32: number of connections | D32: - | E32: - | F32: - | G32: - | H32: - | I32: - | J32: -
A33: TOPCP0102 | B33: 330kV | C33: number of connections | D33: 3 | E33: 3.5 | F33: 4 | G33: 4 | H33: 4 | I33: 4 | J33: 4
A34: TOPCP0103 | B34: 275kV | C34: number of connections | D34: 32 | E34: 34 | F34: 34 | G34: 33.5 | H34: 33 | I34: 33 | J34: 33
A35: TOPCP0104 | B35: 220kV | C35: number of connections | D35: - | E35: - | F35: - | G35: - | H35: - | I35: - | J35: -
A36: TOPCP0105 | B36: 132 kV | C36: number of connections | D36: 20.5 | E36: 21 | F36: 21 | G36: 20.5 | H36: 20 | I36: 20 | J36: 20
A37: TOPCP0106 | B37: 110kV | C37: number of connections | D37: 1 | E37: 1 | F37: 1 | G37: 1 | H37: 1 | I37: 1 | J37: 1
A38: TOPCP0107 | B38: 66 kV | C38: number of connections | D38: - | E38: - | F38: - | G38: - | H38: - | I38: - | J38: -
A39: TOPCP0108 | B39: 33 kV | C39: number of connections | D39: 5 | E39: 5 | F39: 5 | G39: 5 | H39: 5 | I39: 5 | J39: 5
A40: TOPCP0109 | B40: 22 kV | C40: number of connections | D40: - | E40: - | F40: - | G40: - | H40: - | I40: - | J40: -
A41: TOPCP0110 | B41: 11 kV | C41: number of connections | D41: - | E41: - | F41: - | G41: - | H41: - | I41: - | J41: -
A42: TOPCP0111 | B42: 6.6 kV | C42: number of connections | D42: - | E42: - | F42: - | G42: - | H42: - | I42: - | J42: -
B43: Average number of entry points by voltage
A44: TOPCP0201 | B44: 500kV | C44: number of connections | D44: - | E44: - | F44: - | G44: - | H44: - | I44: - | J44: -
A45: TOPCP0202 | B45: 330kV | C45: number of connections | D45: 1 | E45: 1 | F45: 1 | G45: 1 | H45: 1 | I45: 1 | J45: 1
A46: TOPCP0203 | B46: 275kV | C46: number of connections | D46: 6 | E46: 6 | F46: 6 | G46: 6 | H46: 6 | I46: 6 | J46: 6
A47: TOPCP0204 | B47: 220kV | C47: number of connections | D47: - | E47: - | F47: - | G47: - | H47: - | I47: - | J47: -
A48: TOPCP0205 | B48: 132 kV | C48: number of connections | D48: 50 | E48: 50 | F48: 50 | G48: 50 | H48: 50 | I48: 50 | J48: 50
A49: TOPCP0206 | B49: 110kV | C49: number of connections | D49: 17 | E49: 17 | F49: 17 | G49: 17 | H49: 17 | I49: 17 | J49: 17
A50: TOPCP0207 | B50: 66 kV | C50: number of connections | D50: 22 | E50: 22 | F50: 22 | G50: 22 | H50: 22 | I50: 22 | J50: 22
A51: TOPCP0208 | B51: 44 kV | C51: number of connections | D51: - | E51: - | F51: - | G51: - | H51: - | I51: - | J51: -
A52: TOPCP0209 | B52: 33kV | C52: number of connections | D52: 14 | E52: 14 | F52: 14 | G52: 14 | H52: 14 | I52: 14 | J52: 14
A53: TOPCP0210 | B53: 22kV | C53: number of connections | D53: 7 | E53: 7 | F53: 7 | G53: 7 | H53: 7 | I53: 7 | J53: 7
A54: TOPCP0211 | B54: 11kV | C54: number of connections | D54: 3 | E54: 3 | F54: 3 | G54: 3 | H54: 3 | I54: 3 | J54: 3
A55: TOPCP0212 | B55: 6.6kV | C55: number of connections | D55: - | E55: - | F55: - | G55: - | H55: - | I55: - | J55: -
B59: 3.4.3 - SYSTEM DEMAND
D60: VOLUMES
D61: Forecast (0's)
C62: Units | D62: =dms_y4 -> 2025-26 | E62: =dms_y5 -> 2026-27 | F62: =dms_y6 -> 2027-28 | G62: =dms_y7 -> 2028-29 | H62: =dms_y8 -> 2029-30 | I62: =dms_y9 -> 2030-31 | J62: =dms_y10 -> 2031-32
B63: Annual system maximum demand characteristics – MW measure
A64: TOPSD0101 | B64: Transmission System coincident maximum demand | C64: MW
A65: TOPSD0102 | B65: Transmission System coincident weather adjusted maximum demand 10% POE | C65: MW | D65: 11120.41 | E65: 11214.49 | F65: 11331.89 | G65: 11503.95 | H65: 11694.31 | I65: 11980.35 | J65: 12414.26
A66: TOPSD0103 | B66: Transmission System coincident weather adjusted maximum demand 50% POE | C66: MW | D66: 10416.71 | E66: 10523.59 | F66: 10644.47 | G66: 10731.41 | H66: 10920.22 | I66: 11243.09 | J66: 11666.4
A67: TOPSD0104 | B67: Transmission System non-coincident summated maximum demand | C67: MW
A68: TOPSD0105 | B68: Transmission System non-coincident weather adjusted summated maximum demand 10% POE | C68: MW | D68: 14618 | E68: 14856 | F68: 15202 | G68: 15507 | H68: 15839 | I68: 16055 | J68: 16218
A69: TOPSD0106 | B69: Transmission System non-coincident weather adjusted summated maximum demand 50% POE | C69: MW | D69: 13659 | E69: 13879 | F69: 14210 | G69: 14495 | H69: 14814 | I69: 15022 | J69: 15170
B70: Annual system maximum demand characteristics – MVA measure
A71: TOPSD0201 | B71: Transmission System coincident maximum demand | C71: MVA
A72: TOPSD0202 | B72: Transmission System coincident weather adjusted maximum demand 10% POE | C72: MVA | D72: 12586.34953 | E72: 12673.15793 | F72: 12773.14134 | G72: 12935.33579 | H72: 13121.06019 | I72: 13423.11641 | J72: 13896.7305
A73: TOPSD0203 | B73: Transmission System coincident weather adjusted maximum demand 50% POE | C73: MVA | D73: 11875.91029 | E73: 11977.03034 | F73: 12079.63243 | G73: 12144.30357 | H73: 12328.8529 | I73: 12672.75157 | J73: 13136.74113
A74: TOPSD0204 | B74: Transmission System non-coincident summated maximum demand | C74: MVA
A75: TOPSD0205 | B75: Transmission System non-coincident weather adjusted summated maximum demand 10% POE | C75: MVA | D75: 15062 | E75: 15310 | F75: 15667 | G75: 15975 | H75: 16315 | I75: 16535 | J75: 16704
A76: TOPSD0206 | B76: Transmission System non-coincident weather adjusted summated maximum demand 50% POE | C76: MVA | D76: 14070 | E76: 14299 | F76: 14639 | G76: 14925 | H76: 15251 | I76: 15463 | J76: 15617
B77: Power factor
B78: Power factor conversion between MVA and MW
A79: TOPSD0301 | B79: Average overall network power factor conversion between MVA and MW | C79: Factor | D79: 0.99 | E79: 0.99 | F79: 0.99 | G79: 0.99 | H79: 0.99 | I79: 0.99 | J79: 0.99
A80: TOPSD0302 | B80: Average power factor conversion for 500 kV lines | C80: Factor
A81: TOPSD0303 | B81: Average power factor conversion for 330 kV lines | C81: Factor | D81: 0.97 | E81: 0.97 | F81: 0.97 | G81: 0.97 | H81: 0.97 | I81: 0.97 | J81: 0.97
A82: TOPSD0304 | B82: Average power factor conversion for 275 kV lines | C82: Factor | D82: 0.99 | E82: 0.99 | F82: 0.99 | G82: 0.99 | H82: 0.99 | I82: 0.99 | J82: 0.99
A83: TOPSD0305 | B83: Average power factor conversion for 220 kV lines | C83: Factor
A84: TOPSD0306 | B84: Average power factor conversion for 132 kV lines | C84: Factor | D84: 0.98 | E84: 0.98 | F84: 0.98 | G84: 0.98 | H84: 0.98 | I84: 0.97 | J84: 0.97
A85: TOPSD0307 | B85: Average power factor conversion for 110 kV lines | C85: Factor | D85: 1 | E85: 1 | F85: 1 | G85: 1 | H85: 1 | I85: 1 | J85: 1
A86: TOPSD0308 | B86: Average power factor conversion for 88 kV lines | C86: Factor
A87: TOPSD0309 | B87: Average power factor conversion for 66 kV lines | C87: Factor | D87: 0.99 | E87: 0.99 | F87: 0.99 | G87: 0.99 | H87: 0.99 | I87: 0.99 | J87: 0.99
A88: TOPSD0310 | B88: Average power factor conversion for 33 kV lines | C88: Factor | D88: 1 | E88: 1 | F88: 0.99 | G88: 0.99 | H88: 0.99 | I88: 0.99 | J88: 0.99
A89: TOPSD0311 | B89: Average power factor conversion for 22 kV lines | C89: Factor | D89: 1 | E89: 1 | F89: 1 | G89: 1 | H89: 1 | I89: 1 | J89: 1
A90: TOPSD0311 | B90: Average power factor conversion for 11 kV lines | C90: Factor | D90: 0.97 | E90: 0.98 | F90: 0.98 | G90: 0.98 | H90: 0.98 | I90: 0.98 | J90: 0.98
A91: TOPSD0312 | B91: Average power factor conversion for 6.6 kV lines | C91: Factor

Sheet 3.5 Physical assets
B1: =(LOOKUP(dms_Model,dms_Model_List,dms_Worksheet_List)) -> REGULATORY REPORTING STATEMENT | I1: Fill colour #25C6FF | J1: Protected (SOCI)
B2: =dms_TradingName -> Powerlink
B3: =CONCATENATE("REGULATORY PERIOD FROM ", FRCP_y1," TO ",dms_MultiYear_FinalYear_Result) -> REGULATORY PERIOD FROM 2027-28 TO 2031-32
B4: 3.5 PHYSICAL ASSETS
B6: 3.5.1 - TRANSMISSION SYSTEM CAPACITIES
D7: VOLUMES
D8: Forecast (0's)
C9: Units | D9: =dms_y4 -> 2025-26 | E9: =dms_y5 -> 2026-27 | F9: =dms_y6 -> 2027-28 | G9: =dms_y7 -> 2028-29 | H9: =dms_y8 -> 2029-30 | I9: =dms_y9 -> 2030-31 | J9: =dms_y10 -> 2031-32
B10: Overhead network length of circuit at each voltage
A11: TPA0101 | B11: 500 kV | C11: km | D11: 0 | E11: 0 | F11: 0 | G11: 0 | H11: 0 | I11: 0 | J11: 0
A12: TPA0102 | B12: 330 kV | C12: km | D12: 604 | E12: 604 | F12: 604 | G12: 604 | H12: 604 | I12: 604 | J12: 604
A13: TPA0103 | B13: 275 kV | C13: km | D13: 9400 | E13: 9400 | F13: 9400 | G13: 9400 | H13: 9400 | I13: 9400 | J13: 9407
A14: TPA0104 | B14: 220 kV | C14: km | D14: 0 | E14: 0 | F14: 0 | G14: 0 | H14: 0 | I14: 0 | J14: 0
A15: TPA0105 | B15: 132 kV | C15: km | D15: 4045 | E15: 4045 | F15: 4045 | G15: 4045 | H15: 4045 | I15: 4038.6 | J15: 4038.6
A16: TPA0106 | B16: 110 kV | C16: km | D16: 408 | E16: 408 | F16: 408 | G16: 408 | H16: 408 | I16: 408 | J16: 408
A17: TPA0107 | B17: 88 kV | C17: km | D17: 0 | E17: 0 | F17: 0 | G17: 0 | H17: 0 | I17: 0 | J17: 0
A18: TPA0108 | B18: 66 kV | C18: km | D18: 2 | E18: 2 | F18: 2 | G18: 2 | H18: 2 | I18: 2 | J18: 2
A19: TPA0109 | B19: 33 kV | C19: km | D19: 0 | E19: 0 | F19: 0 | G19: 0 | H19: 0 | I19: 0 | J19: 0
A20: TPA0110 | B20: 22 kV | C20: km | D20: 0 | E20: 0 | F20: 0 | G20: 0 | H20: 0 | I20: 0 | J20: 0
A21: TPA011 | B21: 11 kV | C21: km | D21: 0 | E21: 0 | F21: 0 | G21: 0 | H21: 0 | I21: 0 | J21: 0
A22: TPA0112 | B22: Other voltages | C22: km | D22: 0 | E22: 0 | F22: 0 | G22: 0 | H22: 0 | I22: 0 | J22: 0
A23: TPA01 | B23: Total | D23: =SUM(D11:D21) -> 14459 | E23: 14459 | F23: 14459 | G23: 14459 | H23: 14459 | I23: 14452.6 | J23: 14459.6
B25: Underground cable circuit length at each voltage
A26: TPA0201 | B26: 500 kV | C26: km | D26: 0 | E26: 0 | F26: 0 | G26: 0 | H26: 0 | I26: 0 | J26: 0
A27: TPA0202 | B27: 330 kV | C27: km | D27: 0 | E27: 0 | F27: 0 | G27: 0 | H27: 0 | I27: 0 | J27: 0
A28: TPA0203 | B28: 275 kV | C28: km | D28: 9.4 | E28: 9.4 | F28: 9.4 | G28: 9.4 | H28: 9.4 | I28: 9.4 | J28: 9.4
A29: TPA0204 | B29: 220 kV | C29: km | D29: 0 | E29: 0 | F29: 0 | G29: 0 | H29: 0 | I29: 0 | J29: 0
A30: TPA0205 | B30: 132 kV | C30: km | D30: 3.2 | E30: 3.2 | F30: 3.2 | G30: 3.2 | H30: 3.2 | I30: 11.6 | J30: 11.6
A31: TPA0206 | B31: 110 kV | C31: km | D31: 7.6 | E31: 7.6 | F31: 7.6 | G31: 7.6 | H31: 7.6 | I31: 7.6 | J31: 7.6
A32: TPA0207 | B32: 88 kV | C32: km | D32: 0 | E32: 0 | F32: 0 | G32: 0 | H32: 0 | I32: 0 | J32: 0
A33: TPA0208 | B33: 66 kV | C33: km | D33: 0 | E33: 0 | F33: 0 | G33: 0 | H33: 0 | I33: 0 | J33: 0
A34: TPA0209 | B34: 33 kV | C34: km | D34: 0 | E34: 0 | F34: 0 | G34: 0 | H34: 0 | I34: 0 | J34: 0
A35: TPA0210 | B35: 22 kV | C35: km | D35: 0 | E35: 0 | F35: 0 | G35: 0 | H35: 0 | I35: 0 | J35: 0
A36: TPA0211 | B36: 11 kV | C36: km | D36: 0 | E36: 0 | F36: 0 | G36: 0 | H36: 0 | I36: 0 | J36: 0
A37: TPA0212 | B37: Other voltages | C37: km | D37: 0 | E37: 0 | F37: 0 | G37: 0 | H37: 0 | I37: 0 | J37: 0
A38: TPA02 | B38: Total | D38: =SUM(D26:D36) -> 20.2 | E38: 20.2 | F38: 20.2 | G38: 20.2 | H38: 20.2 | I38: 28.6 | J38: 28.6
B40: Estimated overhead network weighted average MVA capacity by voltage class
A41: TPA0301 | B41: 500 kV | C41: MVA | D41: 0 | E41: 0 | F41: 0 | G41: 0 | H41: 0 | I41: 0 | J41: 0
A42: TPA0302 | B42: 330 kV | C42: MVA | D42: 1246.454128 | E42: 1246.454128 | F42: 1246.454128 | G42: 1246.454128 | H42: 1246.454128 | I42: 1246.454128 | J42: 1246.454128
A43: TPA0303 | B43: 275 kV | C43: MVA | D43: 782.2402185 | E43: 782.2402185 | F43: 782.2402185 | G43: 782.2402185 | H43: 782.2402185 | I43: 782.2402185 | J43: 782
A44: TPA0304 | B44: 220 kV | C44: MVA | D44: 0 | E44: 0 | F44: 0 | G44: 0 | H44: 0 | I44: 0 | J44: 0
A45: TPA0305 | B45: 132 kV | C45: MVA | D45: 141 | E45: 141 | F45: 141 | G45: 141 | H45: 142 | I45: 141 | J45: 141
A46: TPA0306 | B46: 110 kV | C46: MVA | D46: 179.9723506 | E46: 179.9723506 | F46: 179.9723506 | G46: 179.9723506 | H46: 179.9723506 | I46: 179.9723506 | J46: 179.9723506
A47: TPA0307 | B47: 88 kV | C47: MVA | D47: 0 | E47: 0 | F47: 0 | G47: 0 | H47: 0 | I47: 0 | J47: 0
A48: TPA0308 | B48: 66 kV | C48: MVA | D48: 37.17883488 | E48: 37.17883488 | F48: 37.17883488 | G48: 37.17883488 | H48: 37 | I48: 37 | J48: 37
A49: TPA0309 | B49: 33 kV | C49: MVA | D49: 0 | E49: 0 | F49: 0 | G49: 0 | H49: 0 | I49: 0 | J49: 0
A50: TPA0310 | B50: 22 kV | C50: MVA | D50: 0 | E50: 0 | F50: 0 | G50: 0 | H50: 0 | I50: 0 | J50: 0
A51: TPA0311 | B51: 11 kV | C51: MVA | D51: 0 | E51: 0 | F51: 0 | G51: 0 | H51: 0 | I51: 0 | J51: 0
A52: TPA0212 | B52: Other voltages | C52: MVA | D52: 0 | E52: 0 | F52: 0 | G52: 0 | H52: 0 | I52: 0 | J52: 0
B54: Estimated underground network weighted average MVA capacity by voltage class
A55: TPA0401 | B55: 500 kV | C55: MVA | D55: 0 | E55: 0 | F55: 0 | G55: 0 | H55: 0 | I55: 0 | J55: 0
A56: TPA0402 | B56: 330 kV | C56: MVA | D56: 0 | E56: 0 | F56: 0 | G56: 0 | H56: 0 | I56: 0 | J56: 0
A57: TPA0403 | B57: 275 kV | C57: MVA | D57: 572 | E57: 572 | F57: 572 | G57: 572 | H57: 572 | I57: 572 | J57: 572
A58: TPA0404 | B58: 220 kV | C58: MVA | D58: 0 | E58: 0 | F58: 0 | G58: 0 | H58: 0 | I58: 0 | J58: 0
A59: TPA0405 | B59: 132 kV | C59: MVA | D59: 161.3 | E59: 161.3 | F59: 161.3 | G59: 161.3 | H59: 161.3 | I59: 165 | J59: 165
A60: TPA0406 | B60: 110 kV | C60: MVA | D60: 209.7 | E60: 209.7 | F60: 209.7 | G60: 209.7 | H60: 209.7 | I60: 210 | J60: 210
A61: TPA0407 | B61: 88 kV | C61: MVA | D61: 0 | E61: 0 | F61: 0 | G61: 0 | H61: 0 | I61: 0 | J61: 0
A62: TPA0408 | B62: 66 kV | C62: MVA | D62: 0 | E62: 0 | F62: 0 | G62: 0 | H62: 0 | I62: 0 | J62: 0
A63: TPA0409 | B63: 33 kV | C63: MVA | D63: 0 | E63: 0 | F63: 0 | G63: 0 | H63: 0 | I63: 0 | J63: 0
A64: TPA0410 | B64: 22 kV | C64: MVA | D64: 0 | E64: 0 | F64: 0 | G64: 0 | H64: 0 | I64: 0 | J64: 0
A65: TPA0411 | B65: 11 kV | C65: MVA | D65: 0 | E65: 0 | F65: 0 | G65: 0 | H65: 0 | I65: 0 | J65: 0
A66: TPA0212 | B66: Other voltages | C66: MVA | D66: 0 | E66: 0 | F66: 0 | G66: 0 | H66: 0 | I66: 0 | J66: 0
B68: Installed transmission system transformer capacity
A69: TPA0501 | B69: Transmission substations (eg 500 kV to 330 kV) | C69: MVA | D69: 11470 | E69: 11470 | F69: 11470 | G69: 11470 | H69: 11470 | I69: 11470 | J69: 11470
A70: TPA0502 | B70: Terminal points to DNSP systems | C70: MVA | D70: 19849 | E70: 19849 | F70: 19765 | G70: 19765 | H70: 19765 | I70: 19765 | J70: 19765
A71: TPA0503 | B71: Transformer capacity for directly connected end–users owned by the TNSP | C71: MVA | D71: 2472 | E71: 2472 | F71: 2555 | G71: 2555 | H71: 2555 | I71: 2555 | J71: 2555
A72: TPA0505 | B72: Interconnector capacity | C72: MVA | D72: 3750 | E72: 3750 | F72: 3750 | G72: 3750 | H72: 3750 | I72: 3750 | J72: 3750
A73: TPA0506 | B73: Other | C73: MVA | D73: 3562 | E73: 3562 | F73: 3562 | G73: 3562 | H73: 3562 | I73: 3562 | J73: 3562
B75: Cold spare capacity
A76: TPA06 | B76: Cold spare capacity included in 3.5.1.5 | C76: MVA | D76: 3110 | E76: 3485 | F76: 3485 | G76: 3485 | H76: 3485 | I76: 3485 | J76: 3485

Sheet 3.7 Operating environment
B1: =(LOOKUP(dms_Model,dms_Model_List,dms_Worksheet_List)) -> REGULATORY REPORTING STATEMENT
B2: =dms_TradingName -> Powerlink
B3: =CONCATENATE("REGULATORY PERIOD FROM ", FRCP_y1," TO ",dms_MultiYear_FinalYear_Result) -> REGULATORY PERIOD FROM 2027-28 TO 2031-32
B4: 3.7 OPERATING ENVIRONMENT FACTORS
A7: TEF01 | B7: 3.7.1 - TERRAIN FACTORS
D8: VOLUMES
D9: Forecast (0's)
C10: Units | D10: =dms_y4 -> 2025-26 | E10: =dms_y5 -> 2026-27 | F10: =dms_y6 -> 2027-28 | G10: =dms_y7 -> 2028-29 | H10: =dms_y8 -> 2029-30 | I10: =dms_y9 -> 2030-31 | J10: =dms_y10 -> 2031-32
A11: TEF0101 | B11: Total number of vegetation maintenance spans | C11: Number of spans | D11: 9362
A12: TEF0102 | B12: Average vegetation maintenance span cycle | C12: Years | D12: 2.52
A13: TEF0103 | B13: Average number of trees per vegetation maintenance span | C13: Trees | D13: 465
A14: TEF0104 | B14: Average number of defects per vegetation maintenance span | C14: Defects | D14: 0.00284
A15: TEF0105 | B15: Tropical proportion | C15: Number of spans | D15: 5921
A16: TEF0106 | B16: Standard vehicle access | C16: km | D16: 5194.63
A17: TEF0107 | B17: Altitude | C17: km | D17: 429.5
A18: TEF0108 | B18: Bushfire risk | C18: Number of spans | D18: 814
A20: TEF02 | B20: 3.7.2 - NETWORK CHARACTERISTICS
D21: VOLUMES
D22: Forecast (0's)
C23: Units | D23: =dms_y4 -> 2025-26 | E23: =dms_y5 -> 2026-27 | F23: =dms_y6 -> 2027-28 | G23: =dms_y7 -> 2028-29 | H23: =dms_y8 -> 2029-30 | I23: =dms_y9 -> 2030-31 | J23: =dms_y10 -> 2031-32
A24: TEF0201 | B24: Route line length | C24: km | D24: 9636 | E24: 9636 | F24: 9636 | G24: 9636 | H24: 9636 | I24: 9638 | J24: 9645
A25: TEF0202 | B25: Variability of dispatch | C25: % | D25: 0.18 | E25: 0.18 | F25: 0.18 | G25: 0.18 | H25: 0.18 | I25: 0.18 | J25: 0.18
A26: TEF0203 | B26: Concentrated load distance | C26: km | D26: 565 | E26: 565 | F26: 565 | G26: 565 | H26: 565 | I26: 565 | J26: 565
A27: TEF0204 | B27: Total number of spans | C27: number | D27: 23741 | E27: 23741 | F27: 23741 | G27: 23741 | H27: 23741 | I27: 23745 | J27: 23759

Sheet 5.4 MD & Utilisation - Spatial
B1: REGULATORY REPORTING STATEMENT
B2: Powerlink
B3: REGULATORY PERIOD FROM 2027-28 TO 2031-32
B4: 5.4 MAXIMUM DEMAND AND UTILISATION AT SPATIAL LEVEL
B7: 5.4.1 - NON-COINCIDENT & COINCIDENT MAXIMUM DEMAND
F8: VOLUMES
F9: Forecast (0's)
B10: CONNECTION POINT | C10: FORECASTING ELEMENTS | D10: UNIT | E10: MAX DEMAND | F10: 2025-26 | G10: 2026-27 | H10: 2027-28 | I10: 2028-29 | J10: 2029-30 | K10: 2030-31 | L10: 2031-32
B11: Abermain (110) | C11: CONNECTION POINT RATING | D11: MVA | E11: Non-coincident | F11: 151.01 | G11: 151.01 | H11: 151.01 | I11: 151.01 | J11: 151.01 | K11: 151.01 | L11: 151.01
E12: Coincident | F12: 151.01 | G12: 151.01 | H12: 151.01 | I12: 151.01 | J12: 151.01 | K12: 151.01 | L12: 151.01
C13: WINTER/SUMMER PEAKING | E13: Non-coincident | F13: Winter | G13: Winter | H13: Winter | I13: Winter | J13: Summer | K13: Summer | L13: Summer
E14: Coincident | F14: Winter | G14: Winter | H14: Winter | I14: Winter | J14: Summer | K14: Summer | L14: Summer
C15: ADJUSTMENTS - EMBEDDED GENERATION | D15: MW | E15: Non-coincident | F15: 0 | G15: 0 | H15: 0 | I15: 0 | J15: 0 | K15: 0 | L15: 0
E16: Coincident | F16: 0 | G16: 0 | H16: 0 | I16: 0 | J16: 0 | K16: 0 | L16: 0
C17: WEATHER CORRECTED MD 10% POE | D17: MW | E17: Non-coincident | F17: 74.87443542 | G17: 76.7519989 | H17: 78.10069275 | I17: 79.75559998 | J17: 81.08197784 | K17: 82.31024933 | L17: 83.46624756
E18: Coincident | F18: 73.39962334 | G18: 75.24020419 | H18: 76.56233263 | I18: 78.18464292 | J18: 79.48489494 | K18: 80.68897299 | L18: 81.82220137
C19: WEATHER CORRECTED MD 10% POE | D19: MVA | E19: Non-coincident | F19: 74.94440169 | G19: 76.8118227 | H19: 78.15386818 | I19: 79.80130124 | J19: 81.1222036 | K19: 82.3457924 | L19: 83.49770905
E20: Coincident | F20: 73.46821147 | G20: 75.29884963 | H20: 76.61446066 | I20: 78.229444 | J20: 79.52432836 | K20: 80.72381596 | L20: 81.85304316
C21: WEATHER CORRECTED MD 50% POE | D21: MW | E21: Non-coincident | F21: 67.75988007 | G21: 69.40089417 | H21: 70.75688171 | I21: 72.33892822 | J21: 73.60658264 | K21: 74.75640869 | L21: 75.79174042
E22: Coincident | F22: 66.42520436 | G22: 68.03389518 | H22: 69.36317365 | I22: 70.91405837 | J22: 72.15674363 | K22: 73.28392139 | L22: 74.29886005
C23: WEATHER CORRECTED MD 50% POE | D23: MVA | E23: Non-coincident | F23: 67.8790664 | G23: 69.50705389 | H23: 70.85307834 | I23: 72.4243594 | J23: 73.68401721 | K23: 74.82704855 | L23: 75.85661856
E24: Coincident | F24: 66.54204306 | G24: 68.13796386 | H24: 69.45747548 | I24: 70.9978068 | J24: 72.23265296 | K24: 73.35316985 | L24: 74.36246028
B25: Abermain (33) | C25: CONNECTION POINT RATING | D25: MVA | E25: Non-coincident | F25: 277 | G25: 277 | H25: 277 | I25: 277 | J25: 277 | K25: 277 | L25: 277
E26: Coincident | F26: 277 | G26: 277 | H26: 277 | I26: 277 | J26: 277 | K26: 277 | L26: 277
C27: WINTER/SUMMER PEAKING | E27: Non-coincident | F27: Summer | G27: Summer | H27: Summer | I27: Summer | J27: Summer | K27: Summer | L27: Summer
E28: Coincident | F28: Summer | G28: Summer | H28: Summer | I28: Summer | J28: Summer | K28: Summer | L28: Summer
C29: ADJUSTMENTS - EMBEDDED GENERATION | D29: MW | E29: Non-coincident | F29: 0 | G29: 0 | H29: 0 | I29: 0 | J29: 0 | K29: 0 | L29: 0
E30: Coincident | F30: 0 | G30: 0 | H30: 0 | I30: 0 | J30: 0 | K30: 0 | L30: 0
C31: WEATHER CORRECTED MD 10% POE | D31: MW | E31: Non-coincident | F31: 117.0377502 | G31: 119.517746 | H31: 122.7302475 | I31: 127.3014526 | J31: 131.1821747 | K31: 134.5727386 | L31: 137.6282806
E32: Coincident | F32: 117.0377502 | G32: 119.517746 | H32: 122.7302475 | I32: 127.3014526 | J32: 131.1821747 | K32: 134.5727386 | L32: 137.6282806
C33: WEATHER CORRECTED MD 10% POE | D33: MVA | E33: Non-coincident | F33: 117.9432427 | G33: 120.4472044 | H33: 123.6907678 | I33: 128.3062032 | J33: 132.2245004 | K33: 135.647911 | L33: 138.7330674
E34: Coincident | F34: 117.9432427 | G34: 120.4472044 | H34: 123.6907678 | I34: 128.3062032 | J34: 132.2245004 | K34: 135.647911 | L34: 138.7330674
C35: WEATHER CORRECTED MD 50% POE | D35: MW | E35: Non-coincident | F35: 107.6560745 | G35: 109.8982773 | H35: 112.8593369 | I35: 117.0136795 | J35: 120.6255875 | K35: 123.7591171 | L35: 126.6495972
E36: Coincident | F36: 107.6560745 | G36: 109.8982773 | H36: 112.8593369 | I36: 117.0136795 | J36: 120.6255875 | K36: 123.7591171 | L36: 126.6495972
C37: WEATHER CORRECTED MD 50% POE | D37: MVA | E37: Non-coincident | F37: 108.4710251 | G37: 110.7348485 | H37: 113.7244791 | I37: 117.9189395 | J37: 121.5657554 | K37: 124.7295893 | L37: 127.6480383
E38: Coincident | F38: 108.4710251 | G38: 110.7348485 | H38: 113.7244791 | I38: 117.9189395 | J38: 121.5657554 | K38: 124.7295893 | L38: 127.6480383
B39: Alan Sherriff | C39: CONNECTION POINT RATING | D39: MVA | E39: Non-coincident | F39: 457.26 | G39: 457.26 | H39: 457.26 | I39: 457.26 | J39: 457.26 | K39: 457.26 | L39: 457.26
E40: Coincident | F40: 457.26 | G40: 457.26 | H40: 457.26 | I40: 457.26 | J40: 457.26 | K40: 457.26 | L40: 457.26
C41: WINTER/SUMMER PEAKING | E41: Non-coincident | F41: Summer | G41: Summer | H41: Summer | I41: Summer | J41: Summer | K41: Summer | L41: Summer
E42: Coincident | F42: Summer | G42: Summer | H42: Summer | I42: Summer | J42: Summer | K42: Summer | L42: Summer
C43: ADJUSTMENTS - EMBEDDED GENERATION | D43: MW | E43: Non-coincident | F43: 0 | G43: 0 | H43: 0 | I43: 0 | J43: 0 | K43: 0 | L43: 0
E44: Coincident | F44: 0 | G44: 0 | H44: 0 | I44: 0 | J44: 0 | K44: 0 | L44: 0
C45: WEATHER CORRECTED MD 10% POE | D45: MW | E45: Non-coincident | F45: 37.03456879 | G45: 37.37385178 | H45: 37.77579498 | I45: 38.19868851 | J45: 38.61351395 | K45: 39.03229904 | L45: 39.40059662
E46: Coincident | F46: 32.57778402 | G46: 32.87623729 | H46: 33.22981015 | I46: 33.60181217 | J46: 33.96671701 | K46: 34.335105 | L46: 34.6590812
C47: WEATHER CORRECTED MD 10% POE | D47: MVA | E47: Non-coincident | F47: 37.68254309 | G47: 38.03291027 | H47: 38.44800947 | I47: 38.88477319 | J47: 39.31323153 | K47: 39.74580605 | L47: 40.126252
E48: Coincident | F48: 33.14778031 | G48: 33.45598388 | H48: 33.82112954 | I48: 34.20533259 | J48: 34.58222973 | K48: 34.96274771 | L48: 35.29741034
C49: WEATHER CORRECTED MD 50% POE | D49: MW | E49: Non-coincident | F49: 31.98048782 | G49: 32.28476715 | H49: 32.62938309 | I49: 33.00019455 | J49: 33.38582993 | K49: 33.70148468 | L49: 34.05483246
E50: Coincident | F50: 28.13191726 | G50: 28.39957925 | H50: 28.70272369 | I50: 29.02891125 | J50: 29.3681388 | K50: 29.64580728 | L50: 29.95663276
C51: WEATHER CORRECTED MD 50% POE | D51: MVA | E51: Non-coincident | F51: 32.46605125 | G51: 32.77994215 | H51: 33.13547316 | I51: 33.51806309 | J51: 33.91598332 | K51: 34.24171996 | L51: 34.6063806
E52: Coincident | F52: 28.5590474 | G52: 28.83516429 | H52: 29.14791027 | I52: 29.48445886 | J52: 29.83449289 | K52: 30.12102999 | L52: 30.44180694
B53: Algester | C53: CONNECTION POINT RATING | D53: MVA | E53: Non-coincident | F53: 202 | G53: 202 | H53: 202 | I53: 202 | J53: 202 | K53: 202 | L53: 202
E54: Coincident | F54: 202 | G54: 202 | H54: 202 | I54: 202 | J54: 202 | K54: 202 | L54: 202
C55: WINTER/SUMMER PEAKING | E55: Non-coincident | F55: Summer | G55: Summer | H55: Summer | I55: Summer | J55: Summer | K55: Summer | L55: Summer
E56: Coincident | F56: Summer | G56: Summer | H56: Summer | I56: Summer | J56: Summer | K56: Summer | L56: Summer
C57: ADJUSTMENTS - EMBEDDED GENERATION | D57: MW | E57: Non-coincident | F57: 0 | G57: 0 | H57: 0 | I57: 0 | J57: 0 | K57: 0 | L57: 0
E58: Coincident | F58: 0 | G58: 0 | H58: 0 | I58: 0 | J58: 0 | K58: 0 | L58: 0
C59: WEATHER CORRECTED MD 10% POE | D59: MW | E59: Non-coincident | F59: 80.07920837 | G59: 81.48397827 | H59: 83.41157532 | I59: 84.91347504 | J59: 86.52586365 | K59: 88.23280334 | L59: 90.026474
E60: Coincident | F60: 79.78210939 | G60: 81.18166751 | H60: 83.10211305 | I60: 84.59844063 | J60: 86.20484717 | K60: 87.90545401 | L60: 89.69247003
C61: WEATHER CORRECTED MD 10% POE | D61: MVA | E61: Non-coincident | F61: 82.37607066 | G61: 83.88941873 | H61: 85.96747568 | I61: 87.58771509 | J61: 89.32816319 | K61: 91.17175163 | L61: 93.11013943
E62: Coincident | F62: 82.07045017 | G62: 83.57818363 | H62: 85.64853085 | I62: 87.26275908 | J62: 88.99675 | K62: 90.83349861 | L62: 92.76469487
C63: WEATHER CORRECTED MD 50% POE | D63: MW | E63: Non-coincident | F63: 74.55038452 | G63: 75.90378571 | H63: 77.66179657 | I63: 79.09642029 | J63: 80.69059753 | K63: 82.33413696 | L63: 84.04975891
E64: Coincident | F64: 74.27379783 | G64: 75.62217782 | H64: 77.37366635 | I64: 78.80296752 | J64: 80.39123026 | K64: 82.02867205 | L64: 83.73792894
C65: WEATHER CORRECTED MD 50% POE | D65: MVA | E65: Non-coincident | F65: 76.42977028 | G65: 77.883799 | H65: 79.77408698 | I65: 81.31788709 | J65: 83.03460104 | K65: 84.80573394 | L65: 86.65582858
E66: Coincident | F66: 76.14621096 | G66: 77.59484513 | H66: 79.47812002 | I66: 81.01619253 | J66: 82.72653737 | K66: 84.49109925 | L66: 86.33432992
B67: Alligator Creek (132) | C67: CONNECTION POINT RATING | D67: MVA | E67: Non-coincident | F67: 280.08 | G67: 280.08 | H67: 280.08 | I67: 280.08 | J67: 280.08 | K67: 280.08 | L67: 280.08
E68: Coincident | F68: 280.08 | G68: 280.08 | H68: 280.08 | I68: 280.08 | J68: 280.08 | K68: 280.08 | L68: 280.08
C69: WINTER/SUMMER PEAKING | E69: Non-coincident | F69: Summer | G69: Summer | H69: Summer | I69: Summer | J69: Summer | K69: Summer | L69: Summer
E70: Coincident | F70: Summer | G70: Summer | H70: Summer | I70: Summer | J70: Summer | K70: Summer | L70: Summer
C71: ADJUSTMENTS - EMBEDDED GENERATION | D71: MW | E71: Non-coincident | F71: 0 | G71: 0 | H71: 0 | I71: 0 | J71: 0 | K71: 0 | L71: 0
E72: Coincident | F72: 0 | G72: 0 | H72: 0 | I72: 0 | J72: 0 | K72: 0 | L72: 0
C73: WEATHER CORRECTED MD 10% POE | D73: MW | E73: Non-coincident
E74: Coincident
C75: WEATHER CORRECTED MD 10% POE | D75: MVA | E75: Non-coincident
E76: Coincident
C77: WEATHER CORRECTED MD 50% POE | D77: MW | E77: Non-coincident
E78: Coincident
C79: WEATHER CORRECTED MD 50% POE | D79: MVA | E79: Non-coincident
E80: Coincident
B81: Alligator Creek (33) | C81: CONNECTION POINT RATING | D81: MVA | E81: Non-coincident | F81: 250.8 | G81: 250.8 | H81: 250.8 | I81: 250.8 | J81: 250.8 | K81: 250.8 | L81: 250.8
E82: Coincident | F82: 250.8 | G82: 250.8 | H82: 250.8 | I82: 250.8 | J82: 250.8 | K82: 250.8 | L82: 250.8
C83: WINTER/SUMMER PEAKING | E83: Non-coincident | F83: Summer | G83: Summer | H83: Summer | I83: Summer | J83: Summer | K83: Summer | L83: Summer
E84: Coincident | F84: Summer | G84: Summer | H84: Summer | I84: Summer | J84: Summer | K84: Summer | L84: Summer
C85: ADJUSTMENTS - EMBEDDED GENERATION | D85: MW | E85: Non-coincident | F85: 0 | G85: 0 | H85: 0 | I85: 0 | J85: 0 | K85: 0 | L85: 0
E86: Coincident | F86: 0 | G86: 0 | H86: 0 | I86: 0 | J86: 0 | K86: 0 | L86: 0
C87: WEATHER CORRECTED MD 10% POE | D87: MW | E87: Non-coincident | F87: 30.54175758 | G87: 30.93606567 | H87: 31.4011116 | I87: 31.82628441 | J87: 32.22313309 | K87: 32.54004669 | L87: 32.81497192
E88: Coincident | F88: 27.85144894 | G88: 28.21102391 | H88: 28.63510569 | I88: 29.02282662 | J88: 29.3847184 | K88: 29.67371627 | L88: 29.92442437
C89: WEATHER CORRECTED MD 10% POE | D89: MVA | E89: Non-coincident | F89: 31.37852571 | G89: 31.79440181 | H89: 32.2849664 | I89: 32.733544 | J89: 33.15229936 | K89: 33.48674785 | L89: 33.77691334
E90: Coincident | F90: 28.6145093 | G90: 28.99375244 | H90: 29.44110504 | I90: 29.85016913 | J90: 30.2320379 | K90: 30.53702608 | L90: 30.80163198
C91: WEATHER CORRECTED MD 50% POE | D91: MW | E91: Non-coincident | F91: 27.86783409 | G91: 28.24561691 | H91: 28.64812088 | I91: 29.03096199 | J91: 29.3920269 | K91: 29.68892288 | L91: 29.94919205
E92: Coincident | F92: 25.41306132 | G92: 25.75756667 | H92: 26.12461558 | I92: 26.47373365 | J92: 26.80299371 | K92: 27.07373724 | L92: 27.31108028
C93: WEATHER CORRECTED MD 50% POE | D93: MVA | E93: Non-coincident | F93: 28.56023393 | G93: 28.95819424 | H93: 29.38228092 | I93: 29.78572821 | J93: 30.16629418 | K93: 30.47927223 | L93: 30.75367306
E94: Coincident | F94: 26.04447026 | G94: 26.40737574 | H94: 26.79410621 | I94: 27.16201535 | J94: 27.5090587 | K94: 27.79446769 | L94: 28.04469757
B95: Ashgrove West (110) | C95: CONNECTION POINT RATING | D95: MVA | E95: Non-coincident | F95: 457.26 | G95: 457.26 | H95: 457.26 | I95: 457.26 | J95: 457.26 | K95: 457.26 | L95: 457.26
E96: Coincident | F96: 457.26 | G96: 457.26 | H96: 457.26 | I96: 457.26 | J96: 457.26 | K96: 457.26 | L96: 457.26
C97: WINTER/SUMMER PEAKING | E97: Non-coincident | F97: Summer | G97: Summer | H97: Summer | I97: Summer | J97: Summer | K97: Summer | L97: Summer
E98: Coincident | F98: Summer | G98: Summer | H98: Summer | I98: Summer | J98: Summer | K98: Summer | L98: Summer
C99: ADJUSTMENTS - EMBEDDED GENERATION | D99: MW | E99: Non-coincident | F99: 0 | G99: 0 | H99: 0 | I99: 0 | J99: 0 | K99: 0 | L99: 0
E100: Coincident | F100: 0 | G100: 0 | H100: 0 | I100: 0 | J100: 0 | K100: 0 | L100: 0
C101: WEATHER CORRECTED MD 10% POE | D101: MW | E101: Non-coincident | F101: 125.4557037 | G101: 131.1328888 | H101: 132.5067749 | I101: 134.506424 | J101: 141.2080841 | K101: 144.7630157 | L101: 146.2019653
E102: Coincident | F102: 88.79634531 | G102: 92.81460254 | H102: 93.78702597 | I102: 95.20235844 | J102: 99.94572927 | K102: 102.4618758 | L102: 103.4803505
C103: WEATHER CORRECTED MD 10% POE | D103: MVA | E103: Non-coincident | F103: 125.6659959 | G103: 131.3736452 | H103: 132.7550389 | I103: 134.765703 | J103: 141.5049838 | K103: 145.0802748 | L103: 146.5275384
E104: Coincident | F104: 88.94518811 | G104: 92.98500763 | H104: 93.96274488 | I104: 95.38587361 | J104: 100.155872 | K104: 102.6864287 | L104: 103.7107881
C105: WEATHER CORRECTED MD 50% POE | D105: MW | E105: Non-coincident | F105: 118.0022049 | G105: 123.4753494 | H105: 124.7189331 | I105: 126.681427 | J105: 133.1718903 | K105: 136.5638733 | L105: 137.8665924
E106: Coincident | F106: 83.52083026 | G106: 87.39466951 | H106: 88.27486614 | I106: 89.66390052 | J106: 94.25778827 | K106: 96.65860135 | L106: 97.58065345
C107: WEATHER CORRECTED MD 50% POE | D107: MVA | E107: Non-coincident | F107: 118.1740363 | G107: 123.6752422 | H107: 124.9253419 | I107: 126.8982168 | J107: 133.4238067 | K107: 136.83459 | L107: 138.1446037
E108: Coincident | F108: 83.64245086 | G108: 87.53615169 | H108: 88.4209603 | I108: 89.81734228 | J108: 94.4360923 | K108: 96.85021202 | L108: 97.77742718
B109: Ashgrove West (33) | C109: CONNECTION POINT RATING | D109: MVA | E109: Non-coincident | F109: 179.1 | G109: 179.1 | H109: 179.1 | I109: 179.1 | J109: 179.1 | K109: 179.1 | L109: 179.1
E110: Coincident | F110: 179.1 | G110: 179.1 | H110: 179.1 | I110: 179.1 | J110: 179.1 | K110: 179.1 | L110: 179.1
C111: WINTER/SUMMER PEAKING | E111: Non-coincident | F111: Summer | G111: Summer | H111: Summer | I111: Summer | J111: Summer | K111: Summer | L111: Summer
E112: Coincident | F112: Summer | G112: Summer | H112: Summer | I112: Summer | J112: Summer | K112: Summer | L112: Summer
C113: ADJUSTMENTS - EMBEDDED GENERATION | D113: MW | E113: Non-coincident | F113: 0 | G113: 0 | H113: 0 | I113: 0 | J113: 0 | K113: 0 | L113: 0
E114: Coincident | F114: 0 | G114: 0 | H114: 0 | I114: 0 | J114: 0 | K114: 0 | L114: 0
C115: WEATHER CORRECTED MD 10% POE | D115: MW | E115: Non-coincident | F115: 80.56887817 | G115: 82.41057587 | H115: 83.9759903 | I115: 85.18187714 | J115: 86.42738342 | K115: 87.96016693 | L115: 89.46556091
E116: Coincident | F116: 79.95337715 | G116: 81.78100531 | H116: 83.33446085 | I116: 84.53113539 | J116: 85.7671267 | K116: 87.28820061 | L116: 88.78209422
C117: WEATHER CORRECTED MD 10% POE | D117: MVA | E117: Non-coincident | F117: 81.44967646 | G117: 83.38256086 | H117: 85.02748039 | I117: 86.29579386 | J117: 87.6068051 | K117: 89.2215673 | L117: 90.80886932
E118: Coincident | F118: 80.82744663 | G118: 82.74556488 | H118: 84.37791815 | I118: 85.63654242 | J118: 86.93753826 | K118: 88.53996458 | L118: 90.11514051
C119: WEATHER CORRECTED MD 50% POE | D119: MW | E119: Non-coincident | F119: 75.86683655 | G119: 77.7299118 | H119: 79.20684814 | I119: 80.39575958 | J119: 81.51819611 | K119: 82.8265152 | L119: 84.25924683
E120: Coincident | F120: 75.28725649 | G120: 77.13609889 | H120: 78.60175226 | I120: 79.78158109 | J120: 80.89544283 | K120: 82.1937671 | L120: 83.61555346
C121: WEATHER CORRECTED MD 50% POE | D121: MVA | E121: Non-coincident | F121: 76.52762997 | G121: 78.47553831 | H121: 80.02194549 | I121: 81.26812279 | J121: 82.44566981 | K121: 83.81945111 | L121: 85.32531009
E122: Coincident | F122: 75.94300181 | G122: 77.87602922 | H122: 79.41062273 | I122: 80.64727993 | J122: 81.81583115 | K122: 83.17911753 | L122: 84.6734726
B123: Belmont (110) | C123: CONNECTION POINT RATING | D123: MVA | E123: Non-coincident | F123: 1289.96 | G123: 1289.96 | H123: 1289.96 | I123: 1289.96 | J123: 1289.96 | K123: 1289.96 | L123: 1289.96
E124: Coincident | F124: 1289.96 | G124: 1289.96 | H124: 1289.96 | I124: 1289.96 | J124: 1289.96 | K124: 1289.96 | L124: 1289.96
C125: WINTER/SUMMER PEAKING | E125: Non-coincident | F125: Summer | G125: Summer | H125: Summer | I125: Summer | J125: Summer | K125: Summer | L125: Summer
E126: Coincident | F126: Summer | G126: Summer | H126: Summer | I126: Summer | J126: Summer | K126: Summer | L126: Summer
C127: ADJUSTMENTS - EMBEDDED GENERATION | D127: MW | E127: Non-coincident | F127: 0 | G127: 0 | H127: 0 | I127: 0 | J127: 0 | K127: 0 | L127: 0
E128: Coincident | F128: 0 | G128: 0 | H128: 0 | I128: 0 | J128: 0 | K128: 0 | L128: 0
C129: WEATHER CORRECTED MD 10% POE | D129: MW | E129: Non-coincident | F129: 396.0274658 | G129: 407.34729 | H129: 425.39505 | I129: 436.3856812 | J129: 444.3952637 | K129: 450.829895 | L129: 456.8418579
E130: Coincident | F130: 383.9565021 | G130: 394.9312967 | H130: 412.4289589 | I130: 423.0845943 | J130: 430.8500438 | K130: 437.0885468 | L130: 442.9172644
C131: WEATHER CORRECTED MD 10% POE | D131: MVA | E131: Non-coincident | F131: 400.4976288 | G131: 412.3276144 | H131: 431.2175872 | I131: 442.7368118 | J131: 451.1384614 | K131: 457.8920019 | L131: 464.2049511
E132: Coincident | F132: 388.290414 | G132: 399.7598202 | H132: 418.0740244 | I132: 429.2421417 | J132: 437.3877081 | K132: 443.9353999 | L132: 450.0559296
C133: WEATHER CORRECTED MD 50% POE | D133: MW | E133: Non-coincident | F133: 372.3407593 | G133: 383.6712646 | H133: 400.6774292 | I133: 411.3391113 | J133: 419.1734619 | K133: 425.473938 | L133: 431.2874146
E134: Coincident | F134: 360.9917692 | G134: 371.9769194 | H134: 388.4647341 | I134: 398.8014468 | J134: 406.3970055 | K134: 412.5054424 | L134: 418.1417235
C135: WEATHER CORRECTED MD 50% POE | D135: MVA | E135: Non-coincident | F135: 375.7951873 | G135: 387.6022691 | H135: 405.3553621 | I135: 416.5027805 | J135: 424.7018875 | K135: 431.3002284 | L135: 437.3919495
E136: Coincident | F136: 364.3409058 | G136: 375.7881064 | H136: 393.000083 | I136: 403.8077268 | J136: 411.756924 | K136: 418.1541468 | L136: 424.0601914
B137: Belmont (Wecker Road 33) | C137: CONNECTION POINT RATING | D137: MVA | E137: Non-coincident | F137: 307 | G137: 307 | H137: 307 | I137: 307 | J137: 307 | K137: 307 | L137: 307
E138: Coincident | F138: 307 | G138: 307 | H138: 307 | I138: 307 | J138: 307 | K138: 307 | L138: 307
C139: WINTER/SUMMER PEAKING | E139: Non-coincident | F139: Summer | G139: Summer | H139: Summer | I139: Summer | J139: Summer | K139: Summer | L139: Summer
E140: Coincident | F140: Summer | G140: Summer | H140: Summer | I140: Summer | J140: Summer | K140: Summer | L140: Summer
C141: ADJUSTMENTS - EMBEDDED GENERATION | D141: MW | E141: Non-coincident | F141: 0 | G141: 0 | H141: 0 | I141: 0 | J141: 0 | K141: 0 | L141: 0
E142: Coincident | F142: 0 | G142: 0 | H142: 0 | I142: 0 | J142: 0 | K142: 0 | L142: 0
C143: WEATHER CORRECTED MD 10% POE | D143: MW | E143: Non-coincident | F143: 144.8737793 | G143: 147.5398712 | H143: 149.9849701 | I143: 152.5031891 | J143: 155.0068817 | K143: 157.4206848 | L143: 159.8296814
E144: Coincident | F144: 144.8737793 | G144: 147.5398712 | H144: 149.9849701 | I144: 152.5031891 | J144: 155.0068817 | K144: 157.4206848 | L144: 159.8296814
C145: WEATHER CORRECTED MD 10% POE | D145: MVA | E145: Non-coincident | F145: 147.0149182 | G145: 149.8081536 | H145: 152.3712937 | I145: 155.0124446 | J145: 157.6396625 | K145: 160.1737249 | L145: 162.7038315
E146: Coincident | F146: 147.0149182 | G146: 149.8081536 | H146: 152.3712937 | I146: 155.0124446 | J146: 157.6396625 | K146: 160.1737249 | L146: 162.7038315
C147: WEATHER CORRECTED MD 50% POE | D147: MW | E147: Non-coincident | F147: 130.8896179 | G147: 133.2887573 | H147: 135.4925537 | I147: 137.6164551 | J147: 139.9438171 | K147: 142.4382477 | L147: 144.9159393
E148: Coincident | F148: 130.8896179 | G148: 133.2887573 | H148: 135.4925537 | I148: 137.6164551 | J148: 139.9438171 | K148: 142.4382477 | L148: 144.9159393
C149: WEATHER CORRECTED MD 50% POE | D149: MVA | E149: Non-coincident | F149: 132.3946508 | G149: 134.8988401 | H149: 137.2007291 | I149: 139.4205398 | J149: 141.854471 | K149: 144.4647433 | L149: 147.0590753
E150: Coincident | F150: 132.3946508 | G150: 134.8988401 | H150: 137.2007291 | I150: 139.4205398 | J150: 141.854471 | K150: 144.4647433 | L150: 147.0590753
B151: Biloela | C151: CONNECTION POINT RATING | D151: MVA | E151: Non-coincident | F151: 232.1 | G151: 232.1 | H151: 232.1 | I151: 232.1 | J151: 232.1 | K151: 232.1 | L151: 232.1
E152: Coincident | F152: 232.1 | G152: 232.1 | H152: 232.1 | I152: 232.1 | J152: 232.1 | K152: 232.1 | L152: 232.1
C153: WINTER/SUMMER PEAKING | E153: Non-coincident | F153: Summer | G153: Summer | H153: Summer | I153: Summer | J153: Summer | K153: Summer | L153: Summer
E154: Coincident | F154: Summer | G154: Summer | H154: Summer | I154: Summer | J154: Summer | K154: Summer | L154: Summer
C155: ADJUSTMENTS - EMBEDDED GENERATION | D155: MW | E155: Non-coincident | F155: 0 | G155: 0 | H155: 0 | I155: 0 | J155: 0 | K155: 0 | L155: 0
E156: Coincident | F156: 0 | G156: 0 | H156: 0 | I156: 0 | J156: 0 | K156: 0 | L156: 0
C157: WEATHER CORRECTED MD 10% POE | D157: MW | E157: Non-coincident | F157: 39.2681427 | G157: 39.5750618 | H157: 39.87107086 | I157: 40.16566467 | J157: 40.44817734 | K157: 40.69209671 | L157: 40.8579483
E158: Coincident | F158: 24.24342296 | G158: 24.43290912 | H158: 24.61565962 | I158: 24.79753637 | J158: 24.97195446 | K158: 25.12254575 | L158: 25.22493945
C159: WEATHER CORRECTED MD 10% POE | D159: MVA | E159: Non-coincident | F159: 39.26942786 | G159: 39.57724229 | H159: 39.87432872 | I159: 40.17019861 | J159: 40.45412188 | K159: 40.69940333 | L159: 40.86625608
E160: Coincident | F160: 24.24421639 | G160: 24.43425531 | H160: 24.61767097 | I160: 24.80033555 | J160: 24.97562451 | K160: 25.12705672 | L160: 25.23006852
C161: WEATHER CORRECTED MD 50% POE | D161: MW | E161: Non-coincident | F161: 36.14079666 | G161: 36.42671967 | H161: 36.75037003 | I161: 37.01757431 | J161: 37.29231262 | K161: 37.48739243 | L161: 37.60656357
E162: Coincident | F162: 22.31265752 | G162: 22.48918108 | H162: 22.68899681 | I162: 22.85396378 | J162: 23.02358211 | K162: 23.14402077 | L162: 23.21759482
C163: WEATHER CORRECTED MD 50% POE | D163: MVA | E163: Non-coincident | F163: 36.14715987 | G163: 36.43145168 | H163: 36.75355833 | I163: 37.01972465 | J163: 37.29361369 | K163: 37.48822197 | L163: 37.60715796
E164: Coincident | F164: 22.31658605 | G164: 22.49210254 | H164: 22.6909652 | I164: 22.85529136 | J164: 23.02438537 | K164: 23.14453291 | L164: 23.21796179
B165: Blackstone | C165: CONNECTION POINT RATING | D165: MVA | E165: Non-coincident | F165: 457.26 | G165: 457.26 | H165: 457.26 | I165: 457.26 | J165: 457.26 | K165: 457.26 | L165: 457.26
E166: Coincident | F166: 457.26 | G166: 457.26 | H166: 457.26 | I166: 457.26 | J166: 457.26 | K166: 457.26 | L166: 457.26
C167: WINTER/SUMMER PEAKING | E167: Non-coincident | F167: Summer | G167: Summer | H167: Summer | I167: Summer | J167: Summer | K167: Summer | L167: Summer
E168: Coincident | F168: Summer | G168: Summer | H168: Summer | I168: Summer | J168: Summer | K168: Summer | L168: Summer
C169: ADJUSTMENTS - EMBEDDED GENERATION | D169: MW | E169: Non-coincident | F169: 0 | G169: 0 | H169: 0 | I169: 0 | J169: 0 | K169: 0 | L169: 0
E170: Coincident | F170: 0 | G170: 0 | H170: 0 | I170: 0 | J170: 0 | K170: 0 | L170: 0
C171: WEATHER CORRECTED MD 10% POE | D171: MW | E171: Non-coincident | F171: 118.5389938 | G171: 127.0119171 | H171: 132.4056396 | I171: 137.5073547 | J171: 143.3421631 | K171: 146.7942505 | L171: 150.2557983
E172: Coincident | F172: 115.0103689 | G172: 123.2310733 | H172: 128.4642375 | I172: 133.4140866 | J172: 139.0752066 | K172: 142.4245336 | L172: 145.7830393
C173: WEATHER CORRECTED MD 10% POE | D173: MVA | E173: Non-coincident | F173: 119.4781045 | G173: 128.0348498 | H173: 133.481995 | I173: 138.6342797 | J173: 144.5269657 | K173: 148.0133142 | L173: 151.50923
E174: Coincident | F174: 115.9215245 | G174: 124.2235558 | H174: 129.5085524 | I174: 134.5074658 | J174: 140.2247405 | K174: 143.6073087 | L174: 146.9991593
C175: WEATHER CORRECTED MD 50% POE | D175: MW | E175: Non-coincident | F175: 110.0363617 | G175: 118.1988525 | H175: 123.1698532 | I175: 127.0879211 | J175: 133.5210724 | K175: 136.9075775 | L175: 139.9079437
E176: Coincident | F176: 106.76084 | G176: 114.6803528 | H176: 119.5033786 | I176: 123.3048149 | J176: 129.5464665 | K176: 132.8321634 | L176: 135.7432158
C177: WEATHER CORRECTED MD 50% POE | D177: MVA | E177: Non-coincident | F177: 110.8915039 | G177: 119.1346012 | H177: 124.1547603 | I177: 128.1116061 | J177: 134.6084813 | K177: 138.0285556 | L177: 141.058676
E178: Coincident | F178: 107.5905266 | G178: 115.5882465 | H178: 120.4589673 | I178: 124.2980272 | J178: 130.6015058 | K178: 133.9197726 | L178: 136.8596935
B179: Blackwater (66/11) | C179: CONNECTION POINT RATING | D179: MVA | E179: Non-coincident | F179: 331.6 | G179: 331.6 | H179: 331.6 | I179: 331.6 | J179: 331.6 | K179: 331.6 | L179: 331.6
E180: Coincident | F180: 331.6 | G180: 331.6 | H180: 331.6 | I180: 331.6 | J180: 331.6 | K180: 331.6 | L180: 331.6
C181: WINTER/SUMMER PEAKING | E181: Non-coincident | F181: Winter | G181: Winter | H181: Winter | I181: Winter | J181: Winter | K181: Winter | L181: Winter
E182: Coincident | F182: Winter | G182: Winter | H182: Winter | I182: Winter | J182: Winter | K182: Winter | L182: Winter
C183: ADJUSTMENTS - EMBEDDED GENERATION | D183: MW | E183: Non-coincident | F183: 0 | G183: 0 | H183: 0 | I183: 0 | J183: 0 | K183: 0 | L183: 0
E184: Coincident | F184: 0 | G184: 0 | H184: 0 | I184: 0 | J184: 0 | K184: 0 | L184: 0
C185: WEATHER CORRECTED MD 10% POE | D185: MW | E185: Non-coincident | F185: 106.3926544 | G185: 108.0469208 | H185: 109.5528564 | I185: 110.967514 | J185: 112.2344971 | K185: 113.2335663 | L185: 113.9811401
E186: Coincident | F186: 66.04573543 | G186: 67.07266009 | H186: 68.00750493 | I186: 68.88568682 | J186: 69.67219629 | K186: 70.29239193 | L186: 70.7564659
C187: WEATHER CORRECTED MD 10% POE | D187: MVA | E187: Non-coincident | F187: 106.90086 | G187: 108.5530732 | H187: 110.0572209 | I187: 111.4702668 | J187: 112.73586 | K187: 113.7338677 | L187: 114.4806667
E188: Coincident | F188: 66.361216 | G188: 67.38686607 | H188: 68.32060104 | I188: 69.19778243 | J188: 69.98342907 | K188: 70.60296576 | L188: 71.06655875
C189: WEATHER CORRECTED MD 50% POE | D189: MW | E189: Non-coincident | F189: 103.7864151 | G189: 105.0916443 | H189: 106.6300201 | I189: 108.0534439 | J189: 109.3534775 | K189: 110.4600143 | L189: 111.3097153
E190: Coincident | F190: 64.42785126 | G190: 65.23810289 | H190: 66.19308575 | I190: 67.07670946 | J190: 67.88373581 | K190: 68.57064448 | L190: 69.0981163
C191: WEATHER CORRECTED MD 50% POE | D191: MVA | E191: Non-coincident | F191: 104.2980556 | G191: 105.6015331 | H191: 107.1379251 | I191: 108.5595884 | J191: 109.8580744 | K191: 110.963338 | L191: 111.8120878
E192: Coincident | F192: 64.74546411 | G192: 65.55462834 | H192: 66.50837972 | I192: 67.39091055 | J192: 68.19697617 | K192: 68.88309445 | L192: 69.40997582
B193: Blackwater (Rolleston 132) | C193: CONNECTION POINT RATING | D193: MVA | E193: Non-coincident | F193: 91.45 | G193: 91.45 | H193: 91.45 | I193: 91.45 | J193: 91.45 | K193: 91.45 | L193: 91.45
E194: Coincident | F194: 91.45 | G194: 91.45 | H194: 91.45 | I194: 91.45 | J194: 91.45 | K194: 91.45 | L194: 91.45
C195: WINTER/SUMMER PEAKING | E195: Non-coincident | F195: Summer | G195: Summer | H195: Summer | I195: Summer | J195: Summer | K195: Summer | L195: Summer
E196: Coincident | F196: Summer | G196: Summer | H196: Summer | I196: Summer | J196: Summer | K196: Summer | L196: Summer
C197: ADJUSTMENTS - EMBEDDED GENERATION | D197: MW | E197: Non-coincident | F197: 0 | G197: 0 | H197: 0 | I197: 0 | J197: 0 | K197: 0 | L197: 0
E198: Coincident | F198: 0 | G198: 0 | H198: 0 | I198: 0 | J198: 0 | K198: 0 | L198: 0
C199: WEATHER CORRECTED MD 10% POE | D199: MW | E199: Non-coincident | F199: 29.01093292 | G199: 29.31574249 | H199: 29.69544029 | I199: 30.01619148 | J199: 30.33142853 | K199: 30.59589005 | L199: 30.77487755
E200: Coincident | F200: 15.61737744 | G200: 15.78146476 | H200: 15.98586645 | I200: 16.15853558 | J200: 16.32823629 | K200: 16.47060315 | L200: 16.56695701
C201: WEATHER CORRECTED MD 10% POE | D201: MVA | E201: Non-coincident | F201: 30.00547231 | G201: 30.28763693 | H201: 30.63984767 | I201: 30.93798424 | J201: 31.2315188 | K201: 31.47816328 | L201: 31.64528938
E202: Coincident | F202: 16.15276515 | G202: 16.30466207 | H202: 16.49426674 | I202: 16.65476179 | J202: 16.81277946 | K202: 16.94555492 | L202: 17.03552346
... 4680 more rows

Sheet 7.1 Policies and Procedures
B1: =(LOOKUP(dms_Model,dms_Model_List,dms_Worksheet_List)) -> REGULATORY REPORTING STATEMENT
B2: =dms_TradingName -> Powerlink
B3: =CONCATENATE("REGULATORY PERIOD FROM ", FRCP_y1," TO ",dms_MultiYear_FinalYear_Result) -> REGULATORY PERIOD FROM 2027-28 TO 2031-32
B4: 7.1 PLANS, POLICIES, PROCEDURES AND STRATEGIES
B6: Instructions
B7: =CONCATENATE(dms_TradingName, " must list and provide a brief description of key internal plans, "&"policies, procedures or strategies that are used by it to plan and conduct its day to day operations and that have been relied upon in the development of its regulatory proposal. "&dms_TradingName," must identify any internal plans, policies, procedures and strategies that have changed in the current regulatory control period "&"or that are expected to change before the next regulatory control period where the change has been identified as a step change.") -> Powerlink must list and provide a brief description of key internal plans, policies, procedures or strategies that are used by it to plan and conduct its day to day operations and that have been relied upon in the development of its regulatory proposal. Powerlink must identify any internal plans, policies, procedures and strategies that have changed in the current regulatory control period or that are expected to change before the next regulatory control period where the change has been identified as a step change.
B9: 7.1.1 - PLANS, POLICIES, PROCEDURES AND STRATEGIES
C10: Brief description | D10: Relevance to regulatory proposal | E10: Expenditure impact
C11: Description of the plan, policy, procedure or strategy. | D11: Identify the element of the proposal/supporting documents that the policy, plan, procedure or strategy is relevant to e.g. replacement capex, capacity utilisation thresholds, opex | E11: Is this policy, plan or procedure identified in the response to section 4 'Step Changes' of the notice (yes or no)?
B12: Corporate
B13: Statement of Corporate Intent FY25 | C13: Statement of the strategic intent and performance objectives for Powerlink in the most recent full financial year. | D13: Forecast capital expenditure Forecast operating expenditure | E13: No
B16: Governance framework
B17: Strategic Asset Management Plan | C17: Defines the asset management framework for network assets. | D17: Forecast capital expenditure Forecast operating expenditure | E17: No
B18: Asset Management Policy | C18: Sets out the direction and framework for the sustainable management of all network and non-network assets. | D18: Forecast capital expenditure Forecast operating expenditure | E18: No
B34: Accounting policies, procedures and methodologies (including a capitalisation policy, depreciation policy and an approved expenditure allocation methodology)
B35: Depreciation of Fixed Assets | C35: Sets out the approach to depreciation (methodology and assignment of useful life) for fixed assets. | D35: Forecast depreciation | E35: No
B36: Powerlink Cost Allocation Methodology | C36: Sets out Powerlink’s methodology for attributing costs to, or allocating costs between or within prescribed, negotiated and other non-regulated transmission services. | D36: Revenue Proposal | E36: No
B37: Property, Plant and Equipment - Recognition | C37: Sets out the policies and procedures for capitalisation of asset expenditure | D37: Forecast capital expenditure Forecast operating expenditure | E37: No
B38: Asset management plan or equivalent documentation
B39: Asset Management Policies
B40: Strategic Asset Management Plan | C40: Defines the asset management framework for network assets. | D40: Forecast capital expenditure Forecast operating expenditure | E40: No
B41: Asset Management Policy | C41: Sets out the direction and framework for the sustainable management of all network and non-network assets. | D41: Forecast capital expenditure Forecast operating expenditure | E41: No
B42: Asset Management Strategies
B43: Strategic Asset Management Plan | C43: Outlines the asset management strategy applied over the life cycle of network assets. | D43: Forecast capital expenditure Forecast operating expenditure | E43: No
B44: Asset Risk Management Framework | C44: Provides a high level overview of the quantitative risk techniques | D44: Forecast capital expenditure | E44: No
B47: Asset Management Plans
B48: Network Investment Outlook | C48: Overview of Powerlink's long term investment outook. | D48: Forecast capital expenditure Forecast operating expenditure | E48: No
B49: Facilities Asset Management Plan | C49: Sets out Powerlink's approach to management of commercial buildings and facilities. | D49: Forecast capital expenditure Forecast operating expenditure | E49: No
B50: Fleet Asset Management Plan | C50: Sets out Powerlink's approach to the management of motor vehicle assets. | D50: Forecast capital expenditure Forecast operating expenditure | E50: No
B51: OT Plan 27-32 | C51: Includes the approach to asset management for Operational Technology systems. | D51: Forecast capital expenditure | E51: No
B52: IT Plan 27-32 | C52: Includes the appproach to asset management for non-network information technology systems. | D52: Forecast capital expenditure Forecast operating expenditure | E52: No
B53: Transmission Annual Planning Report 2025 | C53: Provides information to interested stakeholders on the planning and development of the Queensland transmission network. | D53: Forecast capital expenditure Forecast operating expenditure | E53: No
B54: Secondary Systems Asset Strategy 2020-2027 | C54: Outlines the approach to asset management for Secondary systems | D54: Forecast capital expenditure | E54: No
B55: Telecommunications Asset Strategy 2020-2027 | C55: Outlines the approach to asset management for Telecommunications systems. | D55: Forecast capital expenditure | E55: No
B71: Capital expenditure policies and procedures (including capex approval policies and procedures and replacement policy)
B72: Regulated Network Project Approval Process - Specification | C72: Provides a high level overview of regulated network capital project approval process. | D72: Forecast capital expenditure | E72: No
B76: Internal standards for network planning, design, maintenance and operation
B77: Asset Maintenance Standard | C77: Establishes the overarching approach to maintenance needs, plans and work. | D77: Forecast operating expenditure | E77: No
B78: Asset Planning Criteria | C78: Outlines the criteria Powerlink applies in planning of the transmission network. | D78: Forecast capital expenditure | E78: No
B79: Asset Refurbishment Standard | C79: Establishes the overarching approach to operational refurbishment needs, plans & projects. | D79: Forecast operating expenditure | E79: No
B80: Digital Asset Management Framework | C80: Sets out the whole of life asset management philosophy for Powerlink’s Digital assets. | D80: Forecast capital expenditure Forecast operating expenditure | E80: No
B81: HV Underground Cable Asset Methodology | C81: Sets out the whole of life asset management philosophy for Powerlink’s HV underground cable assets. | D81: Forecast capital expenditure Forecast operating expenditure | E81: No
B82: Joint Planning Framework | C82: Outlines Powerlink's approach to jointly plan the network with other TNSPs, DNSPs and EAMO | D82: Forecast capital expenditure | E82: No
B83: Land Asset Methodology | C83: Sets out the whole of life asset management philosophy for Powerlink’s Land assets. | D83: Forecast capital expenditure Forecast operating expenditure | E83: No
B84: Substation Asset Methodology | C84: Sets out the whole of life asset management philosophy for Powerlink’s Substation assets. | D84: Forecast capital expenditure Forecast operating expenditure | E84: No
B85: Transmission Line Asset Methodology | C85: Sets out the whole of life asset management philosophy for Powerlink’s Transmission Line assets. | D85: Forecast capital expenditure Forecast operating expenditure | E85: No
B156: Procurement and contracting out policies
B157: Procurement – Framework | C157: Describes approach to procurement practices. | D157: Forecast capital expenditure Forecast operating expenditure | E157: No
B161: Information technology policies or strategies
B162: IT Plan 2027-32 | C162: Sets out Powerlink's proposed IT investments in the 2072-32 regulatory period. | D162: Forecast capital expenditure Forecast operating expenditure | E162: No
B198: Demand management policies or strategies
B199: Transmission Annual Planning Report 2025 | C199: Provides information to interested parties on network developments and potential opportunities for provision of demand management solutions. | D199: Forecast capital expenditure Forecast operating expenditure | E199: No
B202: Self insurance guidelines or policy
B203: Marsh - Insurance Report | C203: Sets out Powerlink's independent advice on self insurance requirements for the 2023-27 regulatory period. | D203: Forecast operating expenditure | E203: No
B207: Land and easement acquisition polices
B208: Powerlink - Strategic Network Land Acquisition – Strategy | C208: Develops a practical framework for establishing Powerlink’s land acquisition requirements | D208: Forecast capital expenditure | E208: No
B209: Supergrid Landholder Payment Framework | C209: Outlines Powerlink’s process for determining landholder easement compensation payments | D209: Forecast capital expenditure | E209: No
B210: Transmission Easement Engagement Process | C210: Defines the end to end process for Powerlink’s land acquisition projects | D210: Forecast capital expenditure | E210: No
B212: Asset security plans and policies
B213: Powerlink Protective Security – Strategy | C213: Describes how Powerlink applies security to its business operations and transmission services. | D213: Forecast capital expenditure Forecast operating expenditure | E213: Yes
B214: Enterprise Information Security Strategy | C214: Outlines Powerlink’s security drivers and strategy in regard to information security. | D214: Forecast capital expenditure Forecast operating expenditure | E214: No
B223: Disaster recovery policy
B224: Enterprise Resilience Policy | C224: Sets out Powerlink's approach to proactively plan for and management the impact of emergencies and natural disasters to the transmission network and its business operations. | D224: Forecast capital expenditure Forecast operating expenditure | E224: No
B225: Business Continuity Management – Standard | C225: Defines Powerlink’s approach to and definition of Business Continuity Management | D225: Forecast capital expenditure Forecast operating expenditure | E225: No

Sheet 7.2 Contingent projects
B1: =(LOOKUP(dms_Model,dms_Model_List,dms_Worksheet_List)) -> REGULATORY REPORTING STATEMENT
B2: =dms_TradingName -> Powerlink
B3: =CONCATENATE("REGULATORY PERIOD FROM ", FRCP_y1," TO ",dms_MultiYear_FinalYear_Result) -> REGULATORY PERIOD FROM 2027-28 TO 2031-32
B4: 7.2 CONTINGENT PROJECTS
B7: 7.2.1 - PROPOSED CONTINGENT PROJECTS FOR THE FORTHCOMING REGULATORY CONTROL PERIOD
B8: Proposed contingent project name | C8: Proposed contingent capital expenditure ($0's, nominal) | D8: Proposed trigger events | E8: =CONCATENATE("Proposed MAR for ", FRCP_y1," ($0's, nominal)") -> Proposed MAR for 2027-28 ($0's, nominal) | F8: =CONCATENATE("5 per cent of the ", FRCP_y1," ($0's, nominal) MAR") -> 5 per cent of the 2027-28 ($0's, nominal) MAR
B9: Northern Bowen Basis Reinforcement | C9: 502866617.3 | D9: Additional customer demand | E9: 989766712 | F9: =+E9*0.05 -> 49488335.6
B10: Central Queensland System Strength | C10: 511621021.5 | D10: Generation closure/minimum demand | E10: =+$E$9 -> 989766712 | F10: 49488335.6
B11: Southern Queensland System Strength | C11: 255810510.7 | D11: Generation closure/minimum demand | E11: 989766712 | F11: 49488335.6
B12: North Brisbane Area Network Development | C12: 281846336 | D12: Additional customer demand | E12: 989766712 | F12: 49488335.6
B13: Gladstone Area Augmentation | C13: 425782383.4 | D13: Market benefit/Energy Roadmap | E13: 989766712 | F13: 49488335.6
B14: Central Queensland to North Queensland Reinforcement | C14: 2032840859 | D14: Market benefit/Energy Roadmap | E14: 989766712 | F14: 49488335.6
B15: South-West Queensland network augmentation | C15: 89817912.66 | D15: Market benefit/Energy Roadmap | E15: 989766712 | F15: 49488335.6
B16: Surat Basin Area Network Development | C16: 731845447.8 | D16: Market benefit/Energy Roadmap | E16: 989766712 | F16: 49488335.6
B17: Brisbane Area Transfer Capacity | C17: 73446039.97 | D17: Market benefit/Energy Roadmap | E17: 989766712 | F17: 49488335.6
E18: 989766712 | F18: 49488335.6
E19: 989766712 | F19: 49488335.6
E20: 989766712 | F20: 49488335.6
E21: 989766712 | F21: 49488335.6
E22: 989766712 | F22: 49488335.6
E23: 989766712 | F23: 49488335.6
E24: 989766712 | F24: 49488335.6
E25: 989766712 | F25: 49488335.6
E26: 989766712 | F26: 49488335.6
E27: 989766712 | F27: 49488335.6
E28: 989766712 | F28: 49488335.6

Sheet 7.3 Obligations
B1: =(LOOKUP(dms_Model,dms_Model_List,dms_Worksheet_List)) -> REGULATORY REPORTING STATEMENT
B2: =dms_TradingName -> Powerlink
B3: =CONCATENATE("REGULATORY PERIOD FROM ", FRCP_y1," TO ",dms_MultiYear_FinalYear_Result) -> REGULATORY PERIOD FROM 2027-28 TO 2031-32
B4: 7.3 OBLIGATIONS, REQUIREMENTS & STANDARDS
B6: Instructions
B7: =CONCATENATE("Outline those obligations and requirements that ",dms_TradingName, " identifies as having a material impact on expenditure requirements.") -> Outline those obligations and requirements that Powerlink identifies as having a material impact on expenditure requirements.
B9: 7.3.1 - OBLIGATIONS OR REQUIREMENTS
C10: Brief description | D10: Relevance to regulatory proposal | E10: Expenditure impact
C11: Description of relevant obligations or requirements within the instrument (e.g. safety obligations, reliability targets) | D11: Identify what element of the proposal/supporting documents the obligation or requirement is relevant to e.g. replacement capex, capacity utilisation thresholds, opex | E11: Is the obligation or requirement identified in the response to section 4 'Step Changes' of the notice (yes or no)?
B12: Legislation
B13: Aboriginal Cultural Heritage Act 2003(Qld) | C13: This Act provides a framework for the recognition, protection and conservation of Aboriginal cultural heritage which includes an obligation to avoid harm to cultural heritage which applies to Powerlink's activities related to the construction, operation and maintenance of transmission network infrastructure. | D13: Forecast capital expenditure Forecast operating expenditure | E13: No
B14: Acquisition of Land Act 1967 (Qld) and associated regulation | C14: This Act relates to the acquisition of land or an interest in land which includes an easement for electricity works and the payment of compensation to the interest holders of the land over which an easement or other interest is taken. | D14: Forecast capital expenditure | E14: No
B15: Anti-Discrimination Act 1991 (Qld) Age Discrimination Act 2004 (Cth) Disability Discrimination Act 1992 (Cth) Racial Discrimination Act 1975 (Cth) Sex Discrimination Act 1984 (Cth) | C15: These laws provide the framework to protect people from unfair discrimination and other objectionable conduct and applies to Powerlink as an employer. | D15: Forecast operating expenditure | E15: No
B16: Biosecurity Act 2014 (Qld) and associated regulation | C16: This Acts provides a framework for managing biosecurity risks that Powerlink must apply when constructing, operating and maintaining transmission infrastructure and for reporting and notifying of incidents. | D16: Forecast capital expenditure Forecast operating expenditure | E16: No
B17: Civil Aviation Act 1998 (Cth) and associated regulations | C17: This Act regulates the safe operation of aircraft (including drones) and aerial work (including helicopter flight operations). It provides a system of licensing and operational requirements and applies to Powerlink inspection of its transmission infrastructure network. | D17: Forecast operating expenditure | E17: No
B18: Coastal Protection and Management Act 1995 (Qld) | C18: This Act provdies a framework for the protection, conservation and management of the Queensland coast and its resources and applies to certain Powerlink activities carried out in those areas or impacting on tidal waters and associated resources. | D18: Forecast capital expenditure Forecast operating expenditure | E18: No
B19: Corporations Act 2001 (Cth) | C19: This Act includes a corporate sector whistleblower protection regime for whistleblowers who report misconduct about companies and company officers. Companies are required to have a whistleblower policy and apply particular processes including protections of whistleblowers. The regime applies to Powerlink. | D19: Forecast operating expenditure | E19: No
B20: Crime and Corruption Act 2001 (Qld) | C20: This Act provides a framework for the management and notification of complaints of suspected corrupt conduct. | D20: Forecast operating expenditure | E20: No
B21: Economic Development Act 2012 (Qld) | C21: This Act facilitates economic development and development for community purposes which regulates development in declared priority development areas (PDAs). Development of Powerlink's network infrastructure in PDAs is subject to requirements and approval. | D21: Forecast capital expenditure Forecast operating expenditure | E21: No
B22: Electrical Safety Act 2002 (Qld) | C22: This Act sets out compliance obligations for electricity entities to ensure electricity works are operated in a way that is electrically safe. This includes requirements that Powerlink inspects, tests and maintains its works. | D22: Forecast capital expenditure Forecast operating expenditure | E22: No
B23: Electrical Safety Regulation 2013 (Qld) | C23: This Regulation sets out the more detailed requirements for how an electricity entity complies with the Electrical Safety Act. | D23: Forecast capital expenditure Forecast operating expenditure | E23: No
B24: Electricity Act 1994 (Qld) | C24: This Act includes the following key obligations: (a) comply with technical conditions for operating the transmission grid in the transmission authority area, regulations and National Electricity Law and Rules; (b) must properly take into account the environmental impacts of its activities; (c) pay the amounts required under the authority or the regulations for administering the authority and its conditions; (d) must also pay an annual fee that is a proportion of the cost of the State’s funding commitments to national energy market regulation (AEMC Levy). | D24: Forecast capital expenditure Forecast operating expenditure | E24: No
B25: Electricity Regulation 2006 (Qld) | C25: This Regulation is focused on ensuring a secure, efficient and economic supply of electricity to customers on fair and reasonable terms, ensuring customers' interests are adequately protected, provide for proper measurement and information provision regarding the energy efficiency and performance of electrical equipment and prescribes particular conditions of employees in the government owned electricity industry. | D25: Forecast capital expenditure Forecast operating expenditure | E25: No
B26: Energy (Infrastructure Facilitation) Act 2024 (Qld) | C26: This Act provides a framework to that includes strategic infrastructure path objectives and ways to help achieve those objectives. | D26: Forecast capital expenditure Forecast operating expenditure | E26: No
B27: Electricity—National Scheme (Queensland) Act 1997 and the National Electricity Law (NEL) | C27: Electricity transmission entities have a large number of obligations under the NEL. The most significant obligations are to: register with AEMO as a "Registered Participant"; comply with the transmission determination that applies to the electricity transmission network services provided; provide the AER with the necessary information or prepare, maintain or keep the information as is requested by the AER in either a "relevant notice" or a "regulatory information instrument"; provide information to the AER for the purpose of the preparation of a NSP's performance or financial report; comply with the guidelines established by AEMO in relation to the shedding and restoration of loads in order to ensure the safety and security of the National Electricity System; comply with a wide range of obligations relating to the determination and resolution of access disputes, as well as to the restrictions on, variation of and compliance with access determinations; and comply with the general obligation not to prevent or hinder the access of another person to a regulated network service. | D27: Revenue Proposal | E27: No
B28: Environment Protection and Biodiversity Conservation Act 1999 (Cth) and associated regulation | C28: This Act provides a framework to protect and manage matters of national environmental significance (MNES) which includes assessment and approval processes for activities that may impact on MNES as part of developing and constructing transmission network infrastructure. | D28: Forecast capital expenditure Forecast operating expenditure | E28: No
B29: Environmental Offsets Act 2014 (Qld) and associated subordinate legislation | C29: This Act provides a framework for coordinating the assessment and implementation of environmental offsets for activities that impact on prescribed environmental matters under a range of legislation. | D29: Forecast capital expenditure Forecast operating expenditure | E29: No
B30: Environmental Protection Act 1994 (Qld) and subordinate legislation | C30: This Act sets out the obligations for the management of impacts to the environment to avoid harm that apply when constructing, operating and maintaining network infrastructure or related operations. The Act is supported by subordinate legislation which prescribes processes for environmental authorities and environment protection policies for specific environmental aspects. | D30: Forecast capital expenditure Forecast operating expenditure | E30: No
B31: Fair Work Act 2009 (Cth) and associated regulation | C31: This Act provides a framework for cooperative workplace relations and establishes minimum terms and conditions of employment and rights and obligations for employers and employees. | D31: Forecast capital expenditure Forecast operating expenditure | E31: No
B32: Fisheries Act 1994 (Qld) and associated regulation | C32: This Act provides a framework to ensure fisheries resources are used in an ecologically sustainble way. Development of Powerlink's network in fish habitat areas or impacting marine plants is subject to requirements and approval. | D32: Forecast capital expenditure Forecast operating expenditure | E32: No
B33: Forestry Act 1959 (Qld) | C33: This Act regulates Timber Reserves and State Forests to preserve them for timber production. Powerlink must obtain a permit to occupy these areas and approval to interfere with forest products as part of construction, operation and maintainenance of the network infrastructure. | D33: Forecast capital expenditure Forecast operating expenditure | E33: No
B34: Great Barrier Reef Marine Park Act 1975 (Cth) | C34: This Act regulates activities in the marine park in the Great Barrier Reef region and applies to Powerlink activities related to the construction of transmission network infrastructure in marine park zones. | D34: Forecast capital expenditure Forecast operating expenditure | E34: No
B35: Heavy Vehicle National Law Act 2012 (Qld) and associated regulations | C35: This Law is a national scheme for regulating the use of heavy vehicles on roads to ensure public safety, impact minimisation, promote productivity and safe business practices, including chain of resonsiblity obligations that applies to parties with a level of control or influence of heavy vehicles and associted processes. | D35: Forecast capital expenditure Forecast operating expenditure | E35: No
B36: Human Rights Act 2019 (Qld) | C36: This Act establishes a framework for the protection of human rights in public sector decision making which requires all Powerlink decisions give appropriate consideration to potentially impacted human rights. | D36: Forecast capital expenditure Forecast operating expenditure | E36: No
B37: Income Tax Assessment Act 1997 | C37: This Act establishes obligations for corporations to pay income tax as assessed. | D37: Maximum Allowed Revenue | E37: No
B38: Land Act 1994 (Qld) | C38: This Act sets out a range of legal obligations and processes related to the registration and administration of easements. | D38: Forecast capital expenditure Forecast operating expenditure | E38: No
B39: Land Regulation 2020 (Qld) | C39: This Regulation sets out the obligations under the Land Act relating to the issuing and managing of Trustee issued leases and permits to third parties. | D39: Forecast capital expenditure Forecast operating expenditure | E39: No
B40: Land Title Act 1994 (Qld) | C40: This Act relates to the registration and administration of easements and are broadly similar to its obligations under the Land Act 1994. | D40: Forecast capital expenditure Forecast operating expenditure | E40: No
B41: Marine Parks Act 2004 (Qld) | C41: This Act provides a regulatory framework for multi-use management to allow certain activties to occur in marine parks and applies to Powerlink activities related to the construction and maintenance of the transmission network infrastructure in marine parks. | D41: Forecast capital expenditure Forecast operating expenditure | E41: No
B42: Modern Slavery Act 2018 (Cth) | C42: This Act requires entities based, or operating, in Australia, which have an annual consolidated revenue of more than $100 million, to report annually on the risks of modern slavery in their operations and supply chains, and actions to address those risks. | D42: Forecast capital expenditure Forecast operating expenditure | E42: No
B43: National Greenhouse and Energy Reporting Act 2007 (Cth) and associated regulation | C43: This Act establishes a single national reporting framework for the reporting and dissemination of information related to greenhouse gas emissions, projects, energy consumption and energy production of businesses. | D43: Forecast operating expenditure | E43: No
B44: Nature Conservation Act 1992 (Qld) and subordinate legislation | C44: This Act and related subordinate legislation sets out the protected area, protected plants and protected animals framework under which Powerlink may obtain permission to construct, operate and maintain network infrastructure within protected areas and the requirements for taking a protected plant and impacts to protected animals. | D44: Forecast capital expenditure Forecast operating expenditure | E44: No
B45: Ozone Protection and Synthetic Greenhouse Gas Management Act 1989 (Cth) and associated subordinate legislation | C45: This Act provides a framework to control the manufacture, import, export, use and disposal of ozone depleting substances and synthetic greenhouse gases and products containing these gases. Approval processes apply to Powerlink’s SF6 reprocessing plant processes for recovery, storage, conditioning and dispensing of SF6 gas recovered from insulated HV Gas Insulated Switchgear (GIS), bus ducts, circuit breakers and other devices or instruments containing SF6 gas. | D45: Forecast operating expenditure | E45: No
B46: Planning Act 2016 (Qld) and associated regulation | C46: This Act provides a framework for the integration of planning, environment and development assessment requirements at the local, regional and State levels. The Act provides for the Infrastructure Designation process for the development of Powerlink's network infrastructure. | D46: Forecast capital expenditure | E46: No
B47: Radiocommunications Act 1992 (Cth) and associated regulations | C47: This Act provides for the regulation of the radiofrequency spectrum. It provides a system of licensing for commercial use of spectrum (including microwaves in communication systems). | D47: Forecast operating expenditure | E47: No
B48: Security of Critical Infrastructure Act 2018 (Cth) and the Security of Critical Infrastructure Rules 2018 (Cth) | C48: This Act establishes a regime to manage national security risks from foreign involvement in Australia’s critical infrastructure. The related rules prescribe critical infrastructure assets which includes Powerlink's transmission infrastructure network and provides further information requirements for reporting. | D48: Forecast capital expenditure Forecast operating expenditure | E48: Yes
B49: Vegetation Management Act 1999 (Qld) and associated regulation | C49: This Act sets out requirements for the clearing, conservation and management of native vegetation related to Powerlink constructing, operating and maintaining its transmission network infrastructure. | D49: Forecast capital expenditure Forecast operating expenditure | E49: No
B50: Waste Reduction and Recycling Act 2011 (Qld) and associated regulation | C50: This Act provides a framework for waste management and applies to Powerlink potential waste types that may be generated at a Powerlink facility or operation, or a result of construction of transmission network infrastructure. | D50: Forecast capital expenditure Forecast operating expenditure | E50: No
B51: Water Act 2000 (Qld) and associated regulation | C51: This Act provides a framework for managing water use and activities that may impact on water resources that apply to Powerlink activities related to the construction of transmission network infrastructure. | D51: Forecast capital expenditure Forecast operating expenditure | E51: No
B52: Wet Tropics World Heritage Protection and Management Act 1993 (Qld) and associated subordinate legislation | C52: This Act regulates activities in the wet tropics area and applies to Powerlink as part of construction and maintenance of the network infrastructure in the wet tropics area. | D52: Forecast capital expenditure Forecast operating expenditure | E52: No
B53: Work Health and Safety Regulation 2011 (Qld) | C53: The Regulation sets out the legal requirements to eliminate, minimise or control workplace risks. | D53: Forecast capital expenditure Forecast operating expenditure | E53: No
B54: Work Health and Safety Act 2011(Qld) | C54: This Act sets out the requirements for Powerlink to maintain appropriate health and safety standards to ensure the safety of its employees and other persons. | D54: Forecast capital expenditure Forecast operating expenditure | E54: No
B224: Licences
B225: Electricity Act 1994 (Qld) | C225: Powerlink's Transmission Authority sets out the licence obligations and reliability standard to which Powerlink must comply. | D225: Forecast capital expenditure Forecast operating expenditure | E225: No
B229: Rules
B230: National Electricity Rules | C230: The Rules contain provisions that impose specific obligations on the different entities that operate within the electricity industry. TNSPs, such as Powerlink, have a number of obligations under the Rules which apply to different parts of their operations, including registration as a NSP, technical standards of operation, network connections, economic regulation and metering. | D230: Revenue Proposal | E230: No
B234: Orders
B238: Codes
B239: Accepted Development Vegetation Clearing Code Clearing for Infrastructure (Qld) | C239: This Code regulates the clearing of certain categories of remnant vegetation and allows certain infrastrucuture development, including transmission infrastructure, to occur without assessment provided it meets the requirements of the Code. | D239: Forecast capital expenditure Forecast operating expenditure | E239: No
B240: Code of Practice - Maintenance of Electricity Corridors in Queensland's Parks and Forest (Qld) | C240: This Code sets out the processes and requirements for maintaining transmission infrasturcutre in Parks and Forests and in the Wet Tropics of Queensland World Heritage Area. | D240: Forecast capital expenditure Forecast operating expenditure | E240: No
B241: Code of Practice 2011 How to Manage and Control Asbestos in the Workplace (Qld) | C241: This Code sets out practices to control the risks of asbestos-containing materials in workplaces. | D241: Forecast capital expenditure Forecast operating expenditure | E241: No
B242: Code of Practice 2011 How to Safely Remove Asbestos (Qld) | C242: This Code sets out practices for the safe removal of asbestos and asbestos-containing material from buildings and structures, plant and equipment and vehicles. | D242: Forecast capital expenditure Forecast operating expenditure | E242: No
B243: Construction and Operation of Solar Farms Code of Practice 2019 (Qld) | C243: This Code sets out how duty holders can comply with work health and safety and electrical safety duties during the design, construction, commissioning, operation, maintenance and end of life management of solar farms. This includes installers of electrical equipment or an electrical installation which can include Powerlink. | D243: Forecast capital expenditure Forecast operating expenditure | E243: No
B244: Electrical Code of Practice 2013 Managing Electrical Risks in the Workplace (Qld) | C244: This Code sets out practices to manage electrical risk when working near exposed live parts. | D244: Forecast capital expenditure Forecast operating expenditure | E244: No
B245: Electrical Code of Practice 2020 - Working Near Overhead and Underground Electric Lines (Qld) | C245: This Code sets out compliance requirements to ensure that no person, plant or thing comes within an unsafe distance (exclusion zone) of an overhead electric line. | D245: Forecast capital expenditure Forecast operating expenditure | E245: No
B246: Electrical Safety Code of Practice 2020 - Works (Qld) | C246: This Code sets out how to manage risks associated with associated with earthing systems, underground cable systems, and supporting structures for overhead lines forming parts of the works of an electricity entity. | D246: Forecast capital expenditure Forecast operating expenditure | E246: No
B247: How to Manage Work Health and Safety Risks Code of Practice 2011 (Qld) | C247: This Code applies to all types of work and all workplaces covered by the WHS Act. | D247: Forecast capital expenditure Forecast operating expenditure | E247: No
B248: Queensland Electricity Supply Industry Code of Practice for Maintenance of Electricity Corridors (Qld) | C248: This Code sets out the processes and requirements for maintaining Powerlink's transmission infrastructure in protected areas. | D248: Forecast capital expenditure Forecast operating expenditure | E248: No
B249: State Government Supported Infrastructure Koala Conservation Policy (Qld) | C249: This policy establishes critiera to reduce adverse impacts on koalas and koala habitat and applies to the planning and delivery of all Queensland Government supported infrastructure projects within the South East Queensland Koala Protection Area (SEQKPA) that are not otherwise regulated or where no development approval is required. | D249: Forecast capital expenditure Forecast operating expenditure | E249: No
B250: Work Health and Safety Consultation, Co-operation and Co-ordination Code of Practice 2011 (Qld) | C250: This Code sets out how to effectively consult with workers, includes mechanisms to facilitate worker participation and representation and consultation, co-opereration and co-ordination of activities of share duty holders. | D250: Forecast capital expenditure Forecast operating expenditure | E250: No
B254: Guidelines
B255: AER's Better Regulation Guidelines and Schemes | C255: Guidelines relate to confidentiality, expenditure forecast assessment, cost allocation, capital expenditure incentives, rate of return and consumer engagement. Schemes include STPIS and EBSS. | D255: Revenue Proposal | E255: No
B256: Corporate Goverannce Guidelines for Government Owned Corporations | C256: This guideline sets the Government Owned Corporation Shareholder expectations for governance and reporting arrangements. | D256: Revenue Proposal | E256: No
B293: Default agreements
B298: Other

Sheet 7.4 Shared Assets
B1: =(LOOKUP(dms_Model,dms_Model_List,dms_Worksheet_List)) -> REGULATORY REPORTING STATEMENT
B2: =dms_TradingName -> Powerlink
B3: =CONCATENATE("REGULATORY PERIOD FROM ", FRCP_y1," TO ",dms_MultiYear_FinalYear_Result) -> REGULATORY PERIOD FROM 2027-28 TO 2031-32
B4: 7.4 SHARED ASSETS
B7: 7.4.1 - TOTAL UNREGULATED REVENUE EARNED WITH SHARED ASSETS
B8: Name of shared asset unregulated service | C8: Description of shared assets used to provide the service | D8: =CONCATENATE("REVENUE ($0's, real ", dms_DollarReal,")") -> REVENUE ($0's, real June 2027)
D9: =dms_y4 -> 2025-26 | E9: =dms_y5 -> 2026-27 | F9: =dms_y6 -> 2027-28 | G9: =dms_y7 -> 2028-29 | H9: =dms_y8 -> 2029-30 | I9: =dms_y9 -> 2030-31 | J9: =dms_y10 -> 2031-32 | K9: =CONCATENATE("Total ",FRCP_y1, " to ", dms_MultiYear_FinalYear_Result) -> Total 2027-28 to 2031-32
B10: Property Rentals | C10: Property Rentals | D10: 543225.8917 | E10: 543225.8917 | F10: 543225.8917 | G10: 543225.8917 | H10: 543225.8917 | I10: 543225.8917 | J10: 543225.8917 | K10: =SUM(F10:J10) -> 2716129.458
B11: Tower Access | C11: Tower Access | D11: 1810449.196 | E11: 1810449.196 | F11: 1810449.196 | G11: 1810449.196 | H11: 1810449.196 | I11: 1810449.196 | J11: 1810449.196 | K11: 9052245.981
B12: QDATA | C12: QDATA | D12: 0 | E12: 0 | F12: 53302.8 | G12: 53302.8 | H12: 53302.8 | I12: 53302.8 | J12: 53302.8 | K12: 266514
B13: Property Searches | C13: Property Searches | D13: 0 | E13: 0 | F13: 207108.2213 | G13: 207108.2213 | H13: 207108.2213 | I13: 207108.2213 | J13: 207108.2213 | K13: 1035541.106
B14: Easement compensation | C14: Easement compensation | D14: 0 | E14: 0 | F14: 1000000 | G14: 1000000 | H14: 1000000 | I14: 1000000 | J14: 1000000 | K14: 5000000
K15: 0
K16: 0
K17: 0
K18: 0
K19: 0
K20: 0
K21: 0
K22: 0
K23: 0
K24: 0
B28: 7.4.2 - SHARED ASSET UNREGULATED SERVICES - APPORTIONMENT METHODOLOGY
B29: Name of shared asset unregulated service for which revenues were apportioned | C29: Apportionment methodology

Sheet 7.5 Large Projects
B1: =(LOOKUP(dms_Model,dms_Model_List,dms_Worksheet_List)) -> REGULATORY REPORTING STATEMENT
B2: =dms_TradingName -> Powerlink
B3: =CONCATENATE("REGULATORY PERIOD FROM ", FRCP_y1," TO ",dms_MultiYear_FinalYear_Result) -> REGULATORY PERIOD FROM 2027-28 TO 2031-32
B4: 7.5 LARGE PROJECTS
B7: 7.5.1 - OPERATING EXPENDITURE
C8: EXPENDITURE
C9: =CONCATENATE("Forecast ($0's, real ",dms_DollarReal,")") -> Forecast ($0's, real June 2027)
C10: =dms_y4 -> 2025-26 | D10: =dms_y5 -> 2026-27 | E10: =dms_y6 -> 2027-28 | F10: =dms_y7 -> 2028-29 | G10: =dms_y8 -> 2029-30 | H10: =dms_y9 -> 2030-31 | I10: =dms_y10 -> 2031-32
B11: PROJECT NAME/ID
B47: Total | C47: =SUM(C12:C46) -> 0 | D47: 0 | E47: 0 | F47: 0 | G47: 0 | H47: 0 | I47: 0
B52: 7.5.2 - CAPITAL EXPENDITURE
C53: EXPENDITURE
C54: =CONCATENATE("Forecast ($0's, real ",dms_DollarReal,")") -> Forecast ($0's, real June 2027)
C55: =dms_y4 -> 2025-26 | D55: =dms_y5 -> 2026-27 | E55: =dms_y6 -> 2027-28 | F55: =dms_y7 -> 2028-29 | G55: =dms_y8 -> 2029-30 | H55: =dms_y9 -> 2030-31 | I55: =dms_y10 -> 2031-32
B56: PROJECT NAME/ID
B57: Buildings - Virginia Uplift | C57: 2813646.862 | D57: 6517120.793 | E57: 19287239.39 | F57: 63373308.29 | G57: 15184108.94 | H57: 3720262.383 | I57: 4765994.235
B58: Coppabella Substation Reinvestment | C58: 0 | D58: 0 | E58: 5306549.697 | F58: 10404551.49 | G58: 21494314.49 | H58: 21129244.82 | I58: 0
B59: Woree-Kamerunga 132kV Line Reinvestment | C59: 3880892.224 | D59: 21328760.92 | E59: 68635904.08 | F59: 38831872.76 | G59: 16150829.11 | H59: 19691957.29 | I59: 4498920.651
B60: Oonooie Substation Reinvestment | C60: 0 | D60: 0 | E60: 0 | F60: 196288.048 | G60: 297008.2937 | H60: 20538153.51 | I60: 36041097.94
B61: T053 Kamerunga Substation Rebuild | C61: 3985781.203 | D61: 18616570.75 | E61: 31555486.64 | F61: 25865396.27 | G61: 14978377.04 | H61: 3930456.4 | I61: 0
B62: BS1220 & BS1671 Ross to Chalumbin Life Extension | C62: 1289180.162 | D62: 1802939.018 | E62: 23342591.46 | F62: 24785429.37 | G62: 22434315.85 | H62: 22650070.53 | I62: 21954733.77
B63: H031 Molendinar Secondary Systems Replacement | C63: 3527.416364 | D63: 0 | E63: 14698445.84 | F63: 14863252.48 | G63: 15688338 | H63: 11116883.88 | I63: 407252.9137
B64: Woolooga-South Pine 275kV Modified Refit BS1020 | C64: 0 | D64: 2486579.67 | E64: 782367.6131 | F64: 1184481.169 | G64: 20191718.39 | H64: 20549659.15 | I64: 8382155.268
B65: Substation Physical Security | C65: 0 | D65: 0 | E65: 8407805.185 | F65: 18985367.34 | G65: 29661090.85 | H65: 43618697.15 | I65: 45910702.69
B66: Nebo to Bouldercombe Strategic Easement | C66: 0 | D66: 0 | E66: 7491890.521 | F66: 18511347.12 | G66: 21251740.91 | H66: 61514349.01 | I66: 42302520.17
B67: Calliope River to Wurdong Strategic Easement | C67: 0 | D67: 0 | E67: 4797048.382 | F67: 7610540.808 | G67: 21512221.51 | H67: 17237678.87 | I67: 0
B68: Buildings - Gladstone | C68: 0 | D68: 0 | E68: 14981848.6 | F68: 18105655.74 | G68: 23482362.64 | H68: 0 | I68: 0
B69: Grantleigh Substation Reinvestment | C69: 0 | D69: 0 | E69: 0 | F69: 0 | G69: 0 | H69: 352338.5739 | I69: 28793959.04
B70: H021 Murarrie Secondary Systems Replacement | C70: 0 | D70: 0 | E70: 0 | F70: 0 | G70: 815026.024 | H70: 15804627.01 | I70: 18876358.44
B71: H014 Middle Ridge Secondary Systems Replacement | C71: 0 | D71: 0 | E71: 0 | F71: 334364.0369 | G71: 9116028.025 | H71: 11620014.32 | I71: 16008877.69
B72: Replace 275kV ABB IMB300 CT's - Surat | C72: 7454126.979 | D72: 7857070.435 | E72: 8200512.171 | F72: 12258426.52 | G72: 3469058.602 | H72: 106638.7183 | I72: 0
B73: South Pine 110 kV Secondary System Replacement | C73: 0 | D73: 0 | E73: 0 | F73: 0 | G73: 0 | H73: 779058.2679 | I73: 19896286.67
B74: Telecommunication Network Consolidation RAN 2 | C74: 5674928.845 | D74: 11250147.8 | E74: 16746600.14 | F74: 9319906.534 | G74: 0 | H74: 0 | I74: 0
B75: Telecommunication Network Consolidation RAN 4 | C75: 0 | D75: 0 | E75: 0 | F75: 0 | G75: 0 | H75: 17555590.47 | I75: 12189930.68
B76: NGNO Advanced Energy Management System | C76: 47502498.42 | D76: 50210852.84 | E76: 17799789.72 | F76: 0 | G76: 0 | H76: 0 | I76: 0
B77: Davies Creek – Bayview Heights 275kV Refit | C77: 12063281.48 | D77: 0 | E77: 0 | F77: 0 | G77: 0 | H77: 0 | I77: 0
B78: Nebo Secondary Systems Replacement | C78: 1369850.066 | D78: 0 | E78: 0 | F78: 0 | G78: 0 | H78: 0 | I78: 0
B79: Lilyvale Selected Primary Plant Replacement | C79: 9819706.216 | D79: 6516831.761 | E79: 430440.2356 | F79: 0 | G79: 0 | H79: 0 | I79: 0
B93: Total | C93: =SUM(C57:C92) -> 95857419.87 | D93: 126586874 | E93: 242464519.7 | F93: 264630188 | G93: 235726538.7 | H93: 291915680.3 | I93: 260028790.2

Sheet 7.9 STPIS
B1: =(LOOKUP(dms_Model,dms_Model_List,dms_Worksheet_List)) -> REGULATORY REPORTING STATEMENT
B2: =dms_TradingName -> Powerlink
B3: =CONCATENATE("REGULATORY PERIOD FROM ", FRCP_y1," TO ",dms_MultiYear_FinalYear_Result) -> REGULATORY PERIOD FROM 2027-28 TO 2031-32
B4: 7.9 SERVICE TARGET PERFORMANCE INCENTIVE SCHEME (STPIS)
B7: 7.9.1 - Historical performance and proposed floor, caps and targets for the service component of the STPIS
B8: Parameter | C8: Performance actuals | I8: Average of actual performance | J8: Floor | K8: Target | L8: Cap | M8: Weighting (% of MAR)
C9: =(LEFT(PRCP_y3,2)&RIGHT(PRCP_y3,2)) -> 2020 | D9: =LEFT(PRCP_y4,2)&RIGHT(PRCP_y4,2) -> 2021 | E9: =LEFT(PRCP_y5,2)&RIGHT(PRCP_y5,2) -> 2022 | F9: =(LEFT(CRCP_y1,2)&RIGHT(CRCP_y1,2)) -> 2023 | G9: =(LEFT(CRCP_y2,2)&RIGHT(CRCP_y2,2)) -> 2024 | H9: =(LEFT(CRCP_y3,2)&RIGHT(CRCP_y3,2)) -> 2025
B10: Unplanned outage circuit event rate:
B11: Transmission line outage - fault | C11: 9.060402685 | D11: 11.44781145 | E11: 7.973421927 | F11: 7.540983607 | G11: 10.74918567 | I11: =+AVERAGE(C11:H11) -> 9.354361067 | J11: 11.74 | K11: 9.35 | L11: 6.52 | M11: 0.002
B12: Transformer outage – fault | C12: 11.62790698 | D12: 11.69590643 | E12: 14.03508772 | F12: 10.58823529 | G12: 14.28571429 | I12: 12.44657014 | J12: 15.03 | K12: 12.45 | L12: 10.25 | M12: 0.002
B13: Reactive plant – fault | C13: 22.55639098 | D13: 23.30827068 | E13: 16.54135338 | F13: 22.55639098 | G13: 18.65671642 | I13: 20.72382449 | J13: 24.27 | K13: 20.72 | L13: 16.45 | M13: 0.001
B14: Transmission line outage – forced outage | C14: 18.12080537 | D14: 13.46801347 | E14: 10.96345515 | F14: 11.80327869 | G14: 10.42345277 | I14: 12.95580109 | J14: 17.61 | K14: 12.96 | L14: 9.34 | M14: 0.001
B15: Transformer outage – forced outage | C15: 18.60465116 | D15: 14.61988304 | E15: 11.11111111 | F15: 12.94117647 | G15: 8.333333333 | I15: 13.12203102 | J15: 19.31 | K15: 13.12 | L15: 7.98 | M15: 0.001
B16: Reactive plant – forced outage | C16: 20.30075188 | D16: 25.56390977 | E16: 21.80451128 | F16: 27.06766917 | G16: 19.40298507 | I16: 22.82796544 | J16: 27.91 | K16: 22.83 | L16: 18.18 | M16: 0.0005
B17: Loss of supply event frequency (number of events):
B18: > (x) system minutes - 0.05 | C18: 0 | D18: 3 | E18: 2 | F18: 2 | G18: 0 | I18: =+AVERAGE(C18:H18) -> 1.4 | J18: 4 | K18: 1.4 | L18: 0 | M18: 0.0015
B19: > (y) system minutes - 0.40 | C19: 0 | D19: 1 | E19: 1 | F19: 1 | G19: 0 | I19: =+AVERAGE(C19:H19) -> 0.6 | J19: 2 | K19: 0.6 | L19: 0 | M19: 0.0015
B20: Average outage duration (minutes): | C20: 57.4075 | D20: 44.73 | E20: 611.115 | F20: 34.248 | G20: 58.30666667 | I20: =+AVERAGE(C20:H20) -> 161.1614333 | J20: 297.24 | K20: 161.16 | L20: 13.2 | M20: 0.002
B21: Proper operation of equipment (number of events):
B22: Failure of protection system | C22: 21 | D22: 29 | E22: 22 | F22: 20 | G22: 21 | I22: =+AVERAGE(C22:H22) -> 22.6 | J22: N/A | K22: N/A | L22: N/A | M22: 0
B23: Material failure of SCADA | C23: 0 | D23: 0 | E23: 0 | F23: 0 | G23: 0 | I23: =+AVERAGE(C23:H23) -> 0 | J23: N/A | K23: N/A | L23: N/A | M23: 0
B24: Incorrect operational isolation of primary or secondary equipment | C24: 9 | D24: 11 | E24: 2 | F24: 2 | G24: 5 | I24: =+AVERAGE(C24:H24) -> 5.8 | J24: N/A | K24: N/A | L24: N/A | M24: 0

Sheet 8.2 Capex
B1: =(LOOKUP(dms_Model,dms_Model_List,dms_Worksheet_List)) -> REGULATORY REPORTING STATEMENT
B2: =dms_TradingName -> Powerlink
B3: =CONCATENATE("REGULATORY PERIOD FROM ", FRCP_y1," TO ",dms_MultiYear_FinalYear_Result) -> REGULATORY PERIOD FROM 2027-28 TO 2031-32
B4: 8.2 - CAPEX
B6: 8.2.7 - IMMEDIATE EXPENSING OF CAPEX
B7: ESTIMATED - AS COMMISSIONED
C8: EXPENDITURE
C9: =CONCATENATE("$0's, real ", dms_DollarReal) -> $0's, real June 2027
B10: Asset class | C10: =dms_y4 -> 2025-26 | D10: =dms_y5 -> 2026-27
B11: Transmission Lines - Overhead | C11: 2679388.684 | D11: 2657458.775
B12: Transmission Lines - Underground | C12: 21600.86597 | D12: 0
B13: Transmission Lines - Refit | C13: 11869918.83 | D13: 2607257.752
B14: Substations Primary Plant | C14: 1575510.235 | D14: 19537444.14
B15: Substations Secondary Systems | C15: 4573670.535 | D15: 10059875.7
B16: Communications Other Assets | C16: 1584278.617 | D16: 8953425.211
B17: Comms - Civil Works | C17: 0 | D17: 0
B18: Network Switching Centres | C18: 15606980.3 | D18: 8300911.779
B19: Land | C19: 0 | D19: 0
B20: Easements | C20: 0 | D20: 0
B21: Commercial Buildings | C21: 0 | D21: 0
B22: Computer Equipment | C22: 1425944.599 | D22: 1458982.328
B23: Office Furniture & Miscellaneous | C23: 0 | D23: 0
B24: Office Machines | C24: 0 | D24: 0
B25: Vehicles | C25: 1686928.167 | D25: 683439.3061
B26: Moveable Plant | C26: 590162.295 | D26: 616405.2366
B27: Insurance Spares | C27: 0 | D27: 0
B28: Buildings - capital works | C28: 442621.7213 | D28: 2001887.694
B29: In-house software | C29: 873966.0444 | D29: 894214.9752
B30: Equity raising costs | C30: 0 | D30: 0
B61: Total | C61: =SUM(C11:C60) -> 42930970.9 | D61: =SUM(D11:D60) -> 57771302.9

Sheet 8.8 Revenue
B1: =(LOOKUP(dms_Model,dms_Model_List,dms_Worksheet_List)) -> REGULATORY REPORTING STATEMENT
B2: =dms_TradingName -> Powerlink
B3: =CONCATENATE("REGULATORY PERIOD FROM ", FRCP_y1," TO ",dms_MultiYear_FinalYear_Result) -> REGULATORY PERIOD FROM 2027-28 TO 2031-32
B4: 8.8 REVENUE
B7: 8.8.1 - REVENUE FROM PRESCRIBED SERVICES
C8: REVENUE
C9: =CONCATENATE("Forecast ($0's. real ",dms_DollarReal,")") -> Forecast ($0's. real June 2027)
C10: =dms_y4 -> 2025-26 | D10: =dms_y5 -> 2026-27 | E10: =dms_y6 -> 2027-28 | F10: =dms_y7 -> 2028-29 | G10: =dms_y8 -> 2029-30 | H10: =dms_y9 -> 2030-31 | I10: =dms_y10 -> 2031-32
B11: Prescribed entry services | C11: 7016851.49 | D11: 7241284.36 | E11: 7474122.7 | F11: 7707416.29 | G11: 8116801.27 | H11: 8676919.14 | I11: 9408247.5
B12: Prescribed exit services | C12: 88201145.12 | D12: 91022244.65 | E12: 93949000.06 | F12: 96881477.96 | G12: 102027407.6 | H12: 109068035.2 | I12: 118260761.9
B13: Prescribed common transmission services | C13: 290165307.9 | D13: 307025478.9 | E13: 321555993.1 | F13: 358447054.7 | G13: 367663153.2 | H13: 386557130.4 | I13: 402414376.9
B14: Locational TUOS services | C14: 237688404.7 | D14: 248547283.5 | E14: 257331212.6 | F14: 266132316.4 | G14: 281576545.5 | H14: 302707239.7 | I14: 330296924.9
B15: Non-locational TUOS services | C15: 150268862.8 | D15: 179710252.7 | E15: 207869229 | F15: 216670332.7 | G15: 232114561.9 | H15: 253245256 | I15: 280834941.3
B16: Net revenue from modified load export charges | C16: 5964209.18 | D16: 5964209.18 | E16: 5964209.18 | F16: 5964209.18 | G16: 5964209.18 | H16: 5964209.18 | I16: 5964209.18
B17: System strength services | C17: -15659095.96 | D17: -15880517.19 | E17: -22223141.32 | F17: -50922334.24 | G17: -54362230.44 | H17: -61634576.88 | I17: -61634576.88
B18: Inter-regional settlements residues; proceeds from auctions | C18: 20532173.64 | D18: 18669157.6 | E18: 18669157.6 | F18: 18669157.6 | G18: 18669157.6 | H18: 18669157.6 | I18: 18669157.6
B19: Intra-regional settlements residues | C19: 66445746.4 | D19: 84817290.23 | E19: 84817290.23 | F19: 84817290.23 | G19: 84817290.23 | H19: 84817290.23 | I19: 84817290.23
B20: Total | C20: =SUM(C11:C19) -> 850623605.3 | D20: 927116683.9 | E20: 975407073.1 | F20: 1004366921 | G20: 1046586896 | H20: 1108070661 | I20: 1189031333

Sheet Formatting Styles (hidden)
B1: THIS WORKSHEET CONTAINS STYLES AND FORMATTING USED IN RIN TEMPLATES
K6: My named range
B28: STYLES IN USE | C28: dms_H2
B29: TOP HEADER | C29: dms_H1
B30: HEADING ONE | C30: dms_1
B31: HEADING TWO | C31: dms_2
B32: HEADING THREE | C32: dms_3
B33: HEADING FOUR | C33: dms_4
B34: HEADING FIVE | C34: dms_5
B35: 5.111 | C35: dms_NUM
B36: 0.0545 | C36: dms_NUM%
B37: 5.5555 | C37: dms_NUM3d
B38: Text description | C38: dms_Row_Locked
B39: Text description - not locked | C39: dms_Row1
B40: Text description | C40: dms_Row2
B41: Total | C41: dms_T1
B42: Total | C42: dms_T2
B43: EXPENSES | C43: dms_BH
B44: 2019 | C44: dms_BY1
B45: 2019 | C45: dms_BY2
B46: VOLUMES | C46: dms_GH
B47: 2019 | C47: dms_GY1
B48: 2019 | C48: dms_GY2

Sheet AER Sheet Heading (hidden)
B1: =INDEX(dms_Worksheet_List,MATCH(dms_Model,dms_Model_List)) -> REGULATORY REPORTING STATEMENT
B2: =INDEX(dms_TradingNameFull_List,MATCH(dms_TradingName,dms_TradingName_List)) -> Queensland Electricity Transmission Corporation Limited trading as Powerlink Queensland
B3: =CONCATENATE("REGULATORY PERIOD FROM ", FRCP_y1," TO ",dms_MultiYear_FinalYear_Result) -> REGULATORY PERIOD FROM 2027-28 TO 2031-32
B4: XX
C11: EXPENDITURE
C12: =CONCATENATE("Forecast ($0's, real ",dms_DollarReal,")") -> Forecast ($0's, real June 2027)
C13: =dms_y1 -> 2022-23 | D13: =dms_y2 -> 2023-24 | E13: =dms_y3 -> 2024-25 | F13: =dms_y4 -> 2025-26 | G13: =dms_y5 -> 2026-27 | H13: =dms_y6 -> 2027-28 | I13: =dms_y7 -> 2028-29
C42: VOLUMES
C43: 0's
C44: =dms_y1 -> 2022-23 | D44: =dms_y2 -> 2023-24 | E44: =dms_y3 -> 2024-25 | F44: =dms_y4 -> 2025-26 | G44: =dms_y5 -> 2026-27 | H44: =dms_y6 -> 2027-28 | I44: =dms_y7 -> 2028-29

Sheet AER CF (hidden)
B1: AER CONDITIONAL FORMATTING
B3: CELLS FLAGED "Y" and greyed out will be greyed out in the worksheets.
B4: CONDITIONAL FORMATTING MAP
F5: =INDEX(dms_CF_3.6.1, MATCH(dms_TradingName,dms_CF_TradingName))="Y" | G5: =INDEX(dms_CF_3.6.5, MATCH(dms_TradingName,dms_CF_TradingName))="Y" | H5: =INDEX(dms_CF_3.6.6.1, MATCH(dms_TradingName,dms_CF_TradingName))="Y" | I5: =INDEX(dms_CF_3.6.6.2, MATCH(dms_TradingName,dms_CF_TradingName))="Y" | J5: =INDEX(dms_CF_3.6.6.3, MATCH(dms_TradingName,dms_CF_TradingName))="Y" | K5: =INDEX(dms_CF_3.6.7.1, MATCH(dms_TradingName,dms_CF_TradingName))="Y" | L5: =INDEX(dms_CF_3.6.7.2, MATCH(dms_TradingName,dms_CF_TradingName))="Y" | M5: =INDEX(dms_CF_3.6.7.3, MATCH(dms_TradingName,dms_CF_TradingName))="Y" | N5: =INDEX(dms_CF_3.6.7.4, MATCH(dms_TradingName,dms_CF_TradingName))="Y" | O5: =INDEX(dms_CF_3.6.8, MATCH(dms_TradingName,dms_CF_TradingName))="Y" | P5: =INDEX(dms_CF_4.1, MATCH(dms_TradingName,dms_CF_TradingName))="Y" | Q5: =INDEX(dms_CF_6.8, MATCH(dms_TradingName,dms_CF_TradingName))="Y" | R5: =INDEX(dms_CF_7.12, MATCH(dms_TradingName,dms_CF_TradingName))="Y" | S5: =INDEX(dms_CF_8.1_A, MATCH(dms_TradingName,dms_CF_TradingName))="Y" | T5: =INDEX(dms_CF_8.1_B, MATCH(dms_TradingName,dms_CF_TradingName))="Y" | U5: =INDEX(dms_CF_8.1_Neg, MATCH(dms_TradingName,dms_CF_TradingName))="Y" -> TRUE | V5: =INDEX(dms_CF_4.4.1_Neg, MATCH(dms_TradingName,dms_CF_TradingName))="Y" | Y5: =INDEX(dms_CF_F10, MATCH(dms_TradingName,dms_CF_TradingName))="Y"
B6: dms_CF_TradingName | C6: JurisdictionList | D6: Sector | E6: Segment | F6: dms_CF_3.6.1 | G6: dms_CF_3.6.5 | H6: dms_CF_3.6.6.1 | I6: dms_CF_3.6.6.2 | J6: dms_CF_3.6.6.3 | K6: dms_CF_3.6.7.1 | L6: dms_CF_3.6.7.2 | M6: dms_CF_3.6.7.3 | N6: dms_CF_3.6.7.4 | O6: dms_CF_3.6.8 | P6: dms_CF_4.1 | Q6: dms_CF_6.8 (set from dms_MAIFI_flag) | R6: dms_CF_7.12 | S6: dms_CF_8.1_A (and 8.4) | T6: dms_CF_8.1_B (and 8.4) | U6: dms_CF_8.1_Neg (and 8.4) | V6: dms_CF_4.4.1 | W6: dms_CF_MAIFI_flag (set from dms_MAIFI_flag) | X6: 9.5 TUOS (set from Jurisdiction) | Y6: dms_CF_F10
B7: Amadeus | C7: NT | D7: Gas | E7: Transmission | F7: - | G7: - | H7: - | I7: - | J7: - | K7: - | L7: - | M7: - | N7: - | O7: - | P7: - | Q7: - | R7: - | S7: - | T7: - | U7: - | V7: - | W7: - | X7: - | Y7: -
B8: APA GasNet | C8: Vic | D8: Gas | E8: Transmission | F8: - | G8: - | H8: - | I8: - | J8: - | K8: - | L8: - | M8: - | N8: - | O8: - | P8: - | Q8: - | R8: - | S8: - | T8: - | U8: - | V8: - | W8: - | X8: - | Y8: -
B9: Ausgrid | C9: NSW | D9: Electricity | E9: Distribution | G9: Y | H9: N | I9: N | J9: N | K9: N | L9: N | M9: N | N9: Y | O9: N | P9: N | Q9: =IFERROR(IF(dms_MAIFI_flag="Yes","N","Y"),"Y") -> Y | R9: Y | S9: N | T9: Y | U9: Y | V9: N | W9: =IFERROR(LEFT(dms_MAIFI_flag),"N") -> N | X9: =IF('AER CF'!$C7="Vic","Y","N") -> N
B10: Ausgrid (Tx Assets) | C10: NSW | D10: Electricity | E10: Distribution | G10: Y | H10: N | I10: N | J10: N | K10: N | L10: N | M10: N | N10: Y | O10: N | P10: N | Q10: =IFERROR(IF(dms_MAIFI_flag="Yes","N","Y"),"Y") -> Y | R10: Y | S10: N | T10: Y | U10: Y | V10: N | W10: =IFERROR(LEFT(dms_MAIFI_flag),"N") -> N | X10: =IF('AER CF'!$C8="Vic","Y","N") -> Y
B11: AusNet (D) | C11: Vic | D11: Electricity | E11: Distribution | G11: N | H11: N | K11: N | L11: N | M11: N | N11: N | O11: N | P11: N | Q11: =IFERROR(IF(dms_MAIFI_flag="Yes","N","Y"),"Y") -> Y | R11: N | S11: N | T11: N | U11: Y | V11: N | W11: =IFERROR(LEFT(dms_MAIFI_flag),"N") -> N | X11: =IF('AER CF'!$C9="Vic","Y","N") -> N
B12: AusNet Services Tx | C12: Vic | D12: Electricity | E12: Transmission | G12: N | K12: N | L12: N | M12: N | N12: N | O12: N | P12: Y | Q12: =IFERROR(IF(dms_MAIFI_flag="Yes","N","Y"),"Y") -> Y | R12: N | S12: N | T12: N | U12: Y | V12: N | W12: =IFERROR(LEFT(dms_MAIFI_flag),"N") -> N | X12: =IF('AER CF'!$C10="Vic","Y","N") -> N
B13: Australian Distribution Co. | C13: NSW | D13: Electricity | E13: Distribution | F13: N | G13: N | H13: N | I13: N | K13: N | L13: N | M13: N | N13: N | O13: N | P13: N | Q13: =IFERROR(IF(dms_MAIFI_flag="Yes","N","Y"),"Y") -> Y | R13: N | S13: N | T13: N | U13: N | V13: N | W13: =IFERROR(LEFT(dms_MAIFI_flag),"N") -> N | X13: =IF('AER CF'!$C13="Vic","Y","N") -> N
B14: Australian Distribution Co. (Vic) | C14: Vic | D14: Electricity | E14: Distribution | F14: N | G14: N | H14: N | I14: N | K14: N | L14: N | M14: N | N14: N | O14: N | P14: N | Q14: =IFERROR(IF(dms_MAIFI_flag="Yes","N","Y"),"Y") -> Y | R14: N | S14: N | T14: N | U14: N | V14: N | W14: =IFERROR(LEFT(dms_MAIFI_flag),"N") -> N | X14: =IF('AER CF'!$C14="Vic","Y","N") -> Y
B15: CitiPower | C15: Vic | D15: Electricity | E15: Distribution | G15: N | H15: N | K15: N | L15: N | M15: N | N15: N | O15: N | P15: N | Q15: =IFERROR(IF(dms_MAIFI_flag="Yes","N","Y"),"Y") -> Y | R15: N | S15: N | T15: N | U15: Y | V15: N | W15: =IFERROR(LEFT(dms_MAIFI_flag),"N") -> N | X15: =IF('AER CF'!$C15="Vic","Y","N") -> Y
B16: Directlink | C16: Qld | D16: Electricity | E16: Transmission | G16: N | K16: N | L16: N | M16: N | N16: N | O16: N | P16: - | Q16: =IFERROR(IF(dms_MAIFI_flag="Yes","N","Y"),"Y") -> Y | R16: N | S16: N | T16: Y | U16: Y | V16: N | W16: =IFERROR(LEFT(dms_MAIFI_flag),"N") -> N | X16: =IF('AER CF'!$C16="Vic","Y","N") -> N
B17: ElectraNet | C17: SA | D17: Electricity | E17: Transmission | G17: N | K17: N | L17: N | M17: N | N17: N | O17: N | P17: - | Q17: =IFERROR(IF(dms_MAIFI_flag="Yes","N","Y"),"Y") -> Y | R17: N | S17: N | T17: Y | U17: Y | V17: N | W17: =IFERROR(LEFT(dms_MAIFI_flag),"N") -> N | X17: =IF('AER CF'!$C17="Vic","Y","N") -> N
B18: Endeavour Energy | C18: NSW | D18: Electricity | E18: Distribution | G18: Y | H18: N | I18: Y | J18: Y | K18: N | L18: N | M18: N | N18: Y | O18: N | P18: N | Q18: =IFERROR(IF(dms_MAIFI_flag="Yes","N","Y"),"Y") -> Y | R18: Y | S18: N | T18: Y | U18: Y | V18: Y | W18: =IFERROR(LEFT(dms_MAIFI_flag),"N") -> N | X18: =IF('AER CF'!$C18="Vic","Y","N") -> N
B19: Energex | C19: Qld | D19: Electricity | E19: Distribution | G19: Y | H19: N | K19: N | L19: N | M19: N | N19: N | O19: N | P19: N | Q19: =IFERROR(IF(dms_MAIFI_flag="Yes","N","Y"),"Y") -> Y | R19: Y | S19: N | T19: Y | U19: Y | V19: Y | W19: =IFERROR(LEFT(dms_MAIFI_flag),"N") -> N | X19: =IF('AER CF'!$C19="Vic","Y","N") -> N
B20: Ergon Energy | C20: Qld | D20: Electricity | E20: Distribution | G20: Y | H20: N | I20: Y | J20: Y | K20: N | L20: N | M20: N | N20: N | O20: N | P20: N | Q20: =IFERROR(IF(dms_MAIFI_flag="Yes","N","Y"),"Y") -> Y | R20: Y | S20: N | T20: Y | U20: Y | V20: N | W20: =IFERROR(LEFT(dms_MAIFI_flag),"N") -> N | X20: =IF('AER CF'!$C20="Vic","Y","N") -> N
B21: Essential Energy | C21: NSW | D21: Electricity | E21: Distribution | G21: Y | H21: N | I21: Y | J21: Y | K21: N | L21: N | M21: N | N21: Y | O21: N | P21: N | Q21: =IFERROR(IF(dms_MAIFI_flag="Yes","N","Y"),"Y") -> Y | R21: Y | S21: N | T21: Y | U21: Y | V21: N | W21: =IFERROR(LEFT(dms_MAIFI_flag),"N") -> N | X21: =IF('AER CF'!$C21="Vic","Y","N") -> N
B22: Evoenergy Distribution | C22: ACT | D22: Electricity | E22: Distribution | G22: Y | H22: N | I22: Y | J22: Y | K22: Y | L22: Y | M22: N | N22: Y | O22: N | P22: Y | Q22: =IFERROR(IF(dms_MAIFI_flag="Yes","N","Y"),"Y") -> Y | R22: Y | S22: N | T22: Y | U22: Y | V22: N | W22: =IFERROR(LEFT(dms_MAIFI_flag),"N") -> N | X22: =IF('AER CF'!$C22="Vic","Y","N") -> N
B23: Evoenergy Distribution (Tx Assets) | C23: ACT | D23: Electricity | E23: Distribution | G23: Y | H23: N | I23: Y | J23: Y | K23: Y | L23: Y | M23: N | N23: Y | O23: N | P23: Y | Q23: =IFERROR(IF(dms_MAIFI_flag="Yes","N","Y"),"Y") -> Y | R23: Y | S23: N | T23: Y | U23: Y | V23: N | W23: =IFERROR(LEFT(dms_MAIFI_flag),"N") -> N | X23: =IF('AER CF'!$C23="Vic","Y","N") -> N
B24: Jemena Electricity | C24: Vic | D24: Electricity | E24: Distribution | G24: N | H24: N | K24: N | L24: N | M24: N | N24: N | O24: N | P24: N | Q24: =IFERROR(IF(dms_MAIFI_flag="Yes","N","Y"),"Y") -> Y | R24: N | S24: N | T24: N | U24: Y | V24: N | W24: =IFERROR(LEFT(dms_MAIFI_flag),"N") -> N | X24: =IF('AER CF'!$C25="Vic","Y","N") -> Y
B25: JGN | C25: Vic | D25: Gas | E25: Distribution | F25: - | G25: - | H25: - | I25: - | J25: - | K25: - | L25: - | M25: - | N25: - | O25: - | P25: - | Q25: - | R25: - | S25: - | T25: - | U25: - | V25: - | W25: - | X25: - | Y25: -
B26: Murraylink | C26: SA | D26: Electricity | E26: Transmission | G26: N | K26: N | L26: N | M26: N | N26: N | O26: N | P26: - | Q26: =IFERROR(IF(dms_MAIFI_flag="Yes","N","Y"),"Y") -> Y | R26: N | S26: N | T26: Y | U26: Y | V26: N | W26: =IFERROR(LEFT(dms_MAIFI_flag),"N") -> N | X26: =IF('AER CF'!$C26="Vic","Y","N") -> N
B27: Power and Water | C27: NT | D27: Electricity | E27: Distribution | G27: N | H27: N | K27: N | L27: Y | M27: N | N27: N | O27: N | P27: Y | Q27: =IFERROR(IF(dms_MAIFI_flag="Yes","N","Y"),"Y") -> Y | R27: Y | S27: Y | T27: Y | U27: Y | V27: N | W27: =IFERROR(LEFT(dms_MAIFI_flag),"N") -> N | X27: =IF('AER CF'!$C27="Vic","Y","N") -> N
B28: Powercor Australia | C28: Vic | D28: Electricity | E28: Distribution | G28: N | H28: N | K28: N | L28: N | M28: N | N28: N | O28: N | P28: N | Q28: =IFERROR(IF(dms_MAIFI_flag="Yes","N","Y"),"Y") -> Y | R28: N | S28: N | T28: N | U28: Y | V28: N | W28: =IFERROR(LEFT(dms_MAIFI_flag),"N") -> N | X28: =IF('AER CF'!$C28="Vic","Y","N") -> Y
B29: Powerlink | C29: Qld | D29: Electricity | E29: Transmission | G29: N | K29: N | L29: N | M29: N | N29: N | O29: N | P29: - | Q29: =IFERROR(IF(dms_MAIFI_flag="Yes","N","Y"),"Y") -> Y | R29: N | S29: N | T29: Y | U29: Y | V29: N | W29: =IFERROR(LEFT(dms_MAIFI_flag),"N") -> N | X29: =IF('AER CF'!$C29="Vic","Y","N") -> N
B30: Roma to Brisbane Pipeline | C30: Qld | D30: Gas | E30: Transmission | F30: - | G30: - | H30: - | I30: - | J30: - | K30: - | L30: - | M30: - | N30: - | O30: - | P30: - | Q30: - | R30: - | S30: - | T30: - | U30: - | V30: - | W30: - | X30: - | Y30: -
B31: SA Power Networks | C31: SA | D31: Electricity | E31: Distribution | G31: Y | H31: N | K31: N | L31: N | M31: N | N31: N | O31: N | P31: N | Q31: =IFERROR(IF(dms_MAIFI_flag="Yes","N","Y"),"Y") -> Y | R31: Y | S31: N | T31: Y | U31: N | V31: N | W31: =IFERROR(LEFT(dms_MAIFI_flag),"N") -> N | X31: =IF('AER CF'!$C31="Vic","Y","N") -> N
B32: TasNetworks (D) | C32: Tas | D32: Electricity | E32: Distribution | G32: Y | H32: N | K32: N | L32: N | M32: N | N32: N | O32: N | P32: N | Q32: =IFERROR(IF(dms_MAIFI_flag="Yes","N","Y"),"Y") -> Y | R32: Y | S32: N | T32: Y | U32: Y | V32: N | W32: =IFERROR(LEFT(dms_MAIFI_flag),"N") -> N | X32: =IF('AER CF'!$C32="Vic","Y","N") -> N
B33: TasNetworks (T) | C33: Tas | D33: Electricity | E33: Transmission | G33: N | K33: N | L33: N | M33: N | N33: N | O33: N | P33: - | Q33: =IFERROR(IF(dms_MAIFI_flag="Yes","N","Y"),"Y") -> Y | R33: N | S33: N | T33: Y | U33: Y | V33: N | W33: =IFERROR(LEFT(dms_MAIFI_flag),"N") -> N | X33: =IF('AER CF'!$C33="Vic","Y","N") -> N
B34: TransGrid | C34: NSW | D34: Electricity | E34: Transmission | G34: N | K34: N | L34: N | M34: N | N34: N | O34: N | P34: - | Q34: =IFERROR(IF(dms_MAIFI_flag="Yes","N","Y"),"Y") -> Y | R34: N | S34: N | T34: Y | U34: Y | V34: N | W34: =IFERROR(LEFT(dms_MAIFI_flag),"N") -> N | X34: =IF('AER CF'!$C34="Vic","Y","N") -> N
B35: United Energy | C35: Vic | D35: Electricity | E35: Distribution | G35: N | H35: N | K35: N | L35: N | M35: N | N35: N | O35: N | P35: N | Q35: =IFERROR(IF(dms_MAIFI_flag="Yes","N","Y"),"Y") -> Y | R35: N | S35: N | T35: N | U35: Y | V35: N | W35: =IFERROR(LEFT(dms_MAIFI_flag),"N") -> N | X35: =IF('AER CF'!$C35="Vic","Y","N") -> Y
B38: Confidential
B39: Amended
B41: Worksheet 6.2 STPIS reliability
B42: Formula | F42: Applied to:
B44: =INDEX(dms_CBD_flag,MATCH(dms_TradingName,dms_TradingName_List))="NO" | F44: $D$11,$D$17,$D$23,$D$33,$D$39,$D$45,$D$55,$D$61,$D$67,$D$77,$D$83,$D$89
B45: =INDEX(dms_Urban_flag,MATCH(dms_TradingName,dms_TradingName_List))="NO" | F45: $D$12,$D$18,$D$24,$D$56,$D$62,$D$78,$D$68,$D$84
B46: =INDEX(dms_ShortRural_flag,MATCH(dms_TradingName,dms_TradingName_List))="NO" | F46: $D$13,$D$19,$D$25,$D$57,$D$63,$D$69,$D$79,$D$85
B47: =INDEX(dms_LongRural_flag,MATCH(dms_TradingName,dms_TradingName_List))="NO" | F47: $D$14,$D$20,$D$26,$D$58,$D$64,$D$65,$D$70,$D$71,$D$80,$D$86
B48: =INDEX(dms_FeederType_5_flag,MATCH(dms_TradingName,dms_TradingName_List))="NO" | F48: $D$87,$D$81,$D$71,$D$65,$D$59,$D$49,$D$43,$D$37,$D$21,$D$15
B49: =dms_MAIFI_Flag="No" | F49: $D$55:$D$72
B52: Business & other details
B53: =(INDEX(dms_Model_Span,MATCH(dms_Model,dms_Model_List))>1)
B54: =(INDEX(dms_Model_Span,MATCH(dms_Model,dms_Model_List))=1)
B57: STYLES IN USE
B58: HEADING ONE | C58: dms_1
B59: HEADING TWO | C59: dms_2
B60: HEADING THREE | C60: dms_3
B61: HEADING FOUR | C61: dms_4
B62: HEADING FIVE | C62: dms_5
B63: 5.111 | C63: dms_NUM
B64: 0.0545 | C64: dms_NUM%
B65: 5.5555 | C65: dms_NUM3d
B66: Text description | C66: dms_Row_Locked
B67: Text description | C67: dms_Row1
B68: Text description | C68: dms_Row2
B69: Total | C69: dms_T1
B70: Total | C70: dms_T2
B71: EXPENSES | C71: dms_BH
B72: 2019 | C72: dms_BY1
B73: 2019 | C73: dms_BY2
B74: VOLUMES | C74: dms_GH
B75: 2019 | C75: dms_GY1
B76: 2019 | C76: dms_GY2

Sheet AER NRs (hidden)
B1: AER NAMED RANGES
B3: DROP DOWN SELECTORS USED IN WORKBOOKS
B5: COVER SHEET | C5: dms_DataQuality_List | D5: dms_Confid_status_List
C6: -- select -- | D6: -- select --
C7: Actual | D7: Public
C8: Estimate | D8: Confidential
C9: Consolidated
C12: For all files either AER or business needs to be able to specify the type of submission | D12: For PTRM & RFM templates we must provide a choice in case they change their form of control - otherwise it is drawn from the business specific lookup table above.
C13: dms_SourceList | D13: dms_FormControl_Choices
C14: -- select -- | D14: Revenue cap
C15: After appeal | D15: Revenue yield
C16: Draft decision | D16: Tariff cap
C17: Final decision | D17: Weighted average price cap
C18: PTRM update 1
C19: PTRM update 2
C20: PTRM update 3
C21: PTRM update 4
C22: PTRM update 5
C23: PTRM update 6
C24: PTRM update 7
C25: Reallocated
C26: Recast
C27: Regulatory proposal
C28: Reporting
C29: Revised regulatory proposal
K32: This is used to create an image to insert on 6.3 STPIS sheet - not for dropdown lists. | N32: GAS
B33: CA & RESET RINS DNSP | C33: dms_DNSP_020301_SubstationType | D33: dms_DNSP_020301_ProjectType | E33: dms_DNSP_020301_ProjectTrigger | F33: dms_DNSP_020302_ProjectType | G33: dms_DNSP_020302_ProjectTrigger | H33: dms_STPIS_Exclusion_List | I33: dms_Reason_Interruption | J33: dms_Reason_Interruption_Detailed | K33: Reason for interruption | N33: dms_N0205_AssetType
C34: Subtransmission substation | D34: New substation establishment | E34: Demand growth | F34: New line on new route - single circuit | G34: Demand growth | H34: Weather | I34: Animal | J34: Animal impact | K34: Animal | L34: Animal impact | N34: Cast Iron
C35: Zone substation | D35: Substation upgrade - capacity | E35: Voltage issues | F35: New line on new route - dual circuit | G35: Voltage issues | H35: Equipment failure | I35: Asset failure | J35: Animal nesting/burrowing, etc and other | L35: Animal nesting/burrowing, etc and other | N35: PVC
C36: Switching station | D36: Substation upgrade - voltage | E36: Reactive power issue | F36: New line on new route - other | G36: Reactive power issue | H36: Operational error | I36: Other | J36: Other | L36: Other | N36: Polyamide
C37: Other | D37: Other | E37: Fault level issues | F37: Line rebuild over existing route - single circuit | G37: Fault level issues | H37: Vegetation | I37: Overloads | J37: LV | K37: Asset failure | L37: LV | N37: High density polyethylene (80)
E38: Safety | F38: Line rebuild over existing route - dual circuit | G38: Net market benefit | H38: Animals | I38: Planned | J38: Distribution substation | L38: Distribution substation | N38: High density polyethylene (100)
E39: Environment | F39: Reconductor - Single circuit | G39: Safety | H39: Third party impacts | I39: Network business | J39: HV | L39: HV | N39: High density polyethylene (250)
E40: Other | F40: Reconductor - Dual circuit | G40: Environment | H40: Transmission failure | I40: Third party | J40: Zone substation | L40: Zone substation | N40: High density polyethylene (575)
F41: Reconductor - Other | G41: Other | H41: Load shedding | I41: Unknown | J41: Subtransmission | L41: Subtransmission | N41: Medium density polyethylene
F42: Line upgrade - raising/retensoring | H42: Inter-distributor connection failure | I42: Vegetation | J42: insert description of 'other' | K42: Other | L42: insert description of 'other' | N42: Unprotected steel
F43: Line upgrade - voltage upgrade | H43: Other | I43: Weather | J43: Network error | K43: Overloads | N43: Protected steel
F44: Line upgrade - capacity | I44: 2 - STPIS Exclusion (3.3)(a) | J44: Switching and protection error | K44: Planned | N44: Other
F45: String spare circuit | I45: 3 - STPIS Exclusion (3.3)(a) | J45: Fire | K45: Network business | L45: Network error
F46: Other | I46: 4 - STPIS Exclusion (3.3)(a) | J46: Other | L46: Switching and protection error
I47: 5 - STPIS Exclusion (3.3)(a) | J47: Dig-in | K47: Third party | L47: Fire
I48: 6 - STPIS Exclusion (3.3)(a) | J48: Unauthorised access | L48: Other
I49: 7 - STPIS Exclusion (3.3)(a) | J49: Vehicle impact | L49: Dig-in
J50: Unknown | L50: Unauthorised access
J51: Blow-in/Fall-in - NSP responsibility | L51: Vehicle impact
J52: Grow-in - NSP responsibility | K52: Unknown | L52: Unknown
J53: Blow-in/Fall-in - Other responsible party | K53: Vegetation | L53: Blow-in/Fall-in - NSP responsibility
J54: Grow-in - Other responsible party | L54: Grow-in - NSP responsibility
L55: Blow-in/Fall-in - Other responsible party
L56: Grow-in - Other responsible party
K57: Weather
K58: 2 - STPIS Exclusion (3.3)(a)
K59: 3 - STPIS Exclusion (3.3)(a)
K60: 4 - STPIS Exclusion (3.3)(a)
K61: 5 - STPIS Exclusion (3.3)(a)
K62: 6 - STPIS Exclusion (3.3)(a)
K63: 7 - STPIS Exclusion (3.3)(a)
B66: CA & RESET RINS TNSP | C66: dms_TNSP_0203_SubstationType | D66: dms_TNSP_020301_ProjectType | E66: dms_TNSP_020301_ProjectTrigger | F66: dms_TNSP_020302_ProjectType | G66: dms_TNSP_0203_ProjectTrigger
C67: Terminal station | D67: New substation establishment | E67: Demand growth | F67: New line on new route - single circuit | G67: Demand growth
C68: Switching station | D68: Capacity upgrade | E68: Voltage issues | F68: New line on new route - dual circuit | G68: Voltage issues
C69: Transmission substation | D69: Voltage upgrade | E69: Reactive power issue | F69: New line on new route - other | G69: Reactive power issue
C70: Other | D70: Other | E70: Fault level issues | F70: Line rebuild over existing route - single circuit | G70: Fault level issues
E71: Net market benefit | F71: Line rebuild over existing route - dual circuit | G71: Net market benefit
E72: Safety | F72: Reconductor - Single circuit | G72: Safety
E73: Environment | F73: Reconductor - Dual circuit | G73: Environment
E74: Other | F74: Reconductor - Other | G74: Other
F75: Line upgrade - raising/retensoring
F76: Line upgrade - voltage upgrade
F77: Line upgrade - capacity
F78: String spare circuit
F79: Other
B83: NAMED RANGES USED IN ETL PROCESS
M84: GAS ARR & RESET
B85: CA & RESET RINS DNSP ONLY | C85: dms_020303_01_UOM | D85: dms_020501_01_UOM | E85: dms_020501_02_UOM | F85: dms_020501_03_UOM | G85: dms_020501_04_UOM | H85: dms_020701_01_UOM | I85: dms_020701_02_UOM | J85: dms_020701_01_Rows | K85: dms_040102_01_UOM | L85: dms_040102_04_UOM | M85: dms_S140101_UOM | N85: dms_S140201_UOM | O85: dms_E050201_UOM | P85: dms_E050202_UOM
C86: Circuit line length in km | D86: 0's | E86: 0's | F86: 0's | G86: 0's | H86: km | I86: km | J86: Route line length within zone | K86: 0's | L86: days | M86: number | N86: number per km | O86: per metre per connection | P86: metres per connection
C87: Circuit line length in km | D87: 0's | E87: 0's | F87: 0's | G87: 0's | H87: 0's | I87: 0's | J87: Number of maintenance spans | K87: 0's | L87: 0's | M87: number | N87: number | O87: per service per connection | P87: number per connection
C88: Circuit line length in km | D88: MVA added | E88: MVA added | F88: MVA added | G88: MVA added | H88: km | I88: km | J88: Total length of maintenance spans | K88: 0's | L88: $0s | M88: number | N88: number | O88: number per connection | P88: number per connection
C89: Circuit line length in km | D89: 0's | E89: 0's | F89: 0's | G89: 0's | H89: km | I89: km | J89: Length of vegetation corridors | K89: $0s | L89: 0's | M89: km
C90: Number | D90: total spend $0s | E90: total spend $0s | F90: total spend $0s | G90: total spend $0s | H90: 0's | I90: 0's | J90: Average number of trees per maintenance span
C91: Number | D91: net circuit km added | E91: net circuit km added | F91: net circuit km added | G91: net circuit km added | H91: years | I91: years | J91: Average frequency of cutting cycle
C92: Number | D92: total spend $0s | E92: total spend $0s | F92: total spend $0s | G92: total spend $0s
D93: net circuit km added | E93: net circuit km added | F93: net circuit km added | G93: net circuit km added
D94: total spend $0s | E94: total spend $0s | F94: total spend $0s | G94: total spend $0s
D95: 0's | F95: $0s
D96: 0's
D97: 0's
D98: $0s
B101: CA & RESET RINS TNSP ONLY | C101: dms_020701_01_UOM
C102: km
C103: 0's
C104: km
C105: 0's
C106: km
C107: metres
C108: years
B111: CA & RESET RINS DNSP & TNSP | C111: dms_020603_01_UOM
C112: 0's
C113: 0's
C114: 0's
C115: 0's
C116: (per cent)
B119: EB & RESET RINS DNSP ONLY | C119: dms_030601_01_UOM | D119: dms_030601_02_UOM | E119: dms_030701_01_UOM | F119: dms_030702_01_UOM | G119: dms_030703_01_UOM
C120: minutes/customer | D120: minutes/customer | E120: Customer / km | F120: % | G120: km
C121: minutes/customer | D121: minutes/customer | E121: MWh/customer | F121: Number of spans
C122: interruptions/customer | D122: interruptions/customer | E122: kVA / customer | F122: Number of spans
C123: interruptions/customer | D123: interruptions/customer | F123: Number of spans
F124: Number of spans
F125: Years
F126: Years
F127: Trees
F128: Trees
F129: Defects
F130: Defects
F131: Spans
F132: km
F133: Spans
C135: WHEN INSERTING COVER SHEET INTO A TNSP FILE - APPLY THESE NAMED RANGES
B136: EB & RESET RINS TNSP ONLY | C136: dms_030601_01_UOM | E136: dms_030701_01_UOM | F136: dms_030702_01_UOM
C137: % | E137: Number of spans | F137: km
C138: number | E138: Years | F138: %
C139: number | E139: Trees | F139: km
C140: % | E140: Defects | F140: number
C141: number | E141: Number of spans
C142: number | E142: km
C143: % | E143: km
C144: number | E144: Number of spans
C145: number
C146: %
C147: number
C148: %
C149: number
C150: %
C151: number
B153: EB & RESET RINS DNSP & TNSP | C153: dms_EB_RAB_PIT
C154: Beginning of year
C155: End of year
C156: End of year
C157: End of year
C158: End of year
C159: End of year
B161: ARR DNSP ONLY | C161: dms_030605_UOM | D161: dms_03060703_UOM | E161: dms_E020202_UOM | F161: Spare
C162: number | D162: number | E162: Length of mains replaced
C163: number | D163: number | E163: Number of services replaced
C164: number | D164: number
C165: number | D165: number
C166: number | D166: (per cent)
C167: number
C168: number
C169: number
C170: number
C171: number
C172: number
C173: number
C174: (per cent)
C175: (per cent)
B177: RFM | C177: dms_Beg | D177: dms_Mid | E177: dms_End
C178: Beginning of year | D178: Mid year | E178: End of Year
B180: PTRM | C180: dms_PTRM_RAB_PIT | D180: dms_PTRM_TAB_PIT | E180: DMS_Xfactor
C181: Beginning of year | D181: Beginning of year | E181: x factors
C182: End of year | D182: End of year
C183: End of year | D183: End of year
C184: End of year | D184: End of year
C185: End of year
B188: STPIS & MIC NAMED RANGES
B190: These "row descriptions" are the column headings in the various templates but become row descriptions in the ETL process
B192: Table 6.3 sustained interruptions - row descriptions | C192: dms_060301_CustNo_Affected_Row | D192: dms_060301_Avg_Duration_Sustained_Int_Row | E192: dms_060301_Effect_unplanned_SAIDI_Row | F192: dms_060301_Effect_unplanned_SAIFI_Row
C193: Number of customers affected by the interruption | D193: Average duration of sustained customer interruption | E193: Effect on unplanned SAIDI | F193: Effect on unplanned SAIFI
B196: Table 6.1 telephone answering - row descriptions and start date | C196: dms_060101_Rows | D196: dms_060102_Rows | E196: dms_060101_StartDateTxt
C197: Total number of calls (after removing excluded events) | D197: Number of calls answered within 30 seconds (after excluding excluded events) | E197: =dms_060701_StartDateTxt -> 1-Jul-2020
B200: Table 6.8.1 - row descriptions | C200: dms_060801_01_Rows | D200: dms_060801_02_Rows | E200: dms_060801_03_Rows | F200: dms_060801_04_Rows
C201: Number of interruptions | D201: Duration of interruptions | E201: Total unplanned minutes off supply | F201: Effect on unplanned MAIFI
B204: Table 7.9.4 - market impact component - row descriptions | C204: dms_070904_01_Rows | D204: without exclusions | E204: with exclusions
B207: These headings (Lists) are determined from the INDEX/MATCH function on the NSP selected on the Business & other details sheet do not change the formatting here
B209: Table 6.7.1 - daily performance data - unplanned - MAIFI -- row descriptions and header named range values | C209: dms_060701_Feeder_Header_Lvl4 | D209: =INDEX(dms_FeederName_1,MATCH(dms_TradingName,dms_TradingName_List)) -> CBD | E209: =INDEX(dms_FeederName_1,MATCH(dms_TradingName,dms_TradingName_List)) -> CBD | F209: =INDEX(dms_FeederName_2,MATCH(dms_TradingName,dms_TradingName_List)) -> Urban | G209: =INDEX(dms_FeederName_2,MATCH(dms_TradingName,dms_TradingName_List)) -> Urban | H209: =INDEX(dms_FeederName_3,MATCH(dms_TradingName,dms_TradingName_List)) -> Short rural | I209: =INDEX(dms_FeederName_3,MATCH(dms_TradingName,dms_TradingName_List)) -> Short rural | J209: =INDEX(dms_FeederName_4,MATCH(dms_TradingName,dms_TradingName_List)) -> Long rural | K209: =INDEX(dms_FeederName_4,MATCH(dms_TradingName,dms_TradingName_List)) -> Long rural | L209: =IF((INDEX(dms_FeederName_5,MATCH(dms_TradingName,dms_TradingName_List))=0),"Network",(INDEX(dms_FeederName_5,MATCH(dms_TradingName,dms_TradingName_List)))) -> Network | M209: =IF((INDEX(dms_FeederName_5,MATCH(dms_TradingName,dms_TradingName_List))=0),"Network",(INDEX(dms_FeederName_5,MATCH(dms_TradingName,dms_TradingName_List)))) -> Network | N209: Network | O209: Network
C211: dms_060701_Rows | D211: All events | E211: After removing excluded events | F211: All events | G211: After removing excluded events | H211: All events | I211: After removing excluded events | J211: All events | K211: After removing excluded events | L211: All events | M211: After removing excluded events | N211: All events | O211: After removing excluded events
D212: the number of column headings changes from 10 to 12 depending on the number of feeder categories for the NSP
C214: dms_0603_FeederList | D214: =INDEX(dms_FeederName_1,MATCH(dms_TradingName,dms_TradingName_List)) -> CBD | E214: =INDEX(dms_FeederName_2,MATCH(dms_TradingName,dms_TradingName_List)) -> Urban | F214: =INDEX(dms_FeederName_3,MATCH(dms_TradingName,dms_TradingName_List)) -> Short rural | G214: =INDEX(dms_FeederName_4,MATCH(dms_TradingName,dms_TradingName_List)) -> Long rural
B217: Use these to add named ranges to specific worksheets added into already existing files
B220: ARRs 6.7 STPIS daily performance | C220: dms_060101_Values | D220: dms_060102_Values | E220: dms_060701_Values
C221: dms_LeapYear
B224: ARR's 6.8 STPIS exclusions | C224: dms_060801_Event_Date | D224: dms_060801_OutageID | E224: dms_060801_FeederID | F224: dms_060801_FeederClass | G224: dms_060801_CauseID | H224: dms_060801_01_Values | I224: dms_060801_02_Values | J224: dms_060801_03_Values | K224: dms_060801_Excl_Cat | L224: dms_060801_04_Values
C225: dms_060801_StartCell
B228: CA 6.3 sustained interruptions | C228: dms_060301_Event_Date | D228: dms_060301_Event_Time | E228: dms_060301_AssetID | F228: dms_060301_FeederClass | G228: dms_060301_Reason | H228: dms_060301_DetailedReason | I228: dms_060301_CustNo_Affected_Values | J228: dms_060301_Avg_Duration_Sustained_Int_Values | K228: dms_060301_Effect_unplanned_SAIDI_Values | L228: dms_060301_Effect_unplanned_SAIFI_Values | M228: dms_060301_MED
B232: PTRM input sheet | C232: DMS_50_01_01a | D232: DMS_50_01_01aa | E232: DMS_50_01_01b | F232: DMS_50_01_01bb | G232: DMS_50_01_01c | H232: DMS_50_01_01d | I232: DMS_50_01_01dd

Sheet AER lookups (hidden)
B1: AER LOOKUP TABLES
B3: Template number | C3: 5
Y5: FOR ELECTRICITY BUSINESSES ONLY
Y6: Feeder Types | AC6: TasNetworks (D) | AD6: Feeder Names
Y8: CBD | Z8: Urban | AA8: Short rural | AB8: long rural | AC8: EXTRA
B9: dms_TradingName_List | C9: dms_TradingNameFull_List | D9: dms_ABN_List | E9: dms_JurisdictionList | F9: dms_Sector_List | G9: dms_Segment_List | H9: dms_FormControl_List | I9: dms_RPT_List | J9: dms_RPTMonth_List | K9: dms_CRCPlength_List | L9: dms_FRCPlength_List | M9: dms_PRCPlength_List | N9: dms_663_List | O9: dms_Addr1_List | P9: dms_Addr2_List | Q9: dms_Suburb_List | R9: dms_State_List | S9: dms_PostCode_List | T9: dms_PAddr1_List | U9: dms_PAddr2_List | V9: dms_PSuburb_List | W9: dms_PState_List | X9: dms_PPostCode_List | Y9: dms_CBD_flag | Z9: dms_Urban_flag | AA9: dms_ShortRural_flag | AB9: dms_LongRural_flag | AC9: dms_FeederType_5_flag | AD9: dms_FeederName_1 | AE9: dms_FeederName_2 | AF9: dms_FeederName_3 | AG9: dms_FeederName_4 | AH9: dms_FeederName_5 | AI9: dms_Public_Lighting_List | AJ9: Name
B10: Australian Transmission Co. | C10: Australian Transmission Co. | D10: 11222333444 | E10: NSW | F10: Electricity | G10: Transmission | H10: Revenue cap | I10: Financial | J10: June | K10: 5 | L10: 5 | M10: 5 | N10: 5 | O10: 123 Straight Street | Q10: SYDNEY | R10: NSW | S10: 2000 | T10: PO Box 123 | V10: SYDNEY | W10: NSW | X10: 2000 | Y10: NO | Z10: NO | AA10: NO | AB10: NO | AC10: NO | AD10: CBD | AE10: Urban | AF10: Short rural | AG10: Long rural | AI10: NO | AJ10: =B10 -> Australian Transmission Co.
B11: Powerlink | C11: Queensland Electricity Transmission Corporation Limited trading as Powerlink Queensland | D11: 82078849233 | E11: Qld | F11: Electricity | G11: Transmission | H11: Revenue cap | I11: Financial | J11: June | K11: 5 | L11: 5 | M11: 5 | N11: 5 | O11: 33 Harold St | Q11: VIRGINIA | R11: Qld | S11: 4014 | T11: PO Box 1193 | V11: VIRGINIA | W11: QLD | X11: 4014 | Y11: NO | Z11: NO | AA11: NO | AB11: NO | AC11: NO | AD11: CBD | AE11: Urban | AF11: Short rural | AG11: Long rural | AI11: NO | AJ11: =B11 -> Powerlink
B16: The Reg Year Ending (dms_RYE) must be set to the last year of the regulatory period. For forecast data is is usually (FRCP_y5) for actual it is a single year (CRY). For historical actual data the RYE will need to be set manually in the business details sheet by setting the dms_Multiyear_flag to 1 and putting the correct value in 'dms_Specified_FinalYear. See cells C67:C68
B17: dms_Model_List | C17: dms_Model_Name_Format1 | D17: dms_Worksheet_List | E17: dms_Model_Span_List
B18: ARR | C18: Annual Reporting | D18: =IF(dms_MultiYear_ResponseFlag="yes","NEW HISTORICAL ANNUAL REPORTING","ANNUAL REPORTING") -> ANNUAL REPORTING | E18: 1
B19: CA | C19: Category Analysis | D19: =IF(dms_MultiYear_ResponseFlag="yes","NEW HISTORICAL CATEGORY ANALYSIS","CATEGORY ANALYSIS") -> CATEGORY ANALYSIS | E19: 1
B20: CESS | C20: Capitlal Expenditure | D20: CAPITLAL EXPENDITURE SHARING SCHEMING | E20: 5
B21: CPI | C21: CPI | D21: CPI | E21: 5
B22: EB | C22: Economic Benchmarking | D22: =IF(dms_MultiYear_ResponseFlag="yes","NEW HISTORICAL ECONOMIC BENCHMARKING","ECONOMIC BENCHMARKING") -> ECONOMIC BENCHMARKING | E22: 1
B23: EBSS | C23: Efficiency Benefit Sharing Scheme | D23: EFFICIENCY BENEFIT SHARING SCHEME | E23: 5
B24: Pricing | C24: Pricing Proposal | D24: PRICING PROPOSAL | E24: 5
B25: Profitability | C25: Profitability | D25: PROFITABILITY | E25: 5
B26: PTRM | C26: Post Tax Revenue Model | D26: POST TAX REVENUE MODEL | E26: 5
B27: Reset | C27: Regulatory Reporting (Reset) | D27: REGULATORY REPORTING STATEMENT | E27: 5
B28: RFM | C28: Roll Forward Model | D28: ROLL FORWARD MODEL | E28: 5
B29: WACC | C29: Weighted Average Cost of Capital | D29: WEIGHTED AVERAGE COST OF CAPITAL | E29: 1
B33: Financial | C33: Calendar | E33: PREVIOUS | G33: CURRENT | I33: FORTHCOMING
B34: 1987-88 | C34: 1988 | D34: PRCP_y1 | E34: =INDEX(INDIRECT(dms_RPT),dms_PRCP_start_row) -> 2017-18 | F34: CRCP_y1 | G34: =INDEX(INDIRECT(dms_RPT),dms_CRCP_start_row) -> 2022-23 | H34: =FRCP_y1 -> 2027-28 | I34: =INDEX(INDIRECT(dms_RPT),dms_FRCP_start_row) -> 2027-28
B35: 1988-89 | C35: 1989 | D35: PRCP_y2 | E35: =INDEX(INDIRECT(dms_RPT),dms_PRCP_start_row+1) -> 2018-19 | F35: CRCP_y2 | G35: =INDEX(INDIRECT(dms_RPT),dms_CRCP_start_row+1) -> 2023-24 | H35: FRCP_y2 | I35: =INDEX(INDIRECT(dms_RPT),dms_FRCP_start_row+1) -> 2028-29
B36: 1989-90 | C36: 1990 | D36: PRCP_y3 | E36: =INDEX(INDIRECT(dms_RPT),dms_PRCP_start_row+2) -> 2019-20 | F36: CRCP_y3 | G36: =INDEX(INDIRECT(dms_RPT),dms_CRCP_start_row+2) -> 2024-25 | H36: FRCP_y3 | I36: =INDEX(INDIRECT(dms_RPT),dms_FRCP_start_row+2) -> 2029-30
B37: 1990-91 | C37: 1991 | D37: PRCP_y4 | E37: =INDEX(INDIRECT(dms_RPT),dms_PRCP_start_row+3) -> 2020-21 | F37: CRCP_y4 | G37: =INDEX(INDIRECT(dms_RPT),dms_CRCP_start_row+3) -> 2025-26 | H37: FRCP_y4 | I37: =INDEX(INDIRECT(dms_RPT),dms_FRCP_start_row+3) -> 2030-31
B38: 1991-92 | C38: 1992 | D38: PRCP_y5 | E38: =INDEX(INDIRECT(dms_RPT),dms_PRCP_start_row+4) -> 2021-22 | F38: CRCP_y5 | G38: =INDEX(INDIRECT(dms_RPT),dms_CRCP_start_row+4) -> 2026-27 | H38: FRCP_y5 | I38: =INDEX(INDIRECT(dms_RPT),dms_FRCP_start_row+4) -> 2031-32
B39: 1992-93 | C39: 1993 | D39: PRCP_y6 | E39: =INDEX(INDIRECT(dms_RPT),dms_PRCP_start_row+5) -> 2022-23 | F39: CRCP_y6 | G39: =INDEX(INDIRECT(dms_RPT),dms_CRCP_start_row+5) -> 2027-28 | H39: FRCP_y6 | I39: =INDEX(INDIRECT(dms_RPT),dms_FRCP_start_row+5) -> 2032-33
B40: 1993-94 | C40: 1994 | D40: PRCP_y7 | E40: =INDEX(INDIRECT(dms_RPT),dms_PRCP_start_row+6) -> 2023-24 | F40: CRCP_y7 | G40: =INDEX(INDIRECT(dms_RPT),dms_CRCP_start_row+6) -> 2028-29 | H40: FRCP_y7 | I40: =INDEX(INDIRECT(dms_RPT),dms_FRCP_start_row+6) -> 2033-34
B41: 1994-95 | C41: 1995 | D41: PRCP_y8 | E41: =INDEX(INDIRECT(dms_RPT),dms_PRCP_start_row+7) -> 2024-25 | F41: CRCP_y8 | G41: =INDEX(INDIRECT(dms_RPT),dms_CRCP_start_row+7) -> 2029-30 | H41: FRCP_y8 | I41: =INDEX(INDIRECT(dms_RPT),dms_FRCP_start_row+7) -> 2034-35
B42: 1995-96 | C42: 1996 | D42: PRCP_y9 | E42: =INDEX(INDIRECT(dms_RPT),dms_PRCP_start_row+8) -> 2025-26 | F42: CRCP_y9 | G42: =INDEX(INDIRECT(dms_RPT),dms_CRCP_start_row+8) -> 2030-31 | H42: FRCP_y9 | I42: =INDEX(INDIRECT(dms_RPT),dms_FRCP_start_row+8) -> 2035-36
B43: 1996-97 | C43: 1997 | D43: PRCP_y10 | E43: =INDEX(INDIRECT(dms_RPT),dms_PRCP_start_row+9) -> 2026-27 | F43: CRCP_y10 | G43: =INDEX(INDIRECT(dms_RPT),dms_CRCP_start_row+9) -> 2031-32 | H43: FRCP_y10 | I43: =INDEX(INDIRECT(dms_RPT),dms_FRCP_start_row+9) -> 2036-37
B44: 1997-98 | C44: 1998 | D44: PRCP_y11 | E44: =INDEX(INDIRECT(dms_RPT),dms_PRCP_start_row+10) -> 2027-28 | F44: CRCP_y11 | G44: =INDEX(INDIRECT(dms_RPT),dms_CRCP_start_row+10) -> 2032-33 | H44: FRCP_y11 | I44: =INDEX(INDIRECT(dms_RPT),dms_FRCP_start_row+10) -> 2037-38
B45: 1998-99 | C45: 1999 | D45: PRCP_y12 | E45: =INDEX(INDIRECT(dms_RPT),dms_PRCP_start_row+11) -> 2028-29 | F45: CRCP_y12 | G45: =INDEX(INDIRECT(dms_RPT),dms_CRCP_start_row+11) -> 2033-34 | H45: FRCP_y12 | I45: =INDEX(INDIRECT(dms_RPT),dms_FRCP_start_row+11) -> 2038-39
B46: 1999-00 | C46: 2000 | D46: PRCP_y13 | E46: =INDEX(INDIRECT(dms_RPT),dms_PRCP_start_row+12) -> 2029-30 | F46: CRCP_y13 | G46: =INDEX(INDIRECT(dms_RPT),dms_CRCP_start_row+12) -> 2034-35 | H46: FRCP_y13 | I46: =INDEX(INDIRECT(dms_RPT),dms_FRCP_start_row+12) -> 2039-40
B47: 2000-01 | C47: 2001 | D47: PRCP_y14 | E47: =INDEX(INDIRECT(dms_RPT),dms_PRCP_start_row+13) -> 2030-31 | F47: CRCP_y14 | G47: =INDEX(INDIRECT(dms_RPT),dms_CRCP_start_row+13) -> 2035-36 | H47: FRCP_y14 | I47: =INDEX(INDIRECT(dms_RPT),dms_FRCP_start_row+13) -> 2040-41
B48: 2001-02 | C48: 2002 | D48: PRCP_y15 | E48: =INDEX(INDIRECT(dms_RPT),dms_PRCP_start_row+14) -> 2031-32 | F48: CRCP_y15 | G48: =INDEX(INDIRECT(dms_RPT),dms_CRCP_start_row+14) -> 2036-37 | H48: FRCP_y15 | I48: =INDEX(INDIRECT(dms_RPT),dms_FRCP_start_row+14) -> 2041-42
B49: 2002-03 | C49: 2003 | D49: PRCP_y16 | E49: =INDEX(INDIRECT(dms_RPT),dms_PRCP_start_row+15) -> 2032-33 | F49: CRCP_y16 | G49: =INDEX(INDIRECT(dms_RPT),dms_CRCP_start_row+15) -> 2037-38 | H49: FRCP_y16 | I49: =INDEX(INDIRECT(dms_RPT),dms_FRCP_start_row+15) -> 2042-43
B50: 2003-04 | C50: 2004
B51: 2004-05 | C51: 2005
B52: 2005-06 | C52: 2006 | E52: CRY - FRY
B53: 2006-07 | C53: 2007 | D53: dms_y1 | E53: =IFERROR(INDEX(INDIRECT(dms_RPT),dms_CRY_start_row),0) -> 2022-23
B54: 2007-08 | C54: 2008 | D54: dms_y2 | E54: =IFERROR(INDEX(INDIRECT(dms_RPT),dms_CRY_start_row+1),0) -> 2023-24
B55: 2008-09 | C55: 2009 | D55: dms_y3 | E55: =IFERROR(INDEX(INDIRECT(dms_RPT),dms_CRY_start_row+2),0) -> 2024-25
B56: 2009-10 | C56: 2010 | D56: dms_y4 | E56: =IFERROR(INDEX(INDIRECT(dms_RPT),dms_CRY_start_row+3),0) -> 2025-26
B57: 2010-11 | C57: 2011 | D57: dms_y5 | E57: =IFERROR(INDEX(INDIRECT(dms_RPT),dms_CRY_start_row+4),0) -> 2026-27
B58: 2011-12 | C58: 2012 | D58: dms_y6 | E58: =IFERROR(INDEX(INDIRECT(dms_RPT),dms_CRY_start_row+5),0) -> 2027-28
B59: 2012-13 | C59: 2013 | D59: dms_y7 | E59: =IFERROR(INDEX(INDIRECT(dms_RPT),dms_CRY_start_row+6),0) -> 2028-29
B60: 2013-14 | C60: 2014 | D60: dms_y8 | E60: =IFERROR(INDEX(INDIRECT(dms_RPT),dms_CRY_start_row+7),0) -> 2029-30
B61: 2014-15 | C61: 2015 | D61: dms_y9 | E61: =IFERROR(INDEX(INDIRECT(dms_RPT),dms_CRY_start_row+8),0) -> 2030-31
B62: 2015-16 | C62: 2016 | D62: dms_y10 | E62: =IFERROR(INDEX(INDIRECT(dms_RPT),dms_CRY_start_row+9),0) -> 2031-32
B63: 2016-17 | C63: 2017 | D63: dms_y11 | E63: =IFERROR(INDEX(INDIRECT(dms_RPT),dms_CRY_start_row+10),0) -> 2032-33
B64: 2017-18 | C64: 2018 | D64: dms_y12 | E64: =IFERROR(INDEX(INDIRECT(dms_RPT),dms_CRY_start_row+11),0) -> 2033-34
B65: 2018-19 | C65: 2019 | D65: dms_y13 | E65: =IFERROR(INDEX(INDIRECT(dms_RPT),dms_CRY_start_row+12),0) -> 2034-35
B66: 2019-20 | C66: 2020 | D66: dms_y14 | E66: =IFERROR(INDEX(INDIRECT(dms_RPT),dms_CRY_start_row+13),0) -> 2035-36
B67: 2020-21 | C67: 2021 | D67: dms_y15 | E67: =IFERROR(INDEX(INDIRECT(dms_RPT),dms_CRY_start_row+14),0) -> 2036-37
B68: 2021-22 | C68: 2022 | D68: dms_y16 | E68: =IFERROR(INDEX(INDIRECT(dms_RPT),dms_CRY_start_row+15),0) -> 2037-38
B69: 2022-23 | C69: 2023
B70: 2023-24 | C70: 2024
B71: 2024-25 | C71: 2025
B72: 2025-26 | C72: 2026
B73: 2026-27 | C73: 2027
B74: 2027-28 | C74: 2028
B75: 2028-29 | C75: 2029
B76: 2029-30 | C76: 2030
B77: 2030-31 | C77: 2031
B78: 2031-32 | C78: 2032
B79: 2032-33 | C79: 2033
B80: 2033-34 | C80: 2034
B81: 2034-35 | C81: 2035
B82: 2035-36 | C82: 2036
B83: 2036-37 | C83: 2037
B84: 2037-38 | C84: 2038
B85: 2038-39 | C85: 2039
B86: 2039-40 | C86: 2040
B87: 2040-41 | C87: 2041
B88: 2041-42 | C88: 2042
B89: 2042-43 | C89: 2043
B90: 2043-44 | C90: 2044
B91: 2044-45 | C91: 2045
B92: 2045-46 | C92: 2046
B93: 2046-47 | C93: 2047
B94: 2047-28 | C94: 2048

Sheet AER ETL (hidden)
B1: AER ETL INFORMATION
B3: USES NAMED RANGES FLAG | C3: yes | D3: dms_Defined_Names_Used
B5: IF THIS IS AN ABC RIN - make sure the the named range CRY is applied and the named range dms_dollar_nom_UOM is applied
B6: IF THIS IS A RESET RIN - make sure the named ranges CRY and dms_dollar_nom_UOM are NOT present in the workbook
B7: FOR ABC RINS THAT SPAN MULTIPLE YEARS - make sure MultiYear Flag is set and final year entered as required
B9: Full trading name | C9: =INDEX(dms_TradingNameFull_List,MATCH(dms_TradingName,dms_TradingName_List)) -> Queensland Electricity Transmission Corporation Limited trading as Powerlink Queensland | E9: dms_TradingNameFull
B10: Trading name | C10: =dms_TradingName -> Powerlink
B11: Unique ID | C11: ETTQLD100
A12: Selected here | B12: Model / RIN | C12: Reset | D12: dms_Model
A13: Read from Business & other details | B13: Source | C13: Regulatory proposal | D13: dms_Source | E13: =IF(dms_Model="Reset", "You have chosen Reset - make sure you have set Reg Proposal as source","") -> You have chosen Reset - make sure you have set Reg Proposal as source
B14: Data quality | C14: Consolidated | D14: For DB purposes this is always Consoldiated
B15: Data status | C15: Public | D15: "See "& " - For DB purposes this is always Public"
B16: Amendment reason | C16: =dms_Amendment_Text -> . | F16: dms_AmendmentReason
B17: Submission date | C17: =dms_Typed_Submission_Date -> dd/mm/yy | D17: dms_SubmissionDate
A19: Redundant | B19: EBSS - First application of scheme in forthcoming period? | C19: No
A20: Pre-populated from lookup table | B20: Data ingestion data quality | C20: Consolidated | D20: dms_DataQuality | E20: Always Consolidated
B21: Sector | C21: =INDEX(dms_Sector_List,MATCH(dms_TradingName,dms_TradingName_List)) -> Electricity | D21: dms_Sector | E21: =INDEX(dms_Sector_List,MATCH(dms_TradingName,dms_TradingName_List))
B22: Segment | C22: =INDEX(dms_Segment_List,MATCH(dms_TradingName,dms_TradingName_List)) -> Transmission | D22: dms_Segment | E22: =INDEX(dms_Segment_List,MATCH(dms_TradingName,dms_TradingName_List))
B23: Regulatory Year Ending | C23: =IF(dms_MultiYear_Flag=1,LEFT(dms_Specified_FinalYear,2)&RIGHT(dms_Specified_FinalYear,2),dms_RYE_result) -> 2032 | D23: dms_RYE | E23: =IF(dms_MultiYear_Flag=1,LEFT(dms_Specified_FinalYear,2)&RIGHT(dms_Specified_FinalYear,2),dms_RYE_result)
B24: Reporting Period Type | C24: Financial | D24: dms_RPT | E24: =INDEX(dms_RPT_List,MATCH(dms_TradingName,dms_TradingName_List))
B25: EB/CA Unit of Measure for Monetary Values | C25: $0s | D25: dms_dollar_nom_UOM | E25: =IF(dms_SingleYearModel="yes","This is set to an historical template (EB, CA or ARR), apply UOM Named Range to cell !","This is not an historical template, make sure UOM Named Range is not applied") -> This is not an historical template, make sure UOM Named Range is not applied | J25: =IFERROR(dms_dollar_nom_UOM, "NR not applied") -> NR not applied
B26: Security Classification | C26: Public | D26: dms_Classification | E26: Always Public
B27: Jurisdiction | C27: =INDEX(dms_JurisdictionList,MATCH(dms_TradingName,dms_TradingName_List)) -> Qld | D27: dms_Jurisdiction | E27: =INDEX(dms_JurisdictionList,MATCH(dms_TradingName,dms_TradingName_List))
A28: Relevant for PTRM, RFMs and Reset RINS | B28: $ REAL REFERENCES
B29: Does the named range CRY exist in this file? | C29: =IFERROR(CRY,"NO") -> 2022-23
B30: CRY-1 (last full calendar year before CRY) | C30: =IFERROR(IF(dms_RPT="calendar",CRY-1,LEFT(CRY,4)),"CRY not present") -> 2022 | D30: dms_Cal_Year_B4_CRY | E30: '=IF(dms_RPT="financial",VALUE(LEFT(dms_SingleYear_FinalYear_Result,4)),VALUE(LEFT(dms_SingleYear_FinalYear_Result,4)-1))
B31: Dollar $ real month | C31: =INDEX(dms_RPTMonth_List,MATCH(dms_TradingName,dms_TradingName_List)) -> June | D31: dms_RPTMonth | E31: =INDEX(dms_RPTMonth_List,MATCH(dms_TradingName,dms_TradingName_List))
B32: Dollar $ real (the last month before the FRCP_y1) | C32: =IF(dms_Model="RFM",dms_DollarReal_Prev, IF(dms_SingleYearModel="yes",CONCATENATE(dms_RPTMonth)&" "&VALUE((LEFT(dms_CRY_start_year,2)&RIGHT(dms_CRY_start_year,2))),CONCATENATE(dms_RPTMonth)&" "&dms_DollarReal_year)) -> June 2027 | D32: dms_DollarReal | E32: =IF(dms_Model="RFM",dms_DollarReal_Prev, IF(dms_SingleYearModel="yes",CONCATENATE(dms_RPTMonth)&" "&VALUE((LEFT(dms_CRY_start_year,2)&RIGHT(dms_CRY_start_year,2))),CONCATENATE(dms_RPTMonth)&" "&dms_DollarReal_year))
B33: Dollar $ real previous year (PRCP_y5) | C33: =CONCATENATE(dms_RPTMonth)&" "&dms_Previous_DollarReal_year -> June 2022 | D33: dms_DollarReal_Prev | E33: =IF(SUM(dms_SingleYear_Model)>0,CONCATENATE(dms_RPTMonth)&" "&VALUE(((LEFT(CRY,2))&RIGHT(CRY,2))-1),CONCATENATE(dms_RPTMonth)&" "&VALUE(((LEFT(dms_CRCP_FirstYear_Result,2)&RIGHT(dms_CRCP_FirstYear_Result,2))))-1)
B34: PTRM/ RFMs
B35: Form of control | C35: =INDEX(dms_FormControl_List,MATCH(dms_TradingName,dms_TradingName_List)) -> Revenue cap | D35: dms_FormControl | E35: =INDEX(dms_FormControl_List,MATCH(dms_TradingName,dms_TradingName_List))
A36: All potential values for Regulatory Years or RYEs as calculated | B36: This block works out the various RYE's for ALL RIN types and MODELS
B37: dms_start_year | C37: =FRCP_y1 -> 2027-28 | D37: =FRCP_y1 | E37: FRCP_y1 from cover sheet
B38: dms_CRY_start_year | C38: =IFERROR(CRY,CRCP_y4) -> 2022-23 | D38: =IFERROR(CRY,CRCP_y4)
B39: dms_CRY_start_row | C39: =IFERROR(MATCH(dms_CRY_start_year,INDIRECT(dms_RPT),0),0) -> 36 | D39: =IFERROR(MATCH(dms_CRY_start_year,INDIRECT(dms_RPT),0),0)
B40: dms_FRCP_start_row | C40: =MATCH(dms_start_year,INDIRECT(dms_RPT),0) -> 41 | D40: =MATCH(dms_start_year,INDIRECT(dms_RPT),0) | E40: Uses FRCP_y1 as a start reference
B41: dms_CRCP_start_row | C41: =dms_FRCP_start_row-dms_CRCPlength_Num -> 36 | D41: =dms_FRCP_start_row-dms_CRCPlength_Num | E41: Uses the value in dms_CRCPlength_Num
B42: dms_PRCP_start_row | C42: =dms_FRCP_start_row-dms_CRCPlength_Num-dms_PRCPlength_Num -> 31 | D42: =dms_FRCP_start_row-dms_CRCPlength_Num-dms_PRCPlength_Num | E42: Uses the value in dms_CRCPlength_Num and dms_PRCPlength_Num
B43: dms_RYE_start_row | C43: =dms_FRCP_start_row+(dms_FRCPlength_Num-1) -> 45 | D43: =dms_FRCP_start_row+(dms_FRCPlength_Num-1) | E43: Uses the value in dms_FRCPlength_Num-1
B44: FRCP_start_year | C44: =INDEX(INDIRECT(dms_RPT),dms_FRCP_start_row) -> 2027-28 | D44: =INDEX(INDIRECT(dms_RPT),dms_FRCP_start_row) | E44: Converts the FRCP start row to display the year
B45: CRCP_start_year | C45: =INDEX(INDIRECT(dms_RPT),dms_CRCP_start_row) -> 2022-23 | D45: =INDEX(INDIRECT(dms_RPT),dms_CRCP_start_row) | E45: Converts the CRCP start row to display the year
B46: PRCP_start_year | C46: =INDEX(INDIRECT(dms_RPT),dms_PRCP_start_row) -> 2017-18 | D46: =INDEX(INDIRECT(dms_RPT),dms_PRCP_start_row) | E46: Converts the PRCP start row to display the year
B47: FRCP_final_year | C47: =INDEX(INDIRECT(dms_RPT),dms_FRCP_start_row+dms_FRCPlength_Num-1) -> 2031-32 | D47: =INDEX(INDIRECT(dms_RPT),dms_FRCP_start_row+dms_FRCPlength_Num-1) | E47: Finds the FRCP final year
B48: CRCP_final_year | C48: =INDEX(INDIRECT(dms_RPT),dms_CRCP_start_row+dms_CRCPlength_Num-1) -> 2026-27 | D48: =INDEX(INDIRECT(dms_RPT),dms_CRCP_start_row+dms_CRCPlength_Num-1) | E48: Finds the CRCP final year
B49: PRCP_final_year | C49: =INDEX(INDIRECT(dms_RPT),dms_PRCP_start_row+dms_FRCPlength_Num-1) -> 2021-22 | D49: =INDEX(INDIRECT(dms_RPT),dms_PRCP_start_row+dms_FRCPlength_Num-1) | E49: Finds the PRCP final year
B50: dms_Reset_final_year | C50: =INDEX(INDIRECT(dms_RPT),dms_RYE_start_row) -> 2031-32 | D50: =INDEX(INDIRECT(dms_RPT),dms_RYE_start_row) | E50: For Resets and PTRM/RFMs (same as FRCP_final_year)
B51: dms_SpecifiedYear_final_year | C51: =FRY -> 2026-27 | D51: =FRY | E51: FRY from cover sheet
B52: dms_DollarReal_year | C52: =LEFT(CRCP_final_year,2)&RIGHT(CRCP_final_year,2) -> 2027 | D52: =LEFT(CRCP_final_year,2)&RIGHT(CRCP_final_year,2) | E52: Uses the value in CRCP_final_year
B53: dms_Previous_DollarReal_year | C53: =LEFT(PRCP_final_year,2)&RIGHT(PRCP_final_year,2) -> 2022 | D53: =LEFT(PRCP_final_year,2)&RIGHT(PRCP_final_year,2) | E53: Uses the value in PRCP_final_year
B54: dms_CRY_RYE | C54: =IFERROR(LEFT(CRY,2)&RIGHT(CRY,2),0) -> 2023 | D54: =IFERROR(LEFT(CRY,2)&RIGHT(CRY,2),0) | E54: For ABC single year RINS
B55: dms_Reset_RYE | C55: =IF(dms_Model_Span>1,IF(dms_Model="RFM",(LEFT(dms_DollarReal_year,2)&RIGHT(dms_DollarReal_year,2)),(LEFT(dms_Reset_final_year,2)&RIGHT(dms_Reset_final_year,2))),0) -> 2032 | D55: =IF(dms_Model_Span>1,IF(dms_Model="RFM",(LEFT(dms_DollarReal_year,2)&RIGHT(dms_DollarReal_year,2)),(LEFT(dms_Reset_final_year,2)&RIGHT(dms_Reset_final_year,2))),0) | E55: If model span > 1 then uses dms_Reset_RYE otherwise it's a multi year ABC and uses dms_Specified_RYE
B56: dms_Specified_RYE | C56: =IF(dms_MultiYear_ResponseFlag="Yes",(LEFT(dms_Specified_FinalYear,2)&RIGHT(dms_Specified_FinalYear,2)),0) -> 0 | D56: =IF(dms_MultiYear_ResponseFlag="Yes",(LEFT(dms_Specified_FinalYear,2)&RIGHT(dms_Specified_FinalYear,2)),0) | E56: If multi year ABC - uses dms_Specified_FinalYear
B57: dms_Model_Span | C57: =INDEX(dms_Model_Span_List,MATCH(dms_Model,dms_Model_List)) -> 5 | D57: =INDEX(dms_Model_Span_List,MATCH(dms_Model,dms_Model_List)) | E57: A result of 5 is used to signify that it is more than 1 year span
B58: dms_RYE_result | C58: =IF(dms_MultiYear_ResponseFlag="yes",dms_Specified_RYE,(IF(dms_Model_Span>1,dms_Reset_RYE,dms_CRY_RYE))) -> 2032 | D58: =IF(dms_MultiYear_ResponseFlag="yes",dms_Specified_RYE,(IF(dms_Model_Span>1,dms_Reset_RYE,dms_CRY_RYE))) | E58: Nested IF - feeds into dms_RYE
B59: dms_Reset_Span | C59: =IF(dms_Reset_RYE>0,CONCATENATE(FRCP_y1," to ",FRCP_final_year),0) -> 2027-28 to 2031-32 | D59: =IF(dms_Reset_RYE>0,CONCATENATE(FRCP_y1," to ",FRCP_final_year),0) | E59: Reset span of years as text
B60: dms_SpecifiedYear_Span | C60: =IF(dms_Specified_RYE>0,CONCATENATE(CRY," to ",dms_Specified_FinalYear),0) -> 0 | D60: =IF(dms_Specified_RYE>0,CONCATENATE(CRY," to ",dms_Specified_FinalYear),0) | E60: Multi year ABC span of years as text
B61: dms_Header_Span | C61: =IF(dms_MultiYear_Flag=1,dms_SpecifiedYear_Span,IF(dms_Model_Span>1,dms_y1&" to "&FRCP_final_year,CRY)) -> 2022-23 to 2031-32 | D61: =IF(dms_MultiYear_Flag=1,dms_SpecifiedYear_Span,IF(dms_Model_Span>1,dms_Reset_Span,CRY)) | E61: NESTED IF - for Sheet Headers
B62: ABC RINS THAT SPAN MULTIPLE YEARS
B63: This is a multi year ABC RIN? | C63: No
C64: =IF(dms_MultiYear_ResponseFlag="No",0,1) -> 0 | D64: dms_MultiYear_Flag | E64: This is set from the answer provided above
C65: =IF(dms_MultiYear_Flag=1,FRY,"not a Multiple year submission") -> not a Multiple year submission | D65: dms_Specified_FinalYear | E65: The result here is returned to dms_CRCP_FinalYear_Result if response to Q in C73 is "yes" and dms_MultiYear_Flag is set to 1
B66: Start year for 5.2 in Multi year ABC RINS | C66: =IFERROR(IF(dms_MultiYear_Flag=1,FRY,CRY),"not an ABC") -> 2022-23 | D66: dms_0502_Inst_Year | E66: =IF(dms_MultiYear_Flag=1,FRY,CRY) | G66: For single year RINS this is CRY - multi year RINS need to start a the end of the span of years (ie. FRY)
B67: WHAT IS THE RYE?
B68: Reg Period Lengths
B69: PRCP length in years | C69: =INDEX(dms_PRCPlength_List,MATCH(dms_TradingName,dms_TradingName_List)) -> 5 | D69: dms_PRCPlength_Num | E69: =INDEX(dms_PRCPlength_List,MATCH(dms_TradingName,dms_TradingName_List))
B70: CRCP length in years | C70: =INDEX(dms_CRCPlength_List,MATCH(dms_TradingName,dms_TradingName_List)) -> 5 | D70: dms_CRCPlength_Num | E70: =INDEX(dms_CRCPlength_List,MATCH(dms_TradingName,dms_TradingName_List))
B71: FRCP length in years | C71: =INDEX(dms_FRCPlength_List,MATCH(dms_TradingName,dms_TradingName_List)) -> 5 | D71: dms_FRCPlength_Num | E71: =INDEX(dms_FRCPlength_List,MATCH(dms_TradingName,dms_TradingName_List))
B72: Single year RIN?
B73: Single Year ABC RIN ? | C73: =IF(dms_Model="EB",1,0) -> 0 | D73: dms_EB
C74: =IF(dms_Model="CA",1,0) -> 0 | D74: dms_CA | E74: =dms_SingleYear_Model
C75: =IF(dms_Model="ARR",1,0) -> 0 | D75: dms_ARR
B76: Is this a single Year ABC RIN? | C76: =IF(SUM(dms_SingleYear_Model)=1,"yes","no") -> no | D76: dms_SingleYearModel | E76: =IF(SUM(dms_SingleYear_Model)=1,"yes","no")
B77: Single Year Final Year Result | C77: =IF(AND(dms_SingleYearModel="yes",dms_MultiYear_Flag=0),CRY,0) -> 0 | D77: dms_SingleYear_FinalYear_Result | E77: =IFERROR(IF(SUM(dms_SingleYear_Model)<>0,(INDIRECT(dms_SingleYear_FinalYear_Ref)),"not a single year RIN"),"CRY not present")
B78: Multi year RIN?
B80: Multi Year Reset/Model? | C80: =IF(dms_Model_Span>1,"yes","no") -> yes
B81: Final year result for Reset/Model | C81: =IF(dms_Model_Span>1,dms_Reset_final_year,0) -> 2031-32 | D81: dms_MultiYear_FinalYear_Result | E81: dms_CRCP_FinalYear_Result
B83: Multi Year ABC RIN? | C83: =IF(dms_MultiYear_Flag=1,"yes","no") -> no | D83: dms_MultiYear_ABC_RIN
B84: Final year result for ABC multi year | C84: =IF(dms_MultiYear_Flag=1,C51,0) -> 0
B86: EB RINS
B87: Calendar Year for table 3.6 data | C87: =IFERROR(IF(dms_Segment="Transmission",dms_Cal_Year_B4_CRY,CRY),"CRY not present") -> 2022 | D87: dms_0306_Year | E87: =IF(dms_Segment="Transmission",dms_Cal_Year_B4_CRY,CRY)
B88: CA RINS
B89: Find how many rows in tables 6.3 sustained interruptions? | E89: dms_060301_MaxRows only returns a valid value when cover sheet is attached to a CA file
C90: =IF(dms_Model<>"CA","not a CA","Is a CA") -> not a CA | E90: =IF(dms_Model<>"CA","not a CA","Is a CA")
B91: dms_060301_Avg_Duration_Sustained_Int_Values present? | C91: =IFERROR(IF(INDEX(dms_060301_Avg_Duration_Sustained_Int_Values,1,1)<>"","yes","no"),"no") -> no | D91: dms_060301_checkvalue | E91: =IFERROR(IF(INDEX(dms_060301_Avg_Duration_Sustained_Int_Values,1,1)<>"","yes","no"),"no")
C92: =IF(AND(dms_Model="CA",(dms_060301_checkvalue="no")),"error - NR not present","no errors") -> no errors | E92: =IF(AND(dms_Model="CA",(dms_060301_checkvalue="no")),"error - NR not present","no errors")
B93: Table 6.3.1 - last row reference | C93: =IFERROR(IF(dms_Model="CA",LOOKUP(2,1/(dms_060301_Avg_Duration_Sustained_Int_Values<>""),(ROW(dms_060301_Avg_Duration_Sustained_Int_Values))),"not a CA"),"6.3 not present") -> not a CA | D93: dms_060301_LastRow | E93: =IFERROR(IF(dms_Model="CA",LOOKUP(2,1/(dms_060301_Avg_Duration_Sustained_Int_Values<>""),(ROW(dms_060301_Avg_Duration_Sustained_Int_Values))),"not a CA"),"6.3 not present")
B94: Table 6.3.1 - max number rows | C94: =IFERROR(IF(dms_Model="CA",(dms_060301_LastRow-15),"not a CA"),"error") -> not a CA | D94: dms_060301_MaxRows | E94: =IFERROR(IF(dms_Model="CA",(dms_060301_LastRow-15),"not a CA"),"error")
B95: Table 6.6.3 - Public lighting repair - no. business days | C95: =INDEX(dms_663_List,MATCH(dms_TradingName,dms_TradingName_List)) -> 5 | D95: dms_663 | E95: =INDEX(dms_663_List,MATCH(dms_TradingName,dms_TradingName_List))
B96: ARR or RESET RINS
B97: How many rows in tables 6.1 or 6.7? (leap year?) | C97: insert dms_LeapYear NR if required | E97: 'dms_LeapYear is used to determine dms_060701_Max_Rows BUT it is only found on worksheet 6.1 or 6.7 and the date value in the cell is used to determine whether it is a leap year
B98: Is dms_LeapYear named range present? | C98: =IFERROR(IF(dms_LeapYear,"yes"),"no") -> no
B99: Table 6.7.1 - includes a leap year? | C99: =IFERROR(IF(MONTH(DATE(YEAR(dms_LeapYear),2,29))=2,"is a leap year","not a leap year"), "dms_LeapYear not present") -> dms_LeapYear not present | D99: dms_LeapYear_Result | E99: =IFERROR(IF(MONTH(DATE(YEAR(dms_LeapYear),2,29))=2,"is a leap year","not a leap year"),"dms_LeapYear not present")
B100: MaxRows if Reset and leap year | C100: =IF(dms_LeapYear_Result="is a leap year",1827,1826) -> 1826 | D100: dms_060701_Reset_MaxRows | E100: =IF(dms_LeapYear_Result="is a leap year",1827,1826) | H100: number of days present in Reset RIN table
B101: MaxRows if ARR and leap year | C101: =IF(dms_LeapYear_Result="is a leap year",366,365) -> 365 | D101: dms_060701_ARR_MaxRows | E101: =IF(dms_LeapYear_Result="is a leap year",366,365) | H101: number of days present in ARR RIN table
B102: Table 6.7.1 - Max Rows (leap year/ non leap year) | C102: =IF(dms_Model="ARR",dms_060701_ARR_MaxRows,IF(dms_Model="Reset",dms_060701_Reset_MaxRows,"not a relevant RIN type")) -> 1826 | D102: dms_060701_MaxRows | E102: =IF(dms_Model="ARR",dms_060701_ARR_MaxRows,IF(dms_Model="Reset",dms_060701_Reset_MaxRows,"not a relevant RIN type"))
B103: How many columns in 6.7? (4 or 5 feeder categories) | C103: =IF(dms_FifthFeeder_flag_NSP="NO","This NSP has only 4 feeder categories","This NSP has 5 feeder categories") -> This NSP has only 4 feeder categories
B104: Table 6.7.1 - Last column (# of feeder categories > 4) | C104: =IF(dms_FifthFeeder_flag_NSP="NO",10,12) -> 10 | D104: dms_060701_MaxCols | E104: =IF(dms_FifthFeeder_flag_NSP="NO",8,10)
B105: Table 6.7.1 - Number of offset rows | C105: =IF(dms_Model="ARR",15,9) -> 9 | D105: dms_060701_OffsetRows | E105: =IF(dms_Model="ARR",15,9)
B106: Start date for telephone answering in 6.1 or 6.7? | E106: Using 060101 as naming standard not 060701 for start dates
B107: Table 6.1.1 and 6.7.1 - Start Date as Text | C107: =IF(dms_SingleYearModel="yes",(CONCATENATE(IF(LEN(CRY)=4,"1-Jan-","1-Jul-"),LEFT(CRY,4))),(CONCATENATE(IF(LEN(PRCP_y4)=4,"1-Jan-","1-Jul-"),LEFT(PRCP_y4,4)))) -> 1-Jul-2020 | D107: dms_060101_StartDateTxt | E107: =IF(SUM(dms_SingleYear_Model)>1,(CONCATENATE(IF(LEN(CRY)=4,"1-Jan-","1-Jul-"),LEFT(CRY,4))),(CONCATENATE(IF(LEN(CRCP_y4)=4,"1-Jan-","1-Jul-"),LEFT(CRCP_y4,4))))
B108: Table 6.1.1 and 6.7.1 - Start Date as Date Value | C108: =DATEVALUE(dms_060701_StartDateTxt) -> 44013 | D108: dms_060101_StartDateVal | E108: =DATEVALUE(dms_060701_StartDateTxt)
B109: ARRs
B110: How many rows in table 6.8? | C110: insert dms_060801_StartCell NR if required | E110: dms_060801_StartCell is only found on worksheet 6.8 and is used to determine the starting date for the date range
B111: Is dms_060801_StartCell named range present? | C111: =IFERROR(IF((ROW(dms_060801_StartCell)-1)=1,"yes","yes"),"no") -> no | D111: Must be present for ARRs | E111: =IFERROR(IF((ROW(dms_060801_StartCell)-1)=1,"yes","yes"),"no")
B112: Table 6.8 - Number of offset rows | C112: 12 | D112: dms_0608_OffsetRows | E112: =IFERROR(IF(dms_Model="ARR",(ROW(dms_060801_StartCell)-1),"not an ARR"),"6.8 error")
B113: Table 6.8 - Last row | C113: =IFERROR(IF(dms_060801_StartCell<>"",IF(dms_Model="ARR",(LOOKUP(2,1/(dms_060801_01_Values<>""),(ROW(dms_060801_01_Values)))),"not an ARR"),0),"0") -> 0 | D113: dms_0608_LastRow | E113: =IFERROR(IF(dms_060801_StartCell<>"",IF(dms_Model="ARR",(LOOKUP(2,1/(dms_060801_01_Values<>""),(ROW(dms_060801_01_Values)))),"not an ARR"),0),"0")
B114: Table 6.8 - MaxRows | C114: =IFERROR(IF(dms_Model="ARR",(MAX(0,dms_0608_LastRow-dms_0608_OffsetRows)),"not an ARR"),"0") -> not an ARR | D114: dms_060801_MaxRows | E114: =IFERROR(IF(dms_Model="ARR",(MAX(0,dms_0608_LastRow-dms_0608_OffsetRows)),"not an ARR"),"0")
B115: TNSP RESET RINS
B116: Table 7.9.4 only appears in TNSPs Reset RIN
B117: Table 7.9.4 - first year | C117: =LEFT(PRCP_y3,4) -> 2019 | D117: dms_070904_Start_Year | E117: =LEFT(PRCP_y3,4)
B119: MISC
B120: Distribution Determination Reference | C120: - | D120: dms_DeterminationRef
B121: Public lighting NSP? | C121: =INDEX(dms_Public_Lighting_List,MATCH(dms_TradingName,dms_TradingName_List)) -> NO | D121: dms_Public_Lighting | E121: =INDEX(dms_Public_Lighting_List,MATCH(dms_TradingName,dms_TradingName_List))
B122: CBD Feeder for this business | C122: =INDEX(dms_CBD_flag,MATCH(dms_TradingName,dms_TradingName_List)) -> NO | D122: dms_CBD_flag_NSP
B123: Urban Feeder for this business | C123: =INDEX(dms_Urban_flag,MATCH(dms_TradingName,dms_TradingName_List)) -> NO | D123: dms_Urban_flag_NSP
B124: Short rural Feeder for this business | C124: =INDEX(dms_ShortRural_flag,MATCH(dms_TradingName,dms_TradingName_List)) -> NO | D124: dms_ShortRural_flag_NSP
B125: Long rural Feeder for this business | C125: =INDEX(dms_LongRural_flag,MATCH(dms_TradingName,dms_TradingName_List)) -> NO | D125: dms_LongRural_flag_NSP
B126: Fifth Feeder Category (eg. TasNetworks (D)) | C126: =INDEX(dms_FeederType_5_flag,MATCH(dms_TradingName,dms_TradingName_List)) -> NO | D126: dms_FifthFeeder_flag_NSP | E126: =INDEX(dms_FeederType_5_flag,MATCH(dms_TradingName,dms_TradingName_List))
B128: DISCARD FILES
B129: discard this record? | C129: NO | D129: dms_DISCARD | E129: If record is to be discarded from DB set this flag to YES
B131: SUBSET FILES
B132: Is this Submission File a Subset File | C132: NO | D132: dms_Partial
B135: REGULATORY YEARS FOR MULTI RYE SUBMISSIONS
B136: Multiple RYE flag | C136: NO | D136: dms_Multi_RYE_flag
C137: Manually specify RYE | D137: Named ranges to apply
C138: 2013 | D138: dms_RYE_01
C139: 2014 | D139: dms_RYE_02
C140: 2015 | D140: dms_RYE_03
C141: 2016 | D141: dms_RYE_04
C142: 2017 | D142: dms_RYE_05
C143: 2018 | D143: dms_RYE_06
C144: 2019 | D144: dms_RYE_07
C145: 2020 | D145: dms_RYE_08
C146: 2021 | D146: dms_RYE_09
